{"text_format":"1","workbook":"xlsx","n_sheets":3,"sheets":["Modification Proposals Register","Lookups","Legal Text Rotation"],"not_rendered":{"charts":0,"images":0,"macros":1,"external_links":0,"defined_names":8,"comments":0,"pivot_tables":0},"unopened":[],"bounds":{"document_bytes":16777216,"sheet_cells":100000,"rows_first":2000,"rows_last":500,"rows_between":2000,"halvings":0,"cell_chars":16384,"cell_head_chars":4096},"cells_cut":0,"cells_raw":0,"read":"whole","date_system":"1900"}

{"sheet":"Modification Proposals Register","index":0,"n_rows":383,"n_cols":23,"rows_kept":383,"cut":false,"hidden":false,"merged":[[1,0,1,9],[0,0,0,2]]}
["UNC Modification Register ",null,null,null,null,null,null,null,null,null,null,"*Key Dates are normally an end-date, where shown red this is date sent to Ofgem"]
["Modification Reference Suffix:  A - Alternate,  S - Self Governance,  FT - Fast Track Self Governance,  V - Varied"]
["Mod Ref",null,"Modification Title","Proposing Organisation","Date Raised","Live/ Closed","Category","Other Codes Impacted","Workgroup","Current Status","Next Stage","Key date*","SME",null,"Legal Text Provider","Text Rotation","Text Requested","Text Due","Text Delivered","Std Met","ACS"]
["0752",null,"Introduction of Weekly Entry Capacity Auction","South Hook Gas Company Ltd","2021-01-11",{"$f":"LOOKUP($J4,Lookups!$A$3:$A$18, Lookups!$C$3:$C$18)","v":"Live"},"Modification",null,"Transmission","Allocated to Workgroup",{"$f":"LOOKUP(J4,Lookups!$A$3:$A$20,Lookups!$B$3:$B$20)","v":"Report to Panel"},"2021-04-15",null,null,"N/A - National Grid","n/a",null,null,null,null,null,{"$f":"IF(AND(F4=\"Live\",K4=\"Ofgem decision\"),\"Yes\",\"No\")","v":"No"}]
["0751",null,"\nCapping price increases for Long-Term Entry Capacity","Storengy UK Ltd","2021-01-11",{"$f":"LOOKUP($J5,Lookups!$A$3:$A$18, Lookups!$C$3:$C$18)","v":"Live"},"Modification",null,"NTS CMF","Allocated to Workgroup",{"$f":"LOOKUP(J5,Lookups!$A$3:$A$20,Lookups!$B$3:$B$20)","v":"Report to Panel"},"2021-04-15",null,null,"N/A - National Grid","n/a",null,null,null,null,null,"No"]
["0750","FT","Amendment to regulations relating to Covid Modifications","Northern Gas Networks","2020-12-14",{"$f":"LOOKUP($J6,Lookups!$A$3:$A$18, Lookups!$C$3:$C$18)","v":"Closed"},"Fast Track",null,"None","Implemented",{"$f":"LOOKUP(J6,Lookups!$A$3:$A$20,Lookups!$B$3:$B$20)","v":"Effective date"},"2021-01-13",null,null,"Northern Gas Networks","n/a","FT - text provided with mod ",null,null,null,null,"No"]
["0749","R","Increased DM SOQ Flexibility","Barrow Shipping Ltd","2020-12-11",{"$f":"LOOKUP($J7,Lookups!$A$3:$A$18, Lookups!$C$3:$C$18)","v":"Live"},"Request",null,"Distribution","Allocated to Workgroup",{"$f":"LOOKUP(J7,Lookups!$A$3:$A$20,Lookups!$B$3:$B$20)","v":"Report to Panel"},"2021-07-15",null,null,"N/A - Request","n/a",null,null,null,null,null,"No"]
["0748",null,"Prospective Removal of Entry Capacity Revenue from Capacity Neutrality Arrangements","National Grid NTS","2020-12-08",{"$f":"LOOKUP($J8,Lookups!$A$3:$A$18, Lookups!$C$3:$C$18)","v":"Closed"},"Urgent",null,"NTS CMF","Implemented",{"$f":"LOOKUP(J8,Lookups!$A$3:$A$20,Lookups!$B$3:$B$20)","v":"Effective date"},"2021-01-01",null,null,"N/A - National Grid","n/a",null,null,null,null,null,"No"]
["0747","FT","Amendment of reference from AIGT to INA within the UNC ","GTC Pipelines Ltd","2020-12-03",{"$f":"LOOKUP($J9,Lookups!$A$3:$A$18, Lookups!$C$3:$C$18)","v":"Closed"},"Fast Track",null,"None","Implemented",{"$f":"LOOKUP(J9,Lookups!$A$3:$A$20,Lookups!$B$3:$B$20)","v":"Effective date"},"2021-01-13",null,null,"Wales & West Utilities",7,null,null,null,null,null,"No"]
["0746 ",null,"Clarificatory change to the AQ amendment process within TPD G2.3","Gazprom Energy","2020-11-19",{"$f":"LOOKUP($J10,Lookups!$A$3:$A$18, Lookups!$C$3:$C$18)","v":"Live"},"Modification",null,"Distribution","Allocated to Workgroup",{"$f":"LOOKUP(J10,Lookups!$A$3:$A$20,Lookups!$B$3:$B$20)","v":"Report to Panel"},"2021-04-15",null,null,"Cadent",null,null,null,null,null,null,"No"]
["0745",null,"Mandatory Setting of Auction Bid Parameters","National Grid NTS","2020-11-12",{"$f":"LOOKUP($J11,Lookups!$A$3:$A$18, Lookups!$C$3:$C$18)","v":"Live"},"Modification",null,"Transmission","Allocated to Workgroup",{"$f":"LOOKUP(J11,Lookups!$A$3:$A$20,Lookups!$B$3:$B$20)","v":"Report to Panel"},"2021-02-18",null,null,"N/A - National Grid","n/a","Panel requested text 21/01/21 ","2021-02-11",null,null,null,"No"]
["0744","FT","Remove redundant reference to NTS Optional Commodity Charges","National Grid NTS","2020-11-06",{"$f":"LOOKUP($J12,Lookups!$A$3:$A$18, Lookups!$C$3:$C$18)","v":"Closed"},"Fast Track",null,"None","Implemented",{"$f":"LOOKUP(J12,Lookups!$A$3:$A$20,Lookups!$B$3:$B$20)","v":"Effective date"},"2020-12-11",null,null,"N/A - National Grid","n/a",null,null,null,null,null,"No"]
["0743","S","Revisions to User Termination Provisions","National Grid NTS","2020-11-06",{"$f":"LOOKUP($J13,Lookups!$A$3:$A$18, Lookups!$C$3:$C$18)","v":"Live"},"Self-Governance",null,"Transmission","Representations invited",{"$f":"LOOKUP(J13,Lookups!$A$3:$A$20,Lookups!$B$3:$B$20)","v":"Consultation end"},"2021-02-11",null,null,"N/A - National Grid","n/a","Panel requested text 21/01/21 ","2021-02-11",null,null,null,"No"]
["0742",null,"Amendment to Gas Quality NTS Entry Specification at the St Fergus SAGE System Entry Point","SAGE North Sea Limited","2020-11-06",{"$f":"LOOKUP($J14,Lookups!$A$3:$A$18, Lookups!$C$3:$C$18)","v":"Live"},"Modification",null,"Transmission","New Proposal",{"$f":"LOOKUP(J14,Lookups!$A$3:$A$20,Lookups!$B$3:$B$20)","v":"Panel Consideration"},"2021-01-21",null,null,"N/A - National Grid","n/a",null,null,null,null,null,"No"]
["0741","S","Updating specific gender references to neutral terms","E.ON UK","2020-10-23",{"$f":"LOOKUP($J15,Lookups!$A$3:$A$18, Lookups!$C$3:$C$18)","v":"Live"},"Self-Governance",null,"Governance","Allocated to Workgroup",{"$f":"LOOKUP(J15,Lookups!$A$3:$A$20,Lookups!$B$3:$B$20)","v":"Report to Panel"},"2021-03-18",null,null,"Cadent",6,null,null,null,null,null,"No"]
["0740 ",null,"0740 - Amending the Formula Year AQ approach for 2021/2 Formula Year","E.ON UK","2020-10-09",{"$f":"LOOKUP($J16,Lookups!$A$3:$A$18, Lookups!$C$3:$C$18)","v":"Closed"},"Modification",null,"none","Withdrawn",{"$f":"LOOKUP(J16,Lookups!$A$3:$A$20,Lookups!$B$3:$B$20)","v":"End of process"},"2020-10-14",null,null,null,null,null,null,null,null,null,"No"]
["0739",null,"Aggregate overrun regime for Original Capacity held at the Bacton ASEPs","ENI","2020-10-05",{"$f":"LOOKUP($J17,Lookups!$A$3:$A$18, Lookups!$C$3:$C$18)","v":"Live"},"Modification",null,"Transmission","Representations invited",{"$f":"LOOKUP(J17,Lookups!$A$3:$A$20,Lookups!$B$3:$B$20)","v":"Consultation end"},"2021-02-11","2021-02-11",null,"N/A - National Grid","n/a","Panel requested text 17/12/20 ","2021-01-12","2021-01-04",null,null,"No"]
["0738",null,"Incremental NTS Entry Capacity Surrender","Barrow Shipping Ltd","2020-10-05",{"$f":"LOOKUP($J18,Lookups!$A$3:$A$18, Lookups!$C$3:$C$18)","v":"Live"},"Modification",null,"Transmission","Panel recommended implementation",{"$f":"LOOKUP(J18,Lookups!$A$3:$A$20,Lookups!$B$3:$B$20)","v":"Ofgem decision"},"2021-01-21",null,null,"N/A - National Grid","n/a","Panel requested Text 19/11/2020",null,null,null,null,"Yes"]
["0737",null,"Transfer of NTS Entry Capacity from a Capacity Abandoned ASEP","Centrica","2020-09-09",{"$f":"LOOKUP($J19,Lookups!$A$3:$A$18, Lookups!$C$3:$C$18)","v":"Live"},"Modification",null,"NTS CMF","Panel did not recommend implementation",{"$f":"LOOKUP(J19,Lookups!$A$3:$A$20,Lookups!$B$3:$B$20)","v":"Ofgem decision"},"2021-01-21",null,null,"N/A - National Grid","n/a","Panel requested Text 19/11/2020",null,null,null,null,"Yes"]
["0736","A","Clarificatory change to the AQ amendment process within TPD G2.3 (Renumbered as 0746)","Gazprom Energy","2020-09-15",{"$f":"LOOKUP($J20,Lookups!$A$3:$A$18, Lookups!$C$3:$C$18)","v":"Closed"},"Modification",null,"Distribution","Withdrawn",{"$f":"LOOKUP(J20,Lookups!$A$3:$A$20,Lookups!$B$3:$B$20)","v":"End of process"},"2020-11-19",null,null,"Cadent","n/a",null,null,null,null,null,"No"]
["0736","S","Clarificatory change to the AQ amendment process within TPD G2.3","Cadent","2020-09-07",{"$f":"LOOKUP($J21,Lookups!$A$3:$A$18, Lookups!$C$3:$C$18)","v":"Closed"},"Modification",null,"Distribution","Implemented",{"$f":"LOOKUP(J21,Lookups!$A$3:$A$20,Lookups!$B$3:$B$20)","v":"Effective date"},"2021-01-14",null,null,"Cadent","n/a","Panel Requested Text\n15/10/2020","2020-11-05",null,null,null,"No"]
["0735","VS","UNC Changes as a consequence of the United Kingdom’s exit from the European Union","National Grid NTS","2021-01-21",{"$f":"LOOKUP($J22,Lookups!$A$3:$A$18, Lookups!$C$3:$C$18)","v":"Live"},"Self-Governance",null,"None","Representations invited",{"$f":"LOOKUP(J22,Lookups!$A$3:$A$20,Lookups!$B$3:$B$20)","v":"Consultation end"},"2021-02-11",null,null,"N/A - National Grid"]
["0735","S","UNC Changes as a consequence of the absence of trade agreement/s between the United Kingdom and the European Union (‘no deal’)","National Grid NTS","2020-09-04",{"$f":"LOOKUP($J23,Lookups!$A$3:$A$18, Lookups!$C$3:$C$18)","v":"Closed"},"Self-Governance",null,"Distribution and Transmission","Withdrawn",{"$f":"LOOKUP(J23,Lookups!$A$3:$A$20,Lookups!$B$3:$B$20)","v":"End of process"},"2021-01-21",null,null,"N/A - National Grid","n/a",null,null,null,null,null,"No"]
["0734","S","Reporting Valid Confirmed Theft of Gas into Central Systems","Gazprom Energy","2020-08-12",{"$f":"LOOKUP($J24,Lookups!$A$3:$A$18, Lookups!$C$3:$C$18)","v":"Live"},"Self-Governance",null,"Distribution","Allocated to Workgroup",{"$f":"LOOKUP(J24,Lookups!$A$3:$A$20,Lookups!$B$3:$B$20)","v":"Report to Panel"},"2021-04-15",null,null,"Scotia Gas Networks",5,null,null,null,null,null,{"$f":"IF(AND(F24=\"Live\",K24=\"Ofgem decision\"),\"Yes\",\"No\")","v":"No"}]
["0733","FT","UNC Section Y clarification post decision on implementation of Modification 0678A","National Grid NTS","2020-08-10",{"$f":"LOOKUP($J25,Lookups!$A$3:$A$18, Lookups!$C$3:$C$18)","v":"Closed"},"Fast Track",null,"None","Implemented",{"$f":"LOOKUP(J25,Lookups!$A$3:$A$20,Lookups!$B$3:$B$20)","v":"Effective date"},"2020-10-01",null,null,"N/A - National Grid","n/a","FT - text provided with mod ",null,null,null,null,"No"]
["0732","FT","Performance Assurance Committee voting arrangements","Wales & West Utilities","2020-08-07",{"$f":"LOOKUP($J26,Lookups!$A$3:$A$18, Lookups!$C$3:$C$18)","v":"Closed"},"Fast Track",null,"None","Implemented",{"$f":"LOOKUP(J26,Lookups!$A$3:$A$20,Lookups!$B$3:$B$20)","v":"Effective date"},"2020-09-14",null,null,"Wales & West Utilites","n/a","FT - text provided with mod ",null,null,null,null,"No"]
["0731","S","Introduction of an Annual Modification Panel Report","Gazprom Energy","2020-08-06",{"$f":"LOOKUP($J27,Lookups!$A$3:$A$18, Lookups!$C$3:$C$18)","v":"Closed"},"Self-Governance",null,"Governance","Implemented",{"$f":"LOOKUP(J27,Lookups!$A$3:$A$20,Lookups!$B$3:$B$20)","v":"Effective date"},"2021-01-13",null,null,"Cadent",4,"Panel Requested Text\n15/10/2020","2020-11-05",null,null,null,"No"]
["0730","V","COVID-19 Capacity Retention Process","Gazprom Energy","2020-12-17","Live","Modification",null,"Distribution","Panel did not recommend implementation",{"$f":"LOOKUP(J28,Lookups!$A$3:$A$20,Lookups!$B$3:$B$20)","v":"Ofgem decision"},"2021-01-21",null,null,"Northern Gas Networks",3]
["0730",null,"COVID-19 Capacity Retention Process","Gazprom Energy","2020-06-30",{"$f":"LOOKUP($J29,Lookups!$A$3:$A$18, Lookups!$C$3:$C$18)","v":"Closed"},"Modification",null,"Distribution","Withdrawn",{"$f":"LOOKUP(J29,Lookups!$A$3:$A$20,Lookups!$B$3:$B$20)","v":"End of process"},"2020-12-17",null,null,"Northern Gas Networks",null,null,null,"2020-07-02",null,null,"No"]
["0729",null,"Applying a discount to the Revenue Recovery Charge at Storage Points","Storengy UK Ltd","2020-06-24",{"$f":"LOOKUP($J30,Lookups!$A$3:$A$18, Lookups!$C$3:$C$18)","v":"Live"},"Modification",null,"NTS CMF","Panel did not recommend implementation",{"$f":"LOOKUP(J30,Lookups!$A$3:$A$20,Lookups!$B$3:$B$20)","v":"Ofgem decision"},"2020-09-17",null,null,"National Grid NTS","n/a","Panel Requested Text\n19/08/2020","2020-08-19","2020-08-19",{"$f":"IF(ISBLANK(S30),\" \",IF(S30<=R30,\"Y\",\"N\"))","v":"Y"},null,"Yes"]
["0728","D","Introduction of Conditional Discounts for Avoiding Inefficient Bypass of the NTS","ENI","2020-06-09",{"$f":"LOOKUP($J31,Lookups!$A$3:$A$18, Lookups!$C$3:$C$18)","v":"Live"},"Urgent",null,"NTS CMF","Panel did not recommend implementation",{"$f":"LOOKUP(J31,Lookups!$A$3:$A$20,Lookups!$B$3:$B$20)","v":"Ofgem decision"},"2020-07-03",null,null,"National Grid NTS","n/a",null,null,null,null,null,"Yes"]
["0728","C","Introduction of a Capacity Discount to Avoid Inefficient Bypass of the NTS","RWE Npower","2020-06-09",{"$f":"LOOKUP($J32,Lookups!$A$3:$A$18, Lookups!$C$3:$C$18)","v":"Live"},"Urgent",null,"NTS CMF","Panel did not recommend implementation",{"$f":"LOOKUP(J32,Lookups!$A$3:$A$20,Lookups!$B$3:$B$20)","v":"Ofgem decision"},"2020-07-03",null,null,"National Grid NTS","n/a",null,null,null,null,null,"Yes"]
["0728","B","Introduction of Conditional Discount for Avoiding Inefficient Bypass of the NTS with 28km distance cap","Vitol SA Geneva","2020-06-09",{"$f":"LOOKUP($J33,Lookups!$A$3:$A$18, Lookups!$C$3:$C$18)","v":"Live"},"Urgent",null,"NTS CMF","Panel did not recommend implementation",{"$f":"LOOKUP(J33,Lookups!$A$3:$A$20,Lookups!$B$3:$B$20)","v":"Ofgem decision"},"2020-07-03",null,null,"National Grid NTS","n/a",null,null,null,null,null,"Yes"]
["0728","A","Introduction of Conditional Discounts for Avoiding Inefficient Bypass of the NTS","South Hook Gas Company Ltd","2020-06-09",{"$f":"LOOKUP($J34,Lookups!$A$3:$A$18, Lookups!$C$3:$C$18)","v":"Live"},"Urgent",null,"NTS CMF","Panel did not recommend implementation",{"$f":"LOOKUP(J34,Lookups!$A$3:$A$20,Lookups!$B$3:$B$20)","v":"Ofgem decision"},"2020-07-03",null,null,"National Grid NTS","n/a",null,null,null,null,null,"Yes"]
["0728",null,"Introduction of a Conditional Discount for Avoiding Inefficient Bypass of the NTS","National Grid NTS","2020-06-09",{"$f":"LOOKUP($J35,Lookups!$A$3:$A$18, Lookups!$C$3:$C$18)","v":"Live"},"Urgent",null,"NTS CMF","Panel did not recommend implementation",{"$f":"LOOKUP(J35,Lookups!$A$3:$A$20,Lookups!$B$3:$B$20)","v":"Ofgem decision"},"2020-07-03",null,null,"National Grid NTS","n/a",null,null,null,null,null,"Yes"]
["0727",null,"Increasing the Storage Transmission Capacity Charge Discount to 80%","Storengy UK ","2020-06-05",{"$f":"LOOKUP($J36,Lookups!$A$3:$A$18, Lookups!$C$3:$C$18)","v":"Closed"},"Urgent",null,"NTS CMF","Implemented",{"$f":"LOOKUP(J36,Lookups!$A$3:$A$20,Lookups!$B$3:$B$20)","v":"Effective date"},"2021-10-01",null,null,"National Grid NTS","n/a",null,null,null,null,null,"No"]
["0726",null,"COVID-19 Liquidity Relief Scheme for Shippers","Wales & West Utilities","2020-06-03",{"$f":"LOOKUP($J37,Lookups!$A$3:$A$18, Lookups!$C$3:$C$18)","v":"Closed"},"Urgent",null,"Distribution","Implemented",{"$f":"LOOKUP(J37,Lookups!$A$3:$A$20,Lookups!$B$3:$B$20)","v":"Effective date"},"2020-06-24",null,null,"Northern Gas Networks","n/a",null,null,null,null,null,"No"]
["0725",null,"Ability to Reflect the Correct Customer Network Use and System Offtake Quantity (SOQ) During COVID-19 ","Gazprom Energy","2020-05-05",{"$f":"LOOKUP($J38,Lookups!$A$3:$A$18, Lookups!$C$3:$C$18)","v":"Closed"},"Urgent",null,"Other","Rejected",{"$f":"LOOKUP(J38,Lookups!$A$3:$A$20,Lookups!$B$3:$B$20)","v":"End of process"},"2020-05-29",null,null,"Northern Gas Networks","n/a",null,null,null,null,null,"No"]
["0724",null,"Amendment to Ratchet charges during COVID-19 period","Northern Gas Networks","2020-04-21",{"$f":"LOOKUP($J39,Lookups!$A$3:$A$18, Lookups!$C$3:$C$18)","v":"Closed"},"Urgent",null,"Distribution","Implemented",{"$f":"LOOKUP(J39,Lookups!$A$3:$A$20,Lookups!$B$3:$B$20)","v":"Effective date"},"2020-05-12",null,null,"Northern Gas Networks","n/a",null,null,null,null,null,"No"]
["0723",null,"Use of the Isolation Flag to identify sites with abnormal load reduction during COVID-19 period","Northern Gas Networks","2020-04-21",{"$f":"LOOKUP($J40,Lookups!$A$3:$A$18, Lookups!$C$3:$C$18)","v":"Closed"},"Urgent",null,"Distribution","Implemented",{"$f":"LOOKUP(J40,Lookups!$A$3:$A$20,Lookups!$B$3:$B$20)","v":"Effective date"},"2020-05-12",null,null,"Northern Gas Networks","n/a",null,null,null,null,null,"No"]
["0722",null,"Allow Users to submit Estimated Meter Reading during COVID-19","Gazprom Energy","2020-04-21",{"$f":"LOOKUP($J41,Lookups!$A$3:$A$18, Lookups!$C$3:$C$18)","v":"Closed"},"Urgent",null,"Distribution","Implemented",{"$f":"LOOKUP(J41,Lookups!$A$3:$A$20,Lookups!$B$3:$B$20)","v":"Effective date"},"2020-05-12",null,null,"Northern Gas Networks","n/a",null,null,null,null,null,"No"]
["0721",null,"Shipper submitted AQ Corrections during COVID-19 ","Gazprom Energy","2020-04-21",{"$f":"LOOKUP($J42,Lookups!$A$3:$A$18, Lookups!$C$3:$C$18)","v":"Closed"},"Urgent",null,"Distribution","Rejected",{"$f":"LOOKUP(J42,Lookups!$A$3:$A$20,Lookups!$B$3:$B$20)","v":"End of process"},"2020-06-02",null,null,"Northern Gas Networks","n/a",null,null,null,null,null,"No"]
["0720","S","Amendments to the Agreed Target Quantity at the Moffat Interconnection Point ","National Grid","2020-03-11",{"$f":"LOOKUP($J43,Lookups!$A$3:$A$18, Lookups!$C$3:$C$18)","v":"Closed"},"Self-Governance",null,"Transmission","Implemented",{"$f":"LOOKUP(J43,Lookups!$A$3:$A$20,Lookups!$B$3:$B$20)","v":"Effective date"},"2020-10-09",null,null,"N/A - Enabling Modification","n/a",null,null,null,null,null,"No"]
["0719","R","Calculation of Energy Value of Gas","SGN","2020-03-06",{"$f":"LOOKUP($J44,Lookups!$A$3:$A$18, Lookups!$C$3:$C$18)","v":"Closed"},"Request",null,"Offtake","Request Closed",{"$f":"LOOKUP(J44,Lookups!$A$3:$A$20,Lookups!$B$3:$B$20)","v":"End of process"},"2020-09-17",null,null,"National Grid NTS","n/a",null,null,null,null,null,{"$f":"IF(AND(F44=\"Live\",K44=\"Ofgem decision\"),\"Yes\",\"No\")","v":"No"}]
["0718","C","Introduction of Conditional Capacity Discount for Avoiding Inefficient Bypass of the NTS","RWE","2020-03-06",{"$f":"LOOKUP($J45,Lookups!$A$3:$A$18, Lookups!$C$3:$C$18)","v":"Closed"},"Modification",null,"NTS CMF","Withdrawn",{"$f":"LOOKUP(J45,Lookups!$A$3:$A$20,Lookups!$B$3:$B$20)","v":"End of process"},"2020-03-26",null,null,"National Grid NTS","n/a",null,null,null,{"$f":"IF(ISBLANK(S45),\" \",IF(S45<=R45,\"Y\",\"N\"))","v":" "},null,"No"]
["0718","B","Introduction of Conditional Discounts for Avoiding Inefficient Bypass of the NTS with 28km Distance Cap","VPI Immingham LLP","2020-03-06",{"$f":"LOOKUP($J46,Lookups!$A$3:$A$18, Lookups!$C$3:$C$18)","v":"Closed"},"Modification",null,"NTS CMF","Withdrawn",{"$f":"LOOKUP(J46,Lookups!$A$3:$A$20,Lookups!$B$3:$B$20)","v":"End of process"},"2020-03-26",null,null,"National Grid NTS","n/a",null,null,null,{"$f":"IF(ISBLANK(S46),\" \",IF(S46<=R46,\"Y\",\"N\"))","v":" "},null,"No"]
["0718","A","Introduction of Conditional Discounts for Avoiding Inefficient Bypass of the NTS","South Hook Gas","2020-03-06",{"$f":"LOOKUP($J47,Lookups!$A$3:$A$18, Lookups!$C$3:$C$18)","v":"Closed"},"Modification",null,"NTS CMF","Withdrawn",{"$f":"LOOKUP(J47,Lookups!$A$3:$A$20,Lookups!$B$3:$B$20)","v":"End of process"},"2020-03-26",null,null,"National Grid NTS","n/a",null,null,null,{"$f":"IF(ISBLANK(S47),\" \",IF(S47<=R47,\"Y\",\"N\"))","v":" "},null,"No"]
["0718",null,"Introduction of a Conditional Discount for Avoiding Inefficient Bypass of the NTS","National Grid","2020-03-06",{"$f":"LOOKUP($J48,Lookups!$A$3:$A$18, Lookups!$C$3:$C$18)","v":"Closed"},"Modification",null,"NTS CMF","Withdrawn",{"$f":"LOOKUP(J48,Lookups!$A$3:$A$20,Lookups!$B$3:$B$20)","v":"End of process"},"2020-03-26",null,null,"National Grid NTS","n/a",null,null,null,null,null,"No"]
["0717",null,"Increasing the Storage Transmission Capacity Charge Discount to 80%","Storengy UK ","2020-03-05",{"$f":"LOOKUP($J49,Lookups!$A$3:$A$18, Lookups!$C$3:$C$18)","v":"Closed"},"Modification",null,"NTS CMF","Withdrawn",{"$f":"LOOKUP(J49,Lookups!$A$3:$A$20,Lookups!$B$3:$B$20)","v":"End of process"},"2020-03-26",null,null,"na","na",null,null,null,null,null,"No"]
["0716","A","Revision of Overrun Charge Multiplier","Storengy UK ","2020-04-20",{"$f":"LOOKUP($J50,Lookups!$A$3:$A$18, Lookups!$C$3:$C$18)","v":"Closed"},"Modification",null,"Transmission ","Rejected",{"$f":"LOOKUP(J50,Lookups!$A$3:$A$20,Lookups!$B$3:$B$20)","v":"End of process"},"2020-09-18",null,null,"N/A - National Grid","n/a","Panel Requested Text\n19/06/2020","2020-07-09"]
["0716",null,"Revision of Overrun Charge Multiplier","National Grid","2020-02-12",{"$f":"LOOKUP($J51,Lookups!$A$3:$A$18, Lookups!$C$3:$C$18)","v":"Closed"},"Modification",null,"Transmission ","Implemented",{"$f":"LOOKUP(J51,Lookups!$A$3:$A$20,Lookups!$B$3:$B$20)","v":"Effective date"},"2020-10-01",null,null,"N/A - National Grid","n/a","Panel Requested Text\n19/06/2020","2020-07-09",null,null,null,"No"]
["0715","S","Amendment of the Data Permission Matrix and UNC TPD Section V5 to add Electricity System Operator (ESO) as a new User type","National Grid","2020-02-10",{"$f":"LOOKUP($J52,Lookups!$A$3:$A$18, Lookups!$C$3:$C$18)","v":"Closed"},"Self-Governance",null,"Distribution","Implemented",{"$f":"LOOKUP(J52,Lookups!$A$3:$A$20,Lookups!$B$3:$B$20)","v":"Effective date"},"2020-06-15",null,null,"n/a","n/a",null,null,null,null,null,"No"]
["0714",null,"Amendment to Network Entry Provision at Perenco Bacton terminal","Centrica","2020-01-08",{"$f":"LOOKUP($J53,Lookups!$A$3:$A$18, Lookups!$C$3:$C$18)","v":"Live"},"Modification",null,"Other","Panel recommended implementation",{"$f":"LOOKUP(J53,Lookups!$A$3:$A$20,Lookups!$B$3:$B$20)","v":"Ofgem decision"},"2020-06-18",null,null,"n/a","n/a",null,null,null,null,null,"Yes"]
["0713","S","Amendments to TPD V3.1.7 Independent Assessment table","Wales & West Utilities ","2019-12-12",{"$f":"LOOKUP($J54,Lookups!$A$3:$A$18, Lookups!$C$3:$C$18)","v":"Closed"},"Self-Governance",null,"Transmission & Distribution","Implemented",{"$f":"LOOKUP(J54,Lookups!$A$3:$A$20,Lookups!$B$3:$B$20)","v":"Effective date"},"2020-05-11",null,null,"Wales & West Utilities","n/a","Panel Requested Text 19/12/2019","2020-01-14",null,null,null,"No"]
["0712","S","Amending the oxygen content limit in the Network Entry Agreement (NEA) at the St Fergus SAGE plant","OMV Gas Marketing and Trading GmbH ","2019-11-20",{"$f":"LOOKUP($J55,Lookups!$A$3:$A$18, Lookups!$C$3:$C$18)","v":"Closed"},"Self-Governance",null,"Transmission","Implemented",{"$f":"LOOKUP(J55,Lookups!$A$3:$A$20,Lookups!$B$3:$B$20)","v":"Effective date"},"2020-05-11",null,null,"n/a",null,null,null,null,null,null,"No"]
["0711",null,"Update of AUG Table to reflect new EUC bands","Gazprom","2019-11-11",{"$f":"LOOKUP($J56,Lookups!$A$3:$A$18, Lookups!$C$3:$C$18)","v":"Closed"},"Modification",null,"Distribution","Implemented",{"$f":"LOOKUP(J56,Lookups!$A$3:$A$20,Lookups!$B$3:$B$20)","v":"Effective date"},"2021-10-01",null,null,"Northern Gas Networks",3,"Panel Requested Text 16/01/20","2020-02-06","2020-01-28",{"$f":"IF(ISBLANK(S56),\" \",IF(S56<=R56,\"Y\",\"N\"))","v":"Y"},null,"No"]
["0710","S","CDSP provision of Class 1 read\nservice","Wales & West Utilities","2019-11-08",{"$f":"LOOKUP($J57,Lookups!$A$3:$A$18, Lookups!$C$3:$C$18)","v":"Closed"},"Self-Governance",null,"Distribution","Implemented",{"$f":"LOOKUP(J57,Lookups!$A$3:$A$20,Lookups!$B$3:$B$20)","v":"Effective date"},"tbc",null,null,"Wales & West Utilites","n/a",null,null,null,null,null,"No"]
["0709","FT","Amendment of references to Data Protection Act for GDPR","Wales & West Utilities","2019-11-08",{"$f":"LOOKUP($J58,Lookups!$A$3:$A$18, Lookups!$C$3:$C$18)","v":"Closed"},"Fast Track",null,"None","Implemented",{"$f":"LOOKUP(J58,Lookups!$A$3:$A$20,Lookups!$B$3:$B$20)","v":"Effective date"},"2019-12-12",null,null,"Wales & West Utilites","n/a",null,null,"2019-11-07",null,null,"No"]
["0708","S","Re-ordering of the UNC in advance of Faster Switching ","Northern Gas Networks","2019-11-08",{"$f":"LOOKUP($J59,Lookups!$A$3:$A$18, Lookups!$C$3:$C$18)","v":"Closed"},"Self-Governance",null,"Governance","Implemented",{"$f":"LOOKUP(J59,Lookups!$A$3:$A$20,Lookups!$B$3:$B$20)","v":"Effective date"},"tbc",null,null,"Northern Gas Networks","n/a",null,null,null,null,null,"No"]
["0707","S","Introducing ‘Performance Assurance Framework Administrator’ as a new User type to the Data Permissions Matrix","Shell","2019-11-08",{"$f":"LOOKUP($J60,Lookups!$A$3:$A$18, Lookups!$C$3:$C$18)","v":"Closed"},"Self-Governance",null,"Distribution","Implemented",{"$f":"LOOKUP(J60,Lookups!$A$3:$A$20,Lookups!$B$3:$B$20)","v":"Effective date"},"2020-04-14",null,null,"n/a","n/a","No Text req'd - enabling Mod",null,null,null,null,"No"]
["0706","R","Instances where Shippers can exit commercial agreements with an independent Supplier","Contract Natural Gas Ltd","2019-10-31",{"$f":"LOOKUP($J61,Lookups!$A$3:$A$18, Lookups!$C$3:$C$18)","v":"Closed"},"Request",null,"Distribution","Withdrawn",{"$f":"LOOKUP(J61,Lookups!$A$3:$A$20,Lookups!$B$3:$B$20)","v":"End of process"},"2020-02-25",null,null,"n/a","n/a",null,null,null,null,null,"No"]
["0705","R","NTS Capacity Access Review","National Grid NTS","2019-10-10",{"$f":"LOOKUP($J62,Lookups!$A$3:$A$18, Lookups!$C$3:$C$18)","v":"Live"},"Request",null,"Transmission","Allocated to Workgroup",{"$f":"LOOKUP(J62,Lookups!$A$3:$A$20,Lookups!$B$3:$B$20)","v":"Report to Panel"},"2021-10-21",null,null,"n/a","n/a",null,null,null,null,null,"No"]
["0704","S","Review of Transporter Theft Reporting","SGN","2019-10-04",{"$f":"LOOKUP($J63,Lookups!$A$3:$A$18, Lookups!$C$3:$C$18)","v":"Closed"},"Self-Governance",null,"Distribution","Implemented",{"$f":"LOOKUP(J63,Lookups!$A$3:$A$20,Lookups!$B$3:$B$20)","v":"Effective date"},"2020-06-15",null,null,"SGN","n/a",null,null,null,null,null,"No"]
["0703","S","Correction to Modification 0689S 'Improvements to Margins Notice Arrangements'","National Grid NTS","2019-10-04",{"$f":"LOOKUP($J64,Lookups!$A$3:$A$18, Lookups!$C$3:$C$18)","v":"Closed"},"Self-Governance",null,"Transmission","Implemented",{"$f":"LOOKUP(J64,Lookups!$A$3:$A$20,Lookups!$B$3:$B$20)","v":"Effective date"},"2019-11-25",null,null,"National Grid NTS","n/a","Text provided with mod",null,null,null,null,"No"]
["0702","S","Introducing ‘Research Body’ as a new User type to the Data Permissions Matrix and UNC TPD Section V5 ","Gazprom Energy","2019-09-11",{"$f":"LOOKUP($J65,Lookups!$A$3:$A$18, Lookups!$C$3:$C$18)","v":"Closed"},"Self-Governance",null,"Distribution","Implemented",{"$f":"LOOKUP(J65,Lookups!$A$3:$A$20,Lookups!$B$3:$B$20)","v":"Effective date"},"tbc",null,null,"Cadent",2,null,null,null,null,null,"No"]
["0701",null,"Aligning Capacity booking under the UNC and arrangements set out in relevant NExAs","Northern Gas Networks","2019-08-01",{"$f":"LOOKUP($J66,Lookups!$A$3:$A$18, Lookups!$C$3:$C$18)","v":"Live"},"Modification",null,"Distribution","Panel recommended implementation",{"$f":"LOOKUP(J66,Lookups!$A$3:$A$20,Lookups!$B$3:$B$20)","v":"Ofgem decision"},"2020-05-21",null,null,"Northern Gas Networks","n/a",null,null,null,null,null,"Yes"]
["0700",null,"Enabling large scale utilisation of Class 3","Gazprom Energy","2019-07-19",{"$f":"LOOKUP($J67,Lookups!$A$3:$A$18, Lookups!$C$3:$C$18)","v":"Closed"},"Urgent",null,"Distribution","Implemented",{"$f":"LOOKUP(J67,Lookups!$A$3:$A$20,Lookups!$B$3:$B$20)","v":"Effective date"},"2019-09-28",null,null,"Cadent",2,null,null,null,null,null,"No"]
["0699",null,"Incentivise Key Areas of Performance using additional UIG Charges","Scottish Power","2019-07-10",{"$f":"LOOKUP($J68,Lookups!$A$3:$A$18, Lookups!$C$3:$C$18)","v":"Closed"},"Modification",null,"Distribution","Withdrawn",{"$f":"LOOKUP(J68,Lookups!$A$3:$A$20,Lookups!$B$3:$B$20)","v":"End of process"},"2020-01-21",null,null,"Scotia Gas Networks",1,null,null,null,null,null,"No"]
["0698","S","Improvements to Margins Notice Arrangements ","National Grid NTS","2019-07-09",{"$f":"LOOKUP($J69,Lookups!$A$3:$A$18, Lookups!$C$3:$C$18)","v":"Closed"},"Self-Governance",null,"Transmission","Implemented",{"$f":"LOOKUP(J69,Lookups!$A$3:$A$20,Lookups!$B$3:$B$20)","v":"Effective date"},"2019-09-09",null,null,"National Grid NTS","n/a","Text provided with mod","2019-07-18","2019-07-18",{"$f":"IF(ISBLANK(S69),\" \",IF(S69<=R69,\"Y\",\"N\"))","v":"Y"},null,"No"]
["0697","VS","Alignment of the UNC TPD Section V5 and the Data Permissions Matrix","Gazprom Energy","2020-09-17",{"$f":"LOOKUP($J70,Lookups!$A$3:$A$18, Lookups!$C$3:$C$18)","v":"Closed"},"Self-Governance",null,"Distribution","Implemented",{"$f":"LOOKUP(J70,Lookups!$A$3:$A$20,Lookups!$B$3:$B$20)","v":"Effective date"},"2020-11-18",null,null,"Cadent",8,"Panel Requested Text\n17/09/2020","2020-09-17","2020-09-17",{"$f":"IF(ISBLANK(S70),\" \",IF(S70<=R70,\"Y\",\"N\"))","v":"Y"}]
["0697","S","Alignment of the UNC TPD Section V5 and the Data Permissions Matrix","Gazprom Energy","2019-07-08",{"$f":"LOOKUP($J71,Lookups!$A$3:$A$18, Lookups!$C$3:$C$18)","v":"Closed"},"Self-Governance",null,"Distribution","Withdrawn",{"$f":"LOOKUP(J71,Lookups!$A$3:$A$20,Lookups!$B$3:$B$20)","v":"End of process"},"2020-09-17",null,null,"Cadent",8,"Panel Requested Text\n19/08/2020","2020-08-19","2020-08-19",{"$f":"IF(ISBLANK(S71),\" \",IF(S71<=R71,\"Y\",\"N\"))","v":"Y"},null,"No"]
["0696","A","Aligning Capacity booking under the UNC and arrangements set out in relevant NExAs (Renumbered to 0701)","Northern Gas Networks","2019-08-01",{"$f":"LOOKUP($J72,Lookups!$A$3:$A$18, Lookups!$C$3:$C$18)","v":"Closed"},"Modification",null,"Distribution","Withdrawn",{"$f":"LOOKUP(J72,Lookups!$A$3:$A$20,Lookups!$B$3:$B$20)","v":"End of process"},"2019-08-15",null,null,"Wales & West Utilities",7,null,null,null,null,null,"No"]
["0696","V ","Addressing inequities between Capacity booking under the UNC and arrangements set out in relevant NExAs","Gazprom Energy","2020-03-19",{"$f":"LOOKUP($J73,Lookups!$A$3:$A$18, Lookups!$C$3:$C$18)","v":"Live"},"Modification",null,"Distribution","Panel recommended implementation",{"$f":"LOOKUP(J73,Lookups!$A$3:$A$20,Lookups!$B$3:$B$20)","v":"Ofgem decision"},"2020-05-21",null,null,"Wales & West Utilities",7,"Panel Requested Text 19/03/2020","2020-04-09","2020-03-19",{"$f":"IF(ISBLANK(S73),\" \",IF(S73<=R73,\"Y\",\"N\"))","v":"Y"},null,"Yes"]
["0696",null,"Addressing inequities between Capacity booking under the UNC and arrangements set out in relevant NExAs","Gazprom Energy","2019-06-12",{"$f":"LOOKUP($J74,Lookups!$A$3:$A$18, Lookups!$C$3:$C$18)","v":"Closed"},"Modification",null,"Distribution","Withdrawn",{"$f":"LOOKUP(J74,Lookups!$A$3:$A$20,Lookups!$B$3:$B$20)","v":"End of process"},"2020-03-19",null,null,"Wales & West Utilities",7,"Panel Requested Text 15/08/2019","2019-09-06","2019-09-06",{"$f":"IF(ISBLANK(S74),\" \",IF(S74<=R74,\"Y\",\"N\"))","v":"Y"},null,"No"]
["0695","S","Obligations on Shippers to pass Transporter compensation payments on to consumers, via Suppliers","Northern Gas Networks","2019-06-10",{"$f":"LOOKUP($J75,Lookups!$A$3:$A$18, Lookups!$C$3:$C$18)","v":"Closed"},"Self-Governance",null,"Distribution","Implemented",{"$f":"LOOKUP(J75,Lookups!$A$3:$A$20,Lookups!$B$3:$B$20)","v":"Effective date"},"2019-11-08",null,null,"Northern Gas Networks","n/a","Text provided with mod","2019-09-17","2019-09-17",{"$f":"IF(ISBLANK(S75),\" \",IF(S75<=R75,\"Y\",\"N\"))","v":"Y"},null,"No"]
["0694","R","CDSP provision of Class 1 Read service","Wales & West Utilities","2019-05-31",{"$f":"LOOKUP($J76,Lookups!$A$3:$A$18, Lookups!$C$3:$C$18)","v":"Closed"},"Request",null,"Distribution","Withdrawn",{"$f":"LOOKUP(J76,Lookups!$A$3:$A$20,Lookups!$B$3:$B$20)","v":"End of process"},"2019-11-25",null,null,"n/a",null,null,null,null,null,null,"No"]
["0693","R","Treatment of kWh error arising from statutory volume-energy conversion","Scottish Power","2019-05-23",{"$f":"LOOKUP($J77,Lookups!$A$3:$A$18, Lookups!$C$3:$C$18)","v":"Closed"},"Request",null,"Distribution","Request Closed",{"$f":"LOOKUP(J77,Lookups!$A$3:$A$20,Lookups!$B$3:$B$20)","v":"End of process"},"2021-01-21",null,null,"n/a",null,null,null,null,null,null,"No"]
["0692","S","Automatic updates to Meter Read Frequency ","Total Gas and Power","2019-05-02",{"$f":"LOOKUP($J78,Lookups!$A$3:$A$18, Lookups!$C$3:$C$18)","v":"Closed"},"Self-Governance",null,"Distribution","Implemented",{"$f":"LOOKUP(J78,Lookups!$A$3:$A$20,Lookups!$B$3:$B$20)","v":"Effective date"},"tbc",null,null,"Cadent",6,"Text provided with mod",null,null,null,null,"No"]
["0691","S","CDSP to convert Class 2, 3 or 4 meter points to Class 1 when G1.6.15 criteria are met","Centrica","2019-04-09",{"$f":"LOOKUP($J79,Lookups!$A$3:$A$18, Lookups!$C$3:$C$18)","v":"Closed"},"Self-Governance",null,"Distribution","Implemented",{"$f":"LOOKUP(J79,Lookups!$A$3:$A$20,Lookups!$B$3:$B$20)","v":"Effective date"},"tbc ",null,null,"Scotia Gas Networks",5,"Panel Requested Text 20/02/2020","2020-03-12","2020-03-12",{"$f":"IF(ISBLANK(S79),\" \",IF(S79<=R79,\"Y\",\"N\"))","v":"Y"},null,"No"]
["0690","S","Reduce qualifying period for Class 1","Centrica","2019-04-09",{"$f":"LOOKUP($J80,Lookups!$A$3:$A$18, Lookups!$C$3:$C$18)","v":"Closed"},"Self-Governance",null,"UIG","Implemented",{"$f":"LOOKUP(J80,Lookups!$A$3:$A$20,Lookups!$B$3:$B$20)","v":"Effective date"},"2020-03-25",null,null,"Cadent",4,"Panel Requested Text 21/11/2019","2019-12-12",null,null,null,"No"]
["0689",null,"Removing the requirement to support Invoice queries before the due date with information from the .AML file ","Gazprom","2019-04-09",{"$f":"LOOKUP($J81,Lookups!$A$3:$A$18, Lookups!$C$3:$C$18)","v":"Closed"},"Modification",null,"Distribution","Withdrawn",{"$f":"LOOKUP(J81,Lookups!$A$3:$A$20,Lookups!$B$3:$B$20)","v":"End of process"},"2019-09-13",null,null,"Northern Gas Networks",3,null,null,null,null,null,"No"]
["0688",null,"Recovery of Shipper Losses incurred in Supplier of Last Resort events","Contract Natural Gas Ltd","2019-04-09",{"$f":"LOOKUP($J82,Lookups!$A$3:$A$18, Lookups!$C$3:$C$18)","v":"Closed"},"Modification",null,"Transmission","Withdrawn",{"$f":"LOOKUP(J82,Lookups!$A$3:$A$20,Lookups!$B$3:$B$20)","v":"End of process"},"2019-10-02",null,null,"Cadent",2,null,null,null,null,null,"No"]
["0687",null,"Creation of new charge to recover Last Resort Supply Payments","Total Gas and Power","2019-04-09",{"$f":"LOOKUP($J83,Lookups!$A$3:$A$18, Lookups!$C$3:$C$18)","v":"Live"},"Modification",null,"Distribution","Panel recommended implementation",{"$f":"LOOKUP(J83,Lookups!$A$3:$A$20,Lookups!$B$3:$B$20)","v":"Ofgem decision"},"2019-10-17",null,null,"Scotia Gas Networks",1,"Panel Requested Text 15/08/2019","2019-09-06","2019-08-19",{"$f":"IF(ISBLANK(S83),\" \",IF(S83<=R83,\"Y\",\"N\"))","v":"Y"},null,"Yes"]
["0686",null,"Removal of the NTS Optional Commodity Rate with adequate notice","Vermilion Energy Ireland Ltd","2019-04-02",{"$f":"LOOKUP($J84,Lookups!$A$3:$A$18, Lookups!$C$3:$C$18)","v":"Live"},"Modification",null,"NTS CMF","Panel did not recommend implementation",{"$f":"LOOKUP(J84,Lookups!$A$3:$A$20,Lookups!$B$3:$B$20)","v":"Ofgem decision"},"2019-06-20",null,null,"National Grid NTS","n/a","Panel Requested Text 18/4/19 ","2019-05-14","2019-05-15","N",null,"Yes"]
["0685",null,"Amendment of the UNC term ‘Gas Deficit Warning’ to ‘Gas Balancing Notification’","National Grid NTS","2019-04-02",{"$f":"LOOKUP($J85,Lookups!$A$3:$A$18, Lookups!$C$3:$C$18)","v":"Closed"},"Modification",null,"None","Implemented",{"$f":"LOOKUP(J85,Lookups!$A$3:$A$20,Lookups!$B$3:$B$20)","v":"Effective date"},"2019-10-01",null,null,"National Grid NTS","n/a","Panel Requested Text 18/04/19 ","2019-05-14","2019-04-29","Y",null,"No"]
["0684","S","Amendment of the Data Permission\nMatrix to add Meter Asset Provider as a new User type Document - Phase 1","Scottish Power","2019-03-14",{"$f":"LOOKUP($J86,Lookups!$A$3:$A$18, Lookups!$C$3:$C$18)","v":"Closed"},"Self-Governance",null,"Distribution","Implemented",{"$f":"LOOKUP(J86,Lookups!$A$3:$A$20,Lookups!$B$3:$B$20)","v":"Effective date"},"2019-06-28",null,null,"Cadent",8,"Panel Requested Text 21/03/19","2019-04-11","2019-03-27","Y",null,"No"]
["0683","S","Offtake Arrangements Document (OAD) Review Updates – Phase 1","Cadent","2019-03-11",{"$f":"LOOKUP($J87,Lookups!$A$3:$A$18, Lookups!$C$3:$C$18)","v":"Closed"},"Self-Governance",null,"Offtake","Implemented",{"$f":"LOOKUP(J87,Lookups!$A$3:$A$20,Lookups!$B$3:$B$20)","v":"Effective date"},"2020-06-15",null,null,"Cadent","n/a",null,null,null," ",null,"No"]
["0682",null,"Market Participant MDD Migration to UNC Governance from the SPAA","E.ON UK","2019-03-08",{"$f":"LOOKUP($J88,Lookups!$A$3:$A$18, Lookups!$C$3:$C$18)","v":"Closed"},"Modification",null,"Distribution","Implemented",{"$f":"LOOKUP(J88,Lookups!$A$3:$A$20,Lookups!$B$3:$B$20)","v":"Effective date"},"2020-02-28",null,null,"Wales & West Utilities",7,"Panel Requested Text 18/4/19 ","2019-05-14","2019-05-20","N",null,"No"]
["0681","S","Improvements to the quality of the Conversion Factor values held on the Supply Point Register","E.ON UK","2019-03-06",{"$f":"LOOKUP($J89,Lookups!$A$3:$A$18, Lookups!$C$3:$C$18)","v":"Closed"},"Self-Governance",null,"UIG","Implemented",{"$f":"LOOKUP(J89,Lookups!$A$3:$A$20,Lookups!$B$3:$B$20)","v":"Effective date"},"2020-03-25",null,null,"Cadent",6,"Panel Requested Text 16/05/19","2019-06-07","2019-06-04",{"$f":"IF(ISBLANK(S89),\" \",IF(S89<=R89,\"Y\",\"N\"))","v":"Y"},null,"No"]
["0680","VS","UNC Changes as a Consequence of ‘no deal’ United Kingdom Exit from the European Union","National Grid NTS","2019-11-01",{"$f":"LOOKUP($J90,Lookups!$A$3:$A$18, Lookups!$C$3:$C$18)","v":"Closed"},"Self-Governance",null,"Transmission","Withdrawn",{"$f":"LOOKUP(J90,Lookups!$A$3:$A$20,Lookups!$B$3:$B$20)","v":"End of process"},"2020-02-18",null,null,"National Grid NTS",null,"Panel Requested Text 21/02/19","2019-03-14",null,{"$f":"IF(ISBLANK(S90),\" \",IF(S90<=R90,\"Y\",\"N\"))","v":" "},null,"No"]
["0680","S","UNC Changes as a Consequence of ‘no deal’ United Kingdom Exit from the European Union","National Grid NTS","2019-02-07",{"$f":"LOOKUP($J91,Lookups!$A$3:$A$18, Lookups!$C$3:$C$18)","v":"Closed"},"Self-Governance",null,"Transmission","Withdrawn",{"$f":"LOOKUP(J91,Lookups!$A$3:$A$20,Lookups!$B$3:$B$20)","v":"End of process"},"2019-11-01",null,null,"National Grid NTS",null,"Panel Requested Text 21/02/19","2019-03-14",null," ",null,"No"]
["0679",null,"Amendments to Gas Transmission Charging Regime (Postage Stamp) (Renumbered to 0678A)","RWE Npower","2019-01-24",{"$f":"LOOKUP($J92,Lookups!$A$3:$A$18, Lookups!$C$3:$C$18)","v":"Closed"},"Urgent",null,"Other","Withdrawn",{"$f":"LOOKUP(J92,Lookups!$A$3:$A$20,Lookups!$B$3:$B$20)","v":"End of process"},"2019-01-28",null,null,"National Grid NTS",null,null,null,null," ",null,"No"]
["0678","J","Amendments to Gas Charging Regime (Postage Stamp) including a Cost based Optional Capacity Charge","South Hook Gas Company Ltd","2019-03-19",{"$f":"LOOKUP($J93,Lookups!$A$3:$A$18, Lookups!$C$3:$C$18)","v":"Closed"},"Urgent",null,"Other","Rejected",{"$f":"LOOKUP(J93,Lookups!$A$3:$A$20,Lookups!$B$3:$B$20)","v":"End of process"},"2020-05-28",null,null,"National Grid NTS",null,null,null,null," ",null,"No"]
["0678","I","Amendments to Gas Transmission Charging Regime","Gazprom","2019-02-27",{"$f":"LOOKUP($J94,Lookups!$A$3:$A$18, Lookups!$C$3:$C$18)","v":"Closed"},"Urgent",null,"Other","Rejected",{"$f":"LOOKUP(J94,Lookups!$A$3:$A$20,Lookups!$B$3:$B$20)","v":"End of process"},"2020-05-28",null,null,"National Grid NTS",null,null,null,null," ",null,"No"]
["0678","H","Amendments to Gas Transmission Charging Regime (Postage Stamp) including a Cost based Optional Capacity Charge","EP UK Investments","2019-02-27",{"$f":"LOOKUP($J95,Lookups!$A$3:$A$18, Lookups!$C$3:$C$18)","v":"Closed"},"Urgent",null,"Other","Rejected",{"$f":"LOOKUP(J95,Lookups!$A$3:$A$20,Lookups!$B$3:$B$20)","v":"End of process"},"2020-05-28",null,null,"National Grid NTS",null,null,null,null," ",null,"No"]
["0678","G","Amendments to Gas Transmission Charging Regime including a Cost based Optional Capacity Charge","Vitol SA Geneva","2019-02-26",{"$f":"LOOKUP($J96,Lookups!$A$3:$A$18, Lookups!$C$3:$C$18)","v":"Closed"},"Urgent",null,"Other","Rejected",{"$f":"LOOKUP(J96,Lookups!$A$3:$A$20,Lookups!$B$3:$B$20)","v":"End of process"},"2020-05-28",null,null,"National Grid NTS",null,null,null,null," ",null,"No"]
["0678","F","Amendments to Gas Transmission Charging Regime – Treatment of Unprotected Entry Capacity and Storage ","Storengy UK Limited","2019-02-22",{"$f":"LOOKUP($J97,Lookups!$A$3:$A$18, Lookups!$C$3:$C$18)","v":"Closed"},"Urgent",null,"Other","Rejected",{"$f":"LOOKUP(J97,Lookups!$A$3:$A$20,Lookups!$B$3:$B$20)","v":"End of process"},"2020-05-28",null,null,"National Grid NTS",null,null,null,null," ",null,"No"]
["0678","E","Amendments to Gas Charging Regime – Treatment of Storage","Gateway LNG Company Ltd","2019-02-20",{"$f":"LOOKUP($J98,Lookups!$A$3:$A$18, Lookups!$C$3:$C$18)","v":"Closed"},"Urgent",null,"Other","Rejected",{"$f":"LOOKUP(J98,Lookups!$A$3:$A$20,Lookups!$B$3:$B$20)","v":"End of process"},"2020-05-28",null,null,"National Grid NTS",null,null,null,null," ",null,"No"]
["0678","D","Amendments to Gas Transmission Charging Regime","ENI","2019-02-20",{"$f":"LOOKUP($J99,Lookups!$A$3:$A$18, Lookups!$C$3:$C$18)","v":"Closed"},"Urgent",null,"Other","Rejected",{"$f":"LOOKUP(J99,Lookups!$A$3:$A$20,Lookups!$B$3:$B$20)","v":"End of process"},"2020-05-28",null,null,"National Grid NTS",null,null,null,null," ",null,"No"]
["0678","C","Amendments to Gas Charging Regime (Postage Stamp)","SSE","2019-02-15",{"$f":"LOOKUP($J100,Lookups!$A$3:$A$18, Lookups!$C$3:$C$18)","v":"Closed"},"Urgent",null,"Other","Rejected",{"$f":"LOOKUP(J100,Lookups!$A$3:$A$20,Lookups!$B$3:$B$20)","v":"End of process"},"2020-05-28",null,null,"National Grid NTS",null,null,null,null," ",null,"No"]
["0678","B","Amendments to Gas Transmission Charging Regime","Centrica","2019-02-06",{"$f":"LOOKUP($J101,Lookups!$A$3:$A$18, Lookups!$C$3:$C$18)","v":"Closed"},"Urgent",null,"Other","Rejected",{"$f":"LOOKUP(J101,Lookups!$A$3:$A$20,Lookups!$B$3:$B$20)","v":"End of process"},"2020-05-28",null,null,"National Grid NTS",null,null,null,null," ",null,"No"]
["0678","A","Amendments to Gas Transmission Charging Regime (Postage Stamp)","RWE  ","2019-01-28",{"$f":"LOOKUP($J102,Lookups!$A$3:$A$18, Lookups!$C$3:$C$18)","v":"Closed"},"Urgent",null,"Other","Implemented",{"$f":"LOOKUP(J102,Lookups!$A$3:$A$20,Lookups!$B$3:$B$20)","v":"Effective date"},"2020-10-01",null,null,"National Grid NTS",null,null,null,null," ",null,"No"]
["0678",null,"Amendments to Gas Transmission Charging Regime","National Grid NTS","2019-01-17",{"$f":"LOOKUP($J103,Lookups!$A$3:$A$18, Lookups!$C$3:$C$18)","v":"Closed"},"Urgent",null,"Other","Rejected",{"$f":"LOOKUP(J103,Lookups!$A$3:$A$20,Lookups!$B$3:$B$20)","v":"End of process"},"2020-05-28",null,null,"National Grid NTS",null,null,null,null," ",null,"No"]
["0677","R","Shipper Supplier Theft Reporting Request","first:utility","2019-01-04",{"$f":"LOOKUP($J104,Lookups!$A$3:$A$18, Lookups!$C$3:$C$18)","v":"Closed"},"Request",null,"Other","Request Closed",{"$f":"LOOKUP(J104,Lookups!$A$3:$A$20,Lookups!$B$3:$B$20)","v":"End of process"},"2019-11-21",null,null,"n/a",null,null,null,null," ",null,"No"]
["0676","R","Review of Gas Transporter Joint Office Arrangements ","Gazprom","2018-12-24",{"$f":"LOOKUP($J105,Lookups!$A$3:$A$18, Lookups!$C$3:$C$18)","v":"Live"},"Request",null,"Governance","Allocated to Workgroup",{"$f":"LOOKUP(J105,Lookups!$A$3:$A$20,Lookups!$B$3:$B$20)","v":"Report to Panel"},"2021-03-18",null,null,"SGN",5,null,null,null," ",null,"No"]
["0675","S","Enabling changes to the BBL Interconnection Agreement to facilitate physical reverse flow","National Grid NTS","2018-12-11",{"$f":"LOOKUP($J106,Lookups!$A$3:$A$18, Lookups!$C$3:$C$18)","v":"Closed"},"Self-Governance",null,"Transmission","Implemented",{"$f":"LOOKUP(J106,Lookups!$A$3:$A$20,Lookups!$B$3:$B$20)","v":"Effective date"},"2019-07-12",null,null,"National Grid NTS",null,"No Text req'd - enabling Mod",null,null," ",null,"No"]
["0674",null,"Performance Assurance Techniques and Controls ","Scottish Power","2018-11-07",{"$f":"LOOKUP($J107,Lookups!$A$3:$A$18, Lookups!$C$3:$C$18)","v":"Live"},"Modification",null,"Other","Allocated to Workgroup",{"$f":"LOOKUP(J107,Lookups!$A$3:$A$20,Lookups!$B$3:$B$20)","v":"Report to Panel"},"2021-03-18",null,null,"Cadent",4,"Panel requested text 21/01/21 ","2021-02-11",null," ",null,"No"]
["0673",null,"Amendment of UNC and DSC arrangements to enable Xoserve to bid for and provide CSS Services","Gazprom","2018-10-19",{"$f":"LOOKUP($J108,Lookups!$A$3:$A$18, Lookups!$C$3:$C$18)","v":"Closed"},"Urgent",null,"Other","Implemented",{"$f":"LOOKUP(J108,Lookups!$A$3:$A$20,Lookups!$B$3:$B$20)","v":"Effective date"},"2018-11-30",null,null,"Northern Gas Networks",3,null,null,null," ",null,"No"]
["0672","S","Target, Measure and Reporting Product Class 4 Read Performance","Scottish Power","2018-10-08",{"$f":"LOOKUP($J109,Lookups!$A$3:$A$18, Lookups!$C$3:$C$18)","v":"Closed"},"Self-Governance",null,"UIG","Implemented",{"$f":"LOOKUP(J109,Lookups!$A$3:$A$20,Lookups!$B$3:$B$20)","v":"Effective date"},"2020-09-07",null,null,"Cadent",2,"Panel Requested Text 21/11/19","2019-12-12","2019-12-06","Y",null,"No"]
["0671",null,"New Capacity Exchange process at NTS exit points for capacity below baseline","Wales & West Utilities","2018-10-08",{"$f":"LOOKUP($J110,Lookups!$A$3:$A$18, Lookups!$C$3:$C$18)","v":"Closed"},"Modification",null,"Transmission","Withdrawn",{"$f":"LOOKUP(J110,Lookups!$A$3:$A$20,Lookups!$B$3:$B$20)","v":"End of process"},"2019-08-16",null,null,"n/a",null,null,null,null," ",null,{"$f":"IF(AND(F110=\"Live\",K110=\"Ofgem decision\"),\"Yes\",\"No\")","v":"No"}]
["0670","R","Review of the charging methodology to avoid the inefficient bypass of the NTS","National Grid NTS","2018-10-08",{"$f":"LOOKUP($J111,Lookups!$A$3:$A$18, Lookups!$C$3:$C$18)","v":"Closed"},"Request",null,"NTS CMF","Request Closed",{"$f":"LOOKUP(J111,Lookups!$A$3:$A$20,Lookups!$B$3:$B$20)","v":"End of process"},"2020-07-16",null,null,"National Grid NTS",null,"No Text req'd - Request",null,null," ",null,"No"]
["0669","R","Review of the Gas Deficit Warning (GDW) and Margins Notice (MN) Arrangements","National Grid NTS","2018-09-07",{"$f":"LOOKUP($J112,Lookups!$A$3:$A$18, Lookups!$C$3:$C$18)","v":"Closed"},"Request",null,"Transmission","Request Closed",{"$f":"LOOKUP(J112,Lookups!$A$3:$A$20,Lookups!$B$3:$B$20)","v":"End of process"},"2019-08-15",null,null,"National Grid NTS",null,null,null,null," ",null,"No"]
["0668","S","Amendment of the Data Permission Matrix to add Alt Han Company as a new User type","E.ON UK","2018-09-06",{"$f":"LOOKUP($J113,Lookups!$A$3:$A$18, Lookups!$C$3:$C$18)","v":"Closed"},"Self-Governance",null,"Distribution","Implemented",{"$f":"LOOKUP(J113,Lookups!$A$3:$A$20,Lookups!$B$3:$B$20)","v":"Effective date"},"2019-03-01",null,null,"Scotia Gas Networks",1,null,null,"2018-12-19","N",null,"No"]
["0667",null,"Inclusion and Amendment of Entry Incremental Capacity Release NPV test in UNC ","South Hook Gas Company Ltd","2018-09-06",{"$f":"LOOKUP($J114,Lookups!$A$3:$A$18, Lookups!$C$3:$C$18)","v":"Closed"},"Modification",null,"Transmission","Rejected",{"$f":"LOOKUP(J114,Lookups!$A$3:$A$20,Lookups!$B$3:$B$20)","v":"End of process"},"2020-02-20",null,null,"National Grid NTS"," ","Panel Requested Text 21/03/19","2019-04-11","2019-04-16","N",null,"No"]
["0666",null,"Establishment of a CSS Bid Group or CDSP central switching system bid activities","Gazprom","2018-08-15",{"$f":"LOOKUP($J115,Lookups!$A$3:$A$18, Lookups!$C$3:$C$18)","v":"Closed"},"Urgent",null,"Other","Implemented",{"$f":"LOOKUP(J115,Lookups!$A$3:$A$20,Lookups!$B$3:$B$20)","v":"Effective date"},"2018-09-11",null,null,"Cadent",8,"Text provided with mod","2018-08-29","2018-08-29","Y",null,"No"]
["0665",null,"Changes to Ratchet Regime","Gazprom","2018-08-14",{"$f":"LOOKUP($J116,Lookups!$A$3:$A$18, Lookups!$C$3:$C$18)","v":"Closed"},"Modification",null,"Other","Implemented",{"$f":"LOOKUP(J116,Lookups!$A$3:$A$20,Lookups!$B$3:$B$20)","v":"Effective date"},"2019-10-01",null,null,"SGN","7 (5)","Panel Requested Text 21/02/19","2019-03-14",null," ",null,"No"]
["0664","V","Transfer of Sites with Low Read Submission Performance from Class 2 and 3 into Class 4 (adopted)","SSE","2020-09-17",{"$f":"LOOKUP($J117,Lookups!$A$3:$A$18, Lookups!$C$3:$C$18)","v":"Live"},"Modification",null,"UIG","Allocated to Workgroup",{"$f":"LOOKUP(J117,Lookups!$A$3:$A$20,Lookups!$B$3:$B$20)","v":"Report to Panel"},"2021-04-15",null,null,"Cadent",6,"Panel Requested Text 17/09/20","2020-09-17","2020-09-17",{"$f":"IF(ISBLANK(S117),\" \",IF(S117<=R117,\"Y\",\"N\"))","v":"Y"}]
["0664",null,"Transfer of Sites with Low Read Submission Performance from Class 2 and 3 into Class 4 (adopted)","SSE","2019-06-28",{"$f":"LOOKUP($J118,Lookups!$A$3:$A$18, Lookups!$C$3:$C$18)","v":"Closed"},"Modification",null,"UIG","Withdrawn",{"$f":"LOOKUP(J118,Lookups!$A$3:$A$20,Lookups!$B$3:$B$20)","v":"End of process"},"2020-09-17",null,null,"Cadent",6,"Panel Requested Text 16/01/20","2020-02-06","2020-01-29","Y",null,"No"]
["0664",null,"Transfer of Sites with Low Read Submission Performance from Class 2 and 3 into Class 4","Npower","2018-08-06",{"$f":"LOOKUP($J119,Lookups!$A$3:$A$18, Lookups!$C$3:$C$18)","v":"Closed"},"Modification",null,"UIG","Withdrawn",{"$f":"LOOKUP(J119,Lookups!$A$3:$A$20,Lookups!$B$3:$B$20)","v":"End of process"},"2019-06-26",null,null,"Cadent",6,null,null,null," ",null,"No"]
["0663","S","Extending the data comprised under the definition of Supply Point Premises Data (TPD V5.18.1)","Scottish Power","2018-07-06",{"$f":"LOOKUP($J120,Lookups!$A$3:$A$18, Lookups!$C$3:$C$18)","v":"Closed"},"Self-Governance",null,"Distribution","Withdrawn",{"$f":"LOOKUP(J120,Lookups!$A$3:$A$20,Lookups!$B$3:$B$20)","v":"End of process"},"2018-11-27",null,null,"Wales & West Utilities","5 (7)",null,null,null," ",null,"No"]
["0662",null,"Revenue Recovery at Combined  ASEPs","National Grid NTS","2018-06-12",{"$f":"LOOKUP($J121,Lookups!$A$3:$A$18, Lookups!$C$3:$C$18)","v":"Closed"},"Modification",null,"Transmission","Withdrawn",{"$f":"LOOKUP(J121,Lookups!$A$3:$A$20,Lookups!$B$3:$B$20)","v":"End of process"},"2020-01-09",null,null,"National Grid",null,null,null,null," ",null,"No"]
["0661","R","Reconciliation and Imbalance Cash Out Prices","Winchester Gas","2018-06-11",{"$f":"LOOKUP($J122,Lookups!$A$3:$A$18, Lookups!$C$3:$C$18)","v":"Closed"},"Request",null,"Other","Request Closed",{"$f":"LOOKUP(J122,Lookups!$A$3:$A$20,Lookups!$B$3:$B$20)","v":"End of process"},"2019-05-16",null,null,"n/a","n/a",null,null,null," ",null,"No"]
["0660","S","Amendment to PARR permissions to allow PAC to update with UNCC approval","Centrica","2018-06-08",{"$f":"LOOKUP($J123,Lookups!$A$3:$A$18, Lookups!$C$3:$C$18)","v":"Closed"},"Self-Governance",null,"Distribution","Implemented",{"$f":"LOOKUP(J123,Lookups!$A$3:$A$20,Lookups!$B$3:$B$20)","v":"Effective date"},"2018-12-07",null,null,"Cadent",4,"Panel Requested Text 20/09/18","2018-10-11",null," ",null,"No"]
["0659","S","Improvements to the Composite Weather Variable","E.ON UK","2018-05-29",{"$f":"LOOKUP($J124,Lookups!$A$3:$A$18, Lookups!$C$3:$C$18)","v":"Closed"},"Self-Governance",null,"UIG","Withdrawn",{"$f":"LOOKUP(J124,Lookups!$A$3:$A$20,Lookups!$B$3:$B$20)","v":"End of process"},"2018-11-14",null,null,"Northern Gas Networks",3,"Panel requested Text 18/10/18","2018-11-08",null," ",null,"No"]
["0658",null,"CDSP to identify and develop improvements to LDZ settlement processes ","Total Gas and Power","2018-05-25",{"$f":"LOOKUP($J125,Lookups!$A$3:$A$18, Lookups!$C$3:$C$18)","v":"Closed"},"Urgent",null,"None","Implemented",{"$f":"LOOKUP(J125,Lookups!$A$3:$A$20,Lookups!$B$3:$B$20)","v":"Effective date"},"2018-07-06",null,null,"Cadent",2,null,null,null," ",null,"No"]
["0657","S","Adding AQ reporting to the PARR Schedule reporting suite ","Npower","2018-04-30",{"$f":"LOOKUP($J126,Lookups!$A$3:$A$18, Lookups!$C$3:$C$18)","v":"Closed"},"Self-Governance",null,"Distribution","Implemented",{"$f":"LOOKUP(J126,Lookups!$A$3:$A$20,Lookups!$B$3:$B$20)","v":"Effective date"},"2018-10-12",null,null,"SGN",1,"N/A",null,null," ",null,"No"]
["0656",null,"Changes to Modification Panel arrangements","Gazprom","2018-04-30",{"$f":"LOOKUP($J127,Lookups!$A$3:$A$18, Lookups!$C$3:$C$18)","v":"Closed"},"Modification",null,"Governance","Implemented",{"$f":"LOOKUP(J127,Lookups!$A$3:$A$20,Lookups!$B$3:$B$20)","v":"Effective date"},"2018-11-28",null,null,"Cadent",8,"Panel Requested Text 16/08/18","2018-09-07","2018-08-17","Y",null,"No"]
["0655","S","Requiring a Meter Reading following a change of Local Distribution Zone or Exit Zone.","Gazprom","2018-04-06",{"$f":"LOOKUP($J128,Lookups!$A$3:$A$18, Lookups!$C$3:$C$18)","v":"Closed"},"Self-Governance",null,"Distribution","Withdrawn",{"$f":"LOOKUP(J128,Lookups!$A$3:$A$20,Lookups!$B$3:$B$20)","v":"End of process"},"2018-07-16",null,null,"Wales & West Utilities",7,null,null,null," ",null,"No"]
["0654","S","Mandating the provision of NDM sample data","E.ON UK","2018-03-28",{"$f":"LOOKUP($J129,Lookups!$A$3:$A$18, Lookups!$C$3:$C$18)","v":"Closed"},"Self-Governance",null,"UIG","Implemented",{"$f":"LOOKUP(J129,Lookups!$A$3:$A$20,Lookups!$B$3:$B$20)","v":"Effective date"},"2019-03-01","National Grid NTS",null,"Scotia Gas Networks",5,"Panel requested Text 16/08/18","2018-08-16","2018-08-16","Y",null,"No"]
["0653",null,"Updating the parameters for the NTS Optional Commodity Charge – Introducing the NTS Optional Capacity Charge ","Centrica","2018-03-15",{"$f":"LOOKUP($J130,Lookups!$A$3:$A$18, Lookups!$C$3:$C$18)","v":"Closed"},"Modification",null,"NTS CMF","Withdrawn",{"$f":"LOOKUP(J130,Lookups!$A$3:$A$20,Lookups!$B$3:$B$20)","v":"End of process"},"2018-08-13","National Grid NTS","n/a","National Grid NTS","n/a",null,null,null," ",null,"No"]
["0652",null,"Introduction of winter read/consumption reports and associated obligations","Npower","2018-03-07",{"$f":"LOOKUP($J131,Lookups!$A$3:$A$18, Lookups!$C$3:$C$18)","v":"Closed"},"Modification",null,"UIG","Implemented",{"$f":"LOOKUP(J131,Lookups!$A$3:$A$20,Lookups!$B$3:$B$20)","v":"Effective date"},"tbd","n/a","n/a","Northern Gas Networks",3,"Panel requested Text 18/10/18","2018-11-08","2018-11-16","N",null,"No"]
["0651",null,"Changes to the Retrospective Data Update provisions","Cadent","2018-03-05",{"$f":"LOOKUP($J132,Lookups!$A$3:$A$18, Lookups!$C$3:$C$18)","v":"Closed"},"Modification",null,"Distribution","Implemented",{"$f":"LOOKUP(J132,Lookups!$A$3:$A$20,Lookups!$B$3:$B$20)","v":"Effective date"},"tbd",null,null,"n/a","n/a","Panel requested Text 18/07/18","2018-07-18","2018-07-18","Y",null,"No"]
["0650","FT","Minor Typographical Correction to UNC0638V Legal Text","Northern Gas Networks","2018-02-28",{"$f":"LOOKUP($J133,Lookups!$A$3:$A$18, Lookups!$C$3:$C$18)","v":"Closed"},"Fast Track",null,"Distribution","Implemented",{"$f":"LOOKUP(J133,Lookups!$A$3:$A$20,Lookups!$B$3:$B$20)","v":"Effective date"},"2018-04-10",null,null,"n/a",null,null,null,null," ",null,"No"]
["0649","S","Update to UNC to formalise the Data Enquiry Service Permissions Matrix ","Gazprom","2018-02-26",{"$f":"LOOKUP($J134,Lookups!$A$3:$A$18, Lookups!$C$3:$C$18)","v":"Closed"},"Self-Governance",null,"Distribution","Implemented",{"$f":"LOOKUP(J134,Lookups!$A$3:$A$20,Lookups!$B$3:$B$20)","v":"Effective date"},"2018-11-09",null,null,"Cadent",2,"Panel Requested Text 16/08/18","2018-09-07","2018-08-17","Y",null,"No"]
["0648","S","End dating the revised DM Read estimation process introduced by Modification 0634 ","Gazprom","2018-02-06",{"$f":"LOOKUP($J135,Lookups!$A$3:$A$18, Lookups!$C$3:$C$18)","v":"Closed"},"Self-Governance",null,"Distribution","Implemented",{"$f":"LOOKUP(J135,Lookups!$A$3:$A$20,Lookups!$B$3:$B$20)","v":"Effective date"},"2018-06-11",null,null,"Scotia Gas Networks",1,"Panel Requested Text 15/02/18","2018-03-08","2018-02-26","Y",null,"No"]
["0647",null,"Opening Class 1 reads to Competition","Wales & West Utilities","2018-01-18",{"$f":"LOOKUP($J136,Lookups!$A$3:$A$18, Lookups!$C$3:$C$18)","v":"Closed"},"Modification",null,"Distribution","Withdrawn",{"$f":"LOOKUP(J136,Lookups!$A$3:$A$20,Lookups!$B$3:$B$20)","v":"End of process"},"2019-06-20","SGN",null,"n/a",null,null,null,null," ",null,"No"]
["0646","R","Review of the Offtake Arrangements Document ","Cadent","2018-01-10",{"$f":"LOOKUP($J137,Lookups!$A$3:$A$18, Lookups!$C$3:$C$18)","v":"Live"},"Request",null,"Oftake","Allocated to Workgroup",{"$f":"LOOKUP(J137,Lookups!$A$3:$A$20,Lookups!$B$3:$B$20)","v":"Report to Panel"},"2021-04-15",null,null,"n/a",null,null,null,null," ",null,"No"]
["0645","S","Amending the oxygen content limit in the Network Entry Agreement at South Hook LNG","South Hook Gas Ltd","2018-01-02",{"$f":"LOOKUP($J138,Lookups!$A$3:$A$18, Lookups!$C$3:$C$18)","v":"Closed"},"Self-Governance",null,"Transmission","Implemented",{"$f":"LOOKUP(J138,Lookups!$A$3:$A$20,Lookups!$B$3:$B$20)","v":"Effective date"},"2018-06-11","n/a","n/a","National Grid NTS",null,"Panel Requested Text 15/02/18","2018-03-08","2018-02-16","Y",null,"No"]
["0644",null,"Improvements to nomination and reconciliation through the introduction of new EUC bands and improvements for the ALP and DAF","E.ON UK","2017-12-15",{"$f":"LOOKUP($J139,Lookups!$A$3:$A$18, Lookups!$C$3:$C$18)","v":"Closed"},"Modification",null,"Distribution","Withdrawn",{"$f":"LOOKUP(J139,Lookups!$A$3:$A$20,Lookups!$B$3:$B$20)","v":"End of process"},"2018-07-27",null,null,"Cadent","2 (6)",null,null,null," ",null,"No"]
["0643",null,"(Urgent) - Changes to settlement regime to address Unidentified Gas issues including retrospective correction","Orsted Sales","2017-12-15",{"$f":"LOOKUP($J140,Lookups!$A$3:$A$18, Lookups!$C$3:$C$18)","v":"Closed"},"Urgent",null,"Distribution","Rejected",{"$f":"LOOKUP(J140,Lookups!$A$3:$A$20,Lookups!$B$3:$B$20)","v":"End of process"},"2018-08-17",null,null,"Cadent","2 (4)",null,null,null," ",null,"No"]
["0642","A","(Urgent) - Changes to settlement regime to address Unidentified Gas issues","E.ON UK","2017-12-22",{"$f":"LOOKUP($J141,Lookups!$A$3:$A$18, Lookups!$C$3:$C$18)","v":"Closed"},"Urgent",null,"UIG","Rejected",{"$f":"LOOKUP(J141,Lookups!$A$3:$A$20,Lookups!$B$3:$B$20)","v":"End of process"},"2018-08-17",null,null,"Cadent",2,"Panel Requested 18/01/18","2018-02-08","2018-02-01","Y",null,"No"]
["0642",null,"(Urgent) - Changes to settlement regime to address Unidentified Gas issues","Corona Energy","2017-12-15",{"$f":"LOOKUP($J142,Lookups!$A$3:$A$18, Lookups!$C$3:$C$18)","v":"Closed"},"Urgent",null,"Distribution","Rejected",{"$f":"LOOKUP(J142,Lookups!$A$3:$A$20,Lookups!$B$3:$B$20)","v":"End of process"},"2018-08-17",null,null,"Cadent",2,null,null,null," ",null,"No"]
["0641","S","Amendments to Modification 0431 - Shipper/Transporter - Meter Point Portfolio Reconciliation rules and obligations","Centrica","2017-12-08",{"$f":"LOOKUP($J143,Lookups!$A$3:$A$18, Lookups!$C$3:$C$18)","v":"Closed"},"Self-Governance",null,"Distribution","Implemented",{"$f":"LOOKUP(J143,Lookups!$A$3:$A$20,Lookups!$B$3:$B$20)","v":"Effective date"},"2018-06-11",null,null,"Cadent",8,"Panel Requested 18/01/18","2018-02-08","2018-03-07","N",null,"No"]
["0640","S","Provision of access to Domestic Consumer data for Suppliers","Centrica","2017-12-08",{"$f":"LOOKUP($J144,Lookups!$A$3:$A$18, Lookups!$C$3:$C$18)","v":"Closed"},"Self-Governance",null,"Distribution","Implemented",{"$f":"LOOKUP(J144,Lookups!$A$3:$A$20,Lookups!$B$3:$B$20)","v":"Effective date"},"2018-04-10",null,null,"Wales & West Utilities",7,"Panel Requested Text 21/12/17","2018-01-17","2018-01-17","Y",null,"No"]
["0639","R","Review of AUGE Framework and Arrangements","Gazprom","2017-12-07",{"$f":"LOOKUP($J145,Lookups!$A$3:$A$18, Lookups!$C$3:$C$18)","v":"Closed"},"Request",null,"Individual","Request Closed",{"$f":"LOOKUP(J145,Lookups!$A$3:$A$20,Lookups!$B$3:$B$20)","v":"End of process"},"2018-06-21",null,null,"n/a","n/a",null,null,null," ",null,"No"]
["0638","V","Mandate monthly read submission for Smart and AMR sites from 01 April 2018","Centrica Energy","2017-12-21",{"$f":"LOOKUP($J146,Lookups!$A$3:$A$18, Lookups!$C$3:$C$18)","v":"Closed"},"Modification",null,"Distribution","Implemented",{"$f":"LOOKUP(J146,Lookups!$A$3:$A$20,Lookups!$B$3:$B$20)","v":"Effective date"},"2018-04-01","Northern Gas Networks",3,"Northern Gas Networks",3,"Panel Requested Text 21/12/17","2018-01-16","2018-01-08","Y",null,"No"]
["0638",null,"Mandate monthly read submission for Smart and AMR sites from 01 April 2018","Centrica Energy","2017-10-30",{"$f":"LOOKUP($J147,Lookups!$A$3:$A$18, Lookups!$C$3:$C$18)","v":"Closed"},"Modification",null,"Distribution","Withdrawn",{"$f":"LOOKUP(J147,Lookups!$A$3:$A$20,Lookups!$B$3:$B$20)","v":"End of process"},"2017-12-21",null,null,"Northern Gas Networks",3,"Panel Requested Text 19/10/17","2017-11-09","2017-11-07","Y",null,"No"]
["0637","S","Amending the permissions to release data to Meter Asset Provider organisations  ","E.ON UK","2017-10-11",{"$f":"LOOKUP($J148,Lookups!$A$3:$A$18, Lookups!$C$3:$C$18)","v":"Closed"},"Self-Governance",null,"Distribution","Implemented",{"$f":"LOOKUP(J148,Lookups!$A$3:$A$20,Lookups!$B$3:$B$20)","v":"Effective date"},"2017-12-08",null,null,"Cadent",6,"Panel Requested Text 19/10/17","2017-10-19","2017-10-19","Y",null,"No"]
["0636","D","Updating the parameters for the NTS Optional Commodity Charge while complying with the EU Tariff Code","Gazprom","2018-04-06",{"$f":"LOOKUP($J149,Lookups!$A$3:$A$18, Lookups!$C$3:$C$18)","v":"Closed"},"Modification",null,"NTS CMF","Rejected",{"$f":"LOOKUP(J149,Lookups!$A$3:$A$20,Lookups!$B$3:$B$20)","v":"End of process"},"2018-07-31",null,null,"National Grid NTS","n/a",null,null,null," ",null,"No"]
["0636","C*","Updating the parameters for the NTS Optional Commodity Charge – Introducing the NTS Optional Capacity Charge (Renumbered to 0653)","Centrica","2018-02-20",{"$f":"LOOKUP($J150,Lookups!$A$3:$A$18, Lookups!$C$3:$C$18)","v":"Closed"},"Modification",null,"NTS CMF","Withdrawn",{"$f":"LOOKUP(J150,Lookups!$A$3:$A$20,Lookups!$B$3:$B$20)","v":"End of process"},"2018-08-13","National Grid NTS",null,"National Grid NTS","n/a",null,null,null," ",null,"No"]
["0636","C","Updating the parameters for the NTS Optional Commodity Charge ","Aughinish Alumina","2018-03-02",{"$f":"LOOKUP($J151,Lookups!$A$3:$A$18, Lookups!$C$3:$C$18)","v":"Closed"},"Modification",null,"NTS CMF","Rejected",{"$f":"LOOKUP(J151,Lookups!$A$3:$A$20,Lookups!$B$3:$B$20)","v":"End of process"},"2018-07-31","National Grid NTS","n/a","National Grid NTS","n/a ","Panel Requested Text 15/03/18","2018-04-09","2018-04-03","Y",null,"No"]
["0636","B","Updating the parameters for the NTS Optional Commodity Charge ","SSE","2018-02-01",{"$f":"LOOKUP($J152,Lookups!$A$3:$A$18, Lookups!$C$3:$C$18)","v":"Closed"},"Modification",null,"NTS CMF","Rejected",{"$f":"LOOKUP(J152,Lookups!$A$3:$A$20,Lookups!$B$3:$B$20)","v":"End of process"},"2018-07-31","National Grid NTS",null,"National Grid NTS","n/a","Panel Requested Text 15/02/18","2018-03-08","2018-04-03","N",null,"No"]
["0636","A","Updating the parameters for the NTS Optional Commodity Charge ","Vitol S.A. Geneva","2018-01-05",{"$f":"LOOKUP($J153,Lookups!$A$3:$A$18, Lookups!$C$3:$C$18)","v":"Closed"},"Modification",null,"NTS CMF","Rejected",{"$f":"LOOKUP(J153,Lookups!$A$3:$A$20,Lookups!$B$3:$B$20)","v":"End of process"},"2018-07-31","National Grid NTS","n/a","National Grid NTS","n/a","Panel Requested 18/01/18","2018-02-08","2018-04-03","N",null,"No"]
["0636",null,"Updating the parameters for the NTS Optional Commodity Charge ","Vermilion Energy Ireland Ltd","2017-10-10",{"$f":"LOOKUP($J154,Lookups!$A$3:$A$18, Lookups!$C$3:$C$18)","v":"Closed"},"Modification",null,"NTS CMF","Rejected",{"$f":"LOOKUP(J154,Lookups!$A$3:$A$20,Lookups!$B$3:$B$20)","v":"End of process"},"2018-07-31",null,null,"National Grid NTS","n/a","Panel Requested Text 21/12/17","2018-01-16","2018-04-03","N",null,"No"]
["0635","A","Reforms to incentivise accurate and timely DM reads and to remove the Transporter Class 1 read obligation","Wales & West Utilities","2018-01-10",{"$f":"LOOKUP($J155,Lookups!$A$3:$A$18, Lookups!$C$3:$C$18)","v":"Closed"},"Modification",null,"Distribution","Renumbered",{"$f":"LOOKUP(J155,Lookups!$A$3:$A$20,Lookups!$B$3:$B$20)","v":"End of process"},"2018-01-18","SGN",5,"SGN",5,null,null,null," ",null,"No"]
["0635",null,"Reforms to incentivise accurate and timely DM reads for Class 2 Meter Points to improve the accuracy of Unidentified Gas allocation","first:utility","2017-10-09",{"$f":"LOOKUP($J156,Lookups!$A$3:$A$18, Lookups!$C$3:$C$18)","v":"Closed"},"Modification",null,"Distribution","Withdrawn",{"$f":"LOOKUP(J156,Lookups!$A$3:$A$20,Lookups!$B$3:$B$20)","v":"End of process"},"2018-02-20",null,null,"SGN",5,null,null,null,{"$f":"IF(ISBLANK(S156),\" \",IF(S156<=R156,\"Y\",\"N\"))","v":" "},null,"No"]
["0634",null,"(Urgent) - Revised estimation process for DM sites with D-7 zero consumption","first:utility","2017-10-09",{"$f":"LOOKUP($J157,Lookups!$A$3:$A$18, Lookups!$C$3:$C$18)","v":"Closed"},"Urgent",null,"Distribution","Implemented",{"$f":"LOOKUP(J157,Lookups!$A$3:$A$20,Lookups!$B$3:$B$20)","v":"Effective date"},"2017-11-20",null,null,"Cadent",4,"Panel Requested Text 19/10/17","2017-11-09","2017-11-07","Y",null,"No"]
["0633","V","Mandate monthly read submission for Smart and AMR sites from 01 February 2018","Corona Energy","2017-12-21",{"$f":"LOOKUP($J158,Lookups!$A$3:$A$18, Lookups!$C$3:$C$18)","v":"Closed"},"Modification",null,"Distribution","Rejected",{"$f":"LOOKUP(J158,Lookups!$A$3:$A$20,Lookups!$B$3:$B$20)","v":"End of process"},"2018-01-31","Northern Gas Networks",3,"Northern Gas Networks",3,"Panel Requested Text 21/12/17","2018-01-16","2018-01-08","Y",null,"No"]
["0633",null,"Mandate monthly read submission for Smart and AMR sites from 01 December 2017","Corona Energy","2017-10-09",{"$f":"LOOKUP($J159,Lookups!$A$3:$A$18, Lookups!$C$3:$C$18)","v":"Closed"},"Modification",null,"Distribution","Withdrawn",{"$f":"LOOKUP(J159,Lookups!$A$3:$A$20,Lookups!$B$3:$B$20)","v":"End of process"},"2017-12-21",null,null,"Northern Gas Networks",3,"Panel Requested Text 19/10/17","2017-11-09","2017-11-07","Y",null,"No"]
["0632","S","Shipper asset details reconcilation","Corona Energy","2017-10-09",{"$f":"LOOKUP($J160,Lookups!$A$3:$A$18, Lookups!$C$3:$C$18)","v":"Closed"},"Self-Governance",null,"Distribution","Implemented",{"$f":"LOOKUP(J160,Lookups!$A$3:$A$20,Lookups!$B$3:$B$20)","v":"Effective date"},"2018-04-10",null,null,"Cadent",2,"Panel Requested 18/01/18","2018-02-08","2018-01-24","Y",null,"No"]
["0631","R","Review of NDM algorithm post-Nexus","Corona Energy","2017-10-06",{"$f":"LOOKUP($J161,Lookups!$A$3:$A$18, Lookups!$C$3:$C$18)","v":"Closed"},"Request",null,"Distribution","Request Closed",{"$f":"LOOKUP(J161,Lookups!$A$3:$A$20,Lookups!$B$3:$B$20)","v":"End of process"},"2018-04-19",null,null,"n/a","n/a",null,null,null," ",null,"No"]
["0630","R","Review of the consequential changes required in UNC as a result of the Ofgem Switching Programme","Cadent","2017-10-06",{"$f":"LOOKUP($J162,Lookups!$A$3:$A$18, Lookups!$C$3:$C$18)","v":"Closed"},"Request",null,"Distribution","Request Closed",{"$f":"LOOKUP(J162,Lookups!$A$3:$A$20,Lookups!$B$3:$B$20)","v":"End of process"},"2019-05-16",null,null,"n/a","n/a",null,null,null," ",null,"No"]
["0629","S","Standard Design Connections: A2O connection process modification","National Grid NTS","2017-10-04",{"$f":"LOOKUP($J163,Lookups!$A$3:$A$18, Lookups!$C$3:$C$18)","v":"Closed"},"Self-Governance",null,"Transmission","Implemented",{"$f":"LOOKUP(J163,Lookups!$A$3:$A$20,Lookups!$B$3:$B$20)","v":"Effective date"},"2018-10-30",null,null,"National Grid NTS","n/a","Text provided with mod",null,"2018-03-26","N",null,"No"]
["0628","S","Standard Design Connections: PARCA process","National Grid NTS","2017-10-04",{"$f":"LOOKUP($J164,Lookups!$A$3:$A$18, Lookups!$C$3:$C$18)","v":"Closed"},"Self-Governance",null,"Transmission","Implemented",{"$f":"LOOKUP(J164,Lookups!$A$3:$A$20,Lookups!$B$3:$B$20)","v":"Effective date"},"2018-10-30",null,null,"National Grid NTS","n/a","Text provided with mod",null,"2018-03-26","N",null,"No"]
["0627","S","Removal of the absolute requirement to include a Remotely Operable Valve (ROV) Installation for all new NTS Exit Connections","National Grid NTS","2017-09-08",{"$f":"LOOKUP($J165,Lookups!$A$3:$A$18, Lookups!$C$3:$C$18)","v":"Closed"},"Self-Governance",null,"Transmission","Implemented",{"$f":"LOOKUP(J165,Lookups!$A$3:$A$20,Lookups!$B$3:$B$20)","v":"Effective date"},"2018-01-17",null,null,"National Grid NTS","n/a","Panel Requested Text 16/11/17","2017-11-16","2017-11-16","Y",null,"No"]
["0626","FT","Updating UNC Section B to correct a number of references to the timing of processes associated with the start of a Gas Day","National Grid NTS","2017-09-08",{"$f":"LOOKUP($J166,Lookups!$A$3:$A$18, Lookups!$C$3:$C$18)","v":"Closed"},"Fast Track",null,"Transmission","Implemented",{"$f":"LOOKUP(J166,Lookups!$A$3:$A$20,Lookups!$B$3:$B$20)","v":"Effective date"},"2017-10-13",null,null,"National Grid NTS","n/a",null,null,null," ",null,"No"]
["0625",null,"Extension of 4 months to 10 months to transfer non-mandatory sites from Class 1","Gazprom","2017-08-01",{"$f":"LOOKUP($J167,Lookups!$A$3:$A$18, Lookups!$C$3:$C$18)","v":"Closed"},"Modification",null,"Distribution","Implemented",{"$f":"LOOKUP(J167,Lookups!$A$3:$A$20,Lookups!$B$3:$B$20)","v":"Effective date"},"2017-11-28",null,null,"SGN",1,"Panel Requested Text 19/10/17","2017-10-19","2017-10-19","Y",null,"No"]
["0624","R","Review of arrangements for Retrospective Adjustment of Meter Information, Meter Point/Supply Point and Address data","Cadent","2017-07-07",{"$f":"LOOKUP($J168,Lookups!$A$3:$A$18, Lookups!$C$3:$C$18)","v":"Closed"},"Request",null,"Other","Request Closed",{"$f":"LOOKUP(J168,Lookups!$A$3:$A$20,Lookups!$B$3:$B$20)","v":"End of process"},"2018-02-15",null,null,"N/A - Request","n/a","No Text req'd - Request",null,null," ",null,"No"]
["0623",null,"Governance Arrangements for Alternatives to Self-Governance Modification Proposals","Wales & West Utilities","2017-07-03",{"$f":"LOOKUP($J169,Lookups!$A$3:$A$18, Lookups!$C$3:$C$18)","v":"Closed"},"Modification",null,"Governance","Implemented",{"$f":"LOOKUP(J169,Lookups!$A$3:$A$20,Lookups!$B$3:$B$20)","v":"Effective date"},"2018-04-20",null,null,"Wales & West Utilities","n/a","Panel Requested Text 16/11/17","2017-12-07","2017-11-30","Y",null,"No"]
["0622",null,"Correct allocation of Shrinkage Error as identified by the AUGE","Gazprom","2017-06-13",{"$f":"LOOKUP($J170,Lookups!$A$3:$A$18, Lookups!$C$3:$C$18)","v":"Closed"},"Modification",null,"Distribution","Withdrawn",{"$f":"LOOKUP(J170,Lookups!$A$3:$A$20,Lookups!$B$3:$B$20)","v":"End of process"},"2017-07-03",null,null,"Cadent",8,null,null,null," ",null,"No"]
["0621","L","Amendments to Gas Transmission Charging Regime ","Shell","2018-04-26",{"$f":"LOOKUP($J171,Lookups!$A$3:$A$18, Lookups!$C$3:$C$18)","v":"Closed"},"Modification",null,"NTS CMF","Rejected",{"$f":"LOOKUP(J171,Lookups!$A$3:$A$20,Lookups!$B$3:$B$20)","v":"End of process"},"2018-12-20",null,null,"National Grid NTS","n/a",null,null,null," ",null,"No"]
["0621","K","Amendments to Gas Transmission Charging Regime ","Gateway LNG\nCompany Ltd","2018-04-24",{"$f":"LOOKUP($J172,Lookups!$A$3:$A$18, Lookups!$C$3:$C$18)","v":"Closed"},"Modification",null,"NTS CMF","Rejected",{"$f":"LOOKUP(J172,Lookups!$A$3:$A$20,Lookups!$B$3:$B$20)","v":"End of process"},"2018-12-20",null,null,"National Grid NTS","n/a",null,null,null," ",null,"No"]
["0621","J","Amendments to Gas Transmission Charging Regime ","RWE  ","2018-03-08",{"$f":"LOOKUP($J173,Lookups!$A$3:$A$18, Lookups!$C$3:$C$18)","v":"Closed"},"Modification",null,"NTS CMF","Rejected",{"$f":"LOOKUP(J173,Lookups!$A$3:$A$20,Lookups!$B$3:$B$20)","v":"End of process"},"2018-12-20",null,null,"National Grid NTS","n/a",null,null,null," ",null,"No"]
["0621","H","Amendments to Gas Transmission Charging Regime","E.ON UK","2018-03-02",{"$f":"LOOKUP($J174,Lookups!$A$3:$A$18, Lookups!$C$3:$C$18)","v":"Closed"},"Modification",null,"NTS CMF","Rejected",{"$f":"LOOKUP(J174,Lookups!$A$3:$A$20,Lookups!$B$3:$B$20)","v":"End of process"},"2018-12-20",null,null,"National Grid NTS","n/a",null,null,null," ",null,"No"]
["0621","G","Amendments to Gas Transmission Charging Regime","Vitol S.A. Geneva","2018-03-02",{"$f":"LOOKUP($J175,Lookups!$A$3:$A$18, Lookups!$C$3:$C$18)","v":"Closed"},"Modification",null,"NTS CMF","Withdrawn",{"$f":"LOOKUP(J175,Lookups!$A$3:$A$20,Lookups!$B$3:$B$20)","v":"End of process"},"2018-04-20",null,null,"National Grid NTS","n/a",null,null,null," ",null,{"$f":"IF(AND(F175=\"Live\",K175=\"Ofgem decision\"),\"Yes\",\"No\")","v":"No"}]
["0621","F ","Amendments to Gas Transmission Charging Regime","Interconnector","2018-02-02",{"$f":"LOOKUP($J176,Lookups!$A$3:$A$18, Lookups!$C$3:$C$18)","v":"Closed"},"Modification",null,"NTS CMF","Rejected",{"$f":"LOOKUP(J176,Lookups!$A$3:$A$20,Lookups!$B$3:$B$20)","v":"End of process"},"2018-12-20",null,null,"National Grid NTS","n/a",null,null,null," ",null,"No"]
["0621","E","Amendments to Gas Transmission Charging Regime","Uniper Energy","2018-02-02",{"$f":"LOOKUP($J177,Lookups!$A$3:$A$18, Lookups!$C$3:$C$18)","v":"Closed"},"Modification",null,"NTS CMF","Rejected",{"$f":"LOOKUP(J177,Lookups!$A$3:$A$20,Lookups!$B$3:$B$20)","v":"End of process"},"2018-12-20",null,null,"National Grid NTS","n/a",null,null,null," ",null,"No"]
["0621","D","Amendments to Gas Transmission Charging Regime","Wales & West Utilities","2018-02-01",{"$f":"LOOKUP($J178,Lookups!$A$3:$A$18, Lookups!$C$3:$C$18)","v":"Closed"},"Modification",null,"NTS CMF","Rejected",{"$f":"LOOKUP(J178,Lookups!$A$3:$A$20,Lookups!$B$3:$B$20)","v":"End of process"},"2018-12-20",null,null,"National Grid NTS","n/a",null,null,null," ",null,"No"]
["0621","C","Amendments to Gas Transmission Charging Regime","Centrica","2018-02-01",{"$f":"LOOKUP($J179,Lookups!$A$3:$A$18, Lookups!$C$3:$C$18)","v":"Closed"},"Modification",null,"NTS CMF","Rejected",{"$f":"LOOKUP(J179,Lookups!$A$3:$A$20,Lookups!$B$3:$B$20)","v":"End of process"},"2018-12-20",null,null,"National Grid NTS","n/a",null,null,null," ",null,"No"]
["0621","B","Amendments to Gas Transmission Charging Regime","SSE","2017-12-12",{"$f":"LOOKUP($J180,Lookups!$A$3:$A$18, Lookups!$C$3:$C$18)","v":"Closed"},"Modification",null,"NTS CMF","Rejected",{"$f":"LOOKUP(J180,Lookups!$A$3:$A$20,Lookups!$B$3:$B$20)","v":"End of process"},"2018-12-20",null,null,"National Grid NTS","n/a",null,null,null," ",null,"No"]
["0621","A","Amendments to Gas Transmission Charging Regime","Storengy","2017-12-12",{"$f":"LOOKUP($J181,Lookups!$A$3:$A$18, Lookups!$C$3:$C$18)","v":"Closed"},"Modification",null,"NTS CMF","Rejected",{"$f":"LOOKUP(J181,Lookups!$A$3:$A$20,Lookups!$B$3:$B$20)","v":"End of process"},"2018-12-20",null,null,"National Grid NTS","n/a",null,null,null," ",null,"No"]
["0621",null,"Amendments to Gas Transmission Charging Regime","National Grid NTS","2017-06-05",{"$f":"LOOKUP($J182,Lookups!$A$3:$A$18, Lookups!$C$3:$C$18)","v":"Closed"},"Modification",null,"NTS CMF","Rejected",{"$f":"LOOKUP(J182,Lookups!$A$3:$A$20,Lookups!$B$3:$B$20)","v":"End of process"},"2018-12-20",null,null,"n/a","n/a",null,null,null," ",null,"No"]
["0620","S","Deferral of the UK Link Manual delivery date (further revision)","Cadent","2017-06-02",{"$f":"LOOKUP($J183,Lookups!$A$3:$A$18, Lookups!$C$3:$C$18)","v":"Closed"},"Self-Governance",null,"Distribution","Implemented",{"$f":"LOOKUP(J183,Lookups!$A$3:$A$20,Lookups!$B$3:$B$20)","v":"Effective date"},"2017-07-31",null,null,"n/a","n/a","Text provided with mod","2017-06-05","2017-06-05","Y",null,"No"]
["0619","B","Application of proportionate ratchet charges to daily read sites","Centrica Energy","2017-10-31",{"$f":"LOOKUP($J184,Lookups!$A$3:$A$18, Lookups!$C$3:$C$18)","v":"Closed"},"Modification",null,"Distribution","Rejected",{"$f":"LOOKUP(J184,Lookups!$A$3:$A$20,Lookups!$B$3:$B$20)","v":"End of process"},"2018-07-27",null,null,"Wales & West Utilities",7,"Panel Requested Text 21/12/17","2018-01-16","2018-01-16","Y",null,"No"]
["0619","A","Protection from ratchet charges for daily read customers with an AQ of 732,00kWh and below","Scotia Gas Networks","2017-09-08",{"$f":"LOOKUP($J185,Lookups!$A$3:$A$18, Lookups!$C$3:$C$18)","v":"Closed"},"Modification",null,"Distribution","Rejected",{"$f":"LOOKUP(J185,Lookups!$A$3:$A$20,Lookups!$B$3:$B$20)","v":"End of process"},"2018-07-27",null,null,"Wales & West Utilities",7,"Panel Requested Text 21/12/17","2018-01-16","2017-10-27","Y",null,"No"]
["0619",null,"Application of proportionate ratchet charges to daily read sites ","Gazprom","2017-05-10",{"$f":"LOOKUP($J186,Lookups!$A$3:$A$18, Lookups!$C$3:$C$18)","v":"Closed"},"Modification",null,"Distribution","Rejected",{"$f":"LOOKUP(J186,Lookups!$A$3:$A$20,Lookups!$B$3:$B$20)","v":"End of process"},"2018-07-27",null,null,"Wales & West Utilities",7,"Panel Requested Text 21/09/17","2017-10-12","2017-09-20","Y",null,"No"]
["0618",null,"Extension of Invoicing Contingency Arrangements in case of Project Nexus defect","Wales & West Utilities","2017-05-03",{"$f":"LOOKUP($J187,Lookups!$A$3:$A$18, Lookups!$C$3:$C$18)","v":"Closed"},"Urgent",null,"Distribution","Implemented",{"$f":"LOOKUP(J187,Lookups!$A$3:$A$20,Lookups!$B$3:$B$20)","v":"Effective date"},"2017-06-01",null,null,"Wales & West Utilities","n/a","Text provided with mod","2017-05-05","2017-05-05","Y",null,"No"]
["0617","S","Revised UK Link Manual delivery date","Cadent","2017-04-07",{"$f":"LOOKUP($J188,Lookups!$A$3:$A$18, Lookups!$C$3:$C$18)","v":"Closed"},"Self-Governance",null,"Distribution","Implemented",{"$f":"LOOKUP(J188,Lookups!$A$3:$A$20,Lookups!$B$3:$B$20)","v":"Effective date"},"2017-06-01",null,null,"Cadent","n/a","Text provided with mod","2017-04-20","2017-04-20","Y",null,"No"]
["0616","S","Capacity Conversion Mechanism for Interconnection Points","National Grid NTS","2017-04-06",{"$f":"LOOKUP($J189,Lookups!$A$3:$A$18, Lookups!$C$3:$C$18)","v":"Closed"},"Self-Governance",null,"Transmission","Implemented",{"$f":"LOOKUP(J189,Lookups!$A$3:$A$20,Lookups!$B$3:$B$20)","v":"Effective date"},"2017-11-10","National Grid Gas Distribution","n/a","National Grid NTS","n/a","Panel Requested Text 17/08/17","2017-09-08","2017-09-07","Y",null,"No"]
["0615","S","Representation on DSC Committees – amendment to include mid-year appointments","E.ON UK","2017-03-31",{"$f":"LOOKUP($J190,Lookups!$A$3:$A$18, Lookups!$C$3:$C$18)","v":"Closed"},"Self-Governance",null,"Distribution","Implemented",{"$f":"LOOKUP(J190,Lookups!$A$3:$A$20,Lookups!$B$3:$B$20)","v":"Effective date"},"2017-09-11","National Grid Gas Distribution","n/a","Cadent",6,"Panel Requested Text 15/06/2017","2017-07-06","2017-06-21","Y",null,"No"]
["0614",null,"Introducing IHD (In-Home Display) Installed Status of Failed ","EDF Energy","2017-03-08",{"$f":"LOOKUP($J191,Lookups!$A$3:$A$18, Lookups!$C$3:$C$18)","v":"Closed"},"Modification",null,"Distribution","Withdrawn",{"$f":"LOOKUP(J191,Lookups!$A$3:$A$20,Lookups!$B$3:$B$20)","v":"End of process"},"2017-06-14","National Grid Gas Distribution","n/a","n/a","n/a","No Text req'd - enabling Mod",null,null," ",null,"No"]
["0613","S","Revised UK Link Manual CDSP Data Services Document","Cadent","2017-03-07",{"$f":"LOOKUP($J192,Lookups!$A$3:$A$18, Lookups!$C$3:$C$18)","v":"Closed"},"Self-Governance",null,"Distribution","Implemented",{"$f":"LOOKUP(J192,Lookups!$A$3:$A$20,Lookups!$B$3:$B$20)","v":"Effective date"},"2017-10-13","Scotia Gas Networks","n/a","Cadent","n/a","Panel Requested Text 20/07/17","2017-08-10","2017-08-09","Y",null,"No"]
["0612","R","Project Management and Assurance provisions for gas industry changes ","Scotia Gas Networks","2017-02-06",{"$f":"LOOKUP($J193,Lookups!$A$3:$A$18, Lookups!$C$3:$C$18)","v":"Closed"},"Request",null,"None","Withdrawn",{"$f":"LOOKUP(J193,Lookups!$A$3:$A$20,Lookups!$B$3:$B$20)","v":"End of process"},"2017-03-21",null,null,"Scotia Gas Networks","n/a","No Text req'd - Request",null,null," ","n/a","No"]
["0611","S","Amendments to the firm capacity payable price at Interconnection Points","National Grid NTS","2017-02-03",{"$f":"LOOKUP($J194,Lookups!$A$3:$A$18, Lookups!$C$3:$C$18)","v":"Closed"},"Modification",null,"Transmission","Implemented",{"$f":"LOOKUP(J194,Lookups!$A$3:$A$20,Lookups!$B$3:$B$20)","v":"Effective date"},"2017-08-11",null,null,"National Grid NTS","n/a","Panel Requested Text 18/05/17","2017-06-09","2017-05-26","Y","n/a","No"]
["0610","S","Project Nexus - Miscellaneous Requirements","Cadent","2017-01-11",{"$f":"LOOKUP($J195,Lookups!$A$3:$A$18, Lookups!$C$3:$C$18)","v":"Closed"},"Self-Governance",null,"Distribution","Implemented",{"$f":"LOOKUP(J195,Lookups!$A$3:$A$20,Lookups!$B$3:$B$20)","v":"Effective date"},"2017-06-07",null,null,"Cadent","n/a","Panel Requested Text 16/02/17","2017-03-09","2017-02-17","Y","n/a","No"]
["0609","A","Transitional arrangements for gas settlement and replacement of Meter Readings, retaining AQ2017\n(Project Nexus transitional modification)","British Gas","2017-02-08",{"$f":"LOOKUP($J196,Lookups!$A$3:$A$18, Lookups!$C$3:$C$18)","v":"Closed"},"Modification",null,"Distribution","Withdrawn",{"$f":"LOOKUP(J196,Lookups!$A$3:$A$20,Lookups!$B$3:$B$20)","v":"End of process"},"2017-03-10",null,null,"Cadent","n/a","Panel Requested Text 16/02/17","2017-03-09","2017-02-17","Y",null,"No"]
["0609",null,"Transitional arrangements for gas settlement and replacement of Meter Readings (Project Nexus transitional modification)","Cadent","2017-01-09",{"$f":"LOOKUP($J197,Lookups!$A$3:$A$18, Lookups!$C$3:$C$18)","v":"Closed"},"Modification",null,"Distribution","Implemented",{"$f":"LOOKUP(J197,Lookups!$A$3:$A$20,Lookups!$B$3:$B$20)","v":"Effective date"},"2017-05-22",null,null,"Cadent","n/a","Panel Requested Text 19/01/17","2017-02-09","2017-02-17","N","n/a","No"]
["0608","S","Implementation of 'single service provision' arrangements for iGT connected system exit points (Project Nexus transitional modification)","Cadent","2017-01-09",{"$f":"LOOKUP($J198,Lookups!$A$3:$A$18, Lookups!$C$3:$C$18)","v":"Closed"},"Self-Governance",null,"Distribution","Implemented",{"$f":"LOOKUP(J198,Lookups!$A$3:$A$20,Lookups!$B$3:$B$20)","v":"Effective date"},"2017-05-15",null,null,"Cadent","n/a","Panel Requested Text 19/01/17","2017-02-09","2017-02-01","Y","n/a","No"]
["0607",null,"Amendment to Gas Quality NTS Entry Specification at the St Fergus NSMP System Entry Point","BP","2016-12-07",{"$f":"LOOKUP($J199,Lookups!$A$3:$A$18, Lookups!$C$3:$C$18)","v":"Closed"},"Modification",null,"Transmission","Implemented",{"$f":"LOOKUP(J199,Lookups!$A$3:$A$20,Lookups!$B$3:$B$20)","v":"Effective date"},"2018-02-28",null,null,"National Grid NTS","n/a","No Text req'd - enabling Mod",null,null," ",null,"No"]
["0606","S","National Grid Gas plc and National Grid Gas Distribution Limited transitional invoicing arrangement post Project Nexus implementation","Cadent","2016-12-05",{"$f":"LOOKUP($J200,Lookups!$A$3:$A$18, Lookups!$C$3:$C$18)","v":"Closed"},"Self-Governance",null,"Distribution","Implemented",{"$f":"LOOKUP(J200,Lookups!$A$3:$A$20,Lookups!$B$3:$B$20)","v":"Effective date"},"Nexus Imp Date",null,null,"Cadent","n/a","Panel Requested Text 19/01/17","2017-02-09","2017-01-20","Y","n/a","No"]
["0605","S","Amendments to TPD Section K - Additional Methods to Procure and Dispose of Operating Margins Gas","National Grid NTS","2016-12-02",{"$f":"LOOKUP($J201,Lookups!$A$3:$A$18, Lookups!$C$3:$C$18)","v":"Closed"},"Self-Governance",null,"Transmission","Implemented",{"$f":"LOOKUP(J201,Lookups!$A$3:$A$20,Lookups!$B$3:$B$20)","v":"Effective date"},"2017-08-11",null,null,"National Grid NTS","n/a","Panel Requested Text 19/01/17","2017-02-09","2017-01-19","Y","n/a","No"]
["0604","S","Central Data Services Provider – Arrangements following implementation of Project Nexus","Cadent","2016-11-30",{"$f":"LOOKUP($J202,Lookups!$A$3:$A$18, Lookups!$C$3:$C$18)","v":"Closed"},"Self-Governance",null,"Other","Implemented",{"$f":"LOOKUP(J202,Lookups!$A$3:$A$20,Lookups!$B$3:$B$20)","v":"Effective date"},"Nexus Imp Date",null,null,"Cadent","n/a","Panel Requested Text 16/02/17","2017-03-09","2017-02-16","Y","n/a","No"]
["0603","S","Removal of liability for members of Performance Assurance Committee","Wales & West Utilities","2016-11-08",{"$f":"LOOKUP($J203,Lookups!$A$3:$A$18, Lookups!$C$3:$C$18)","v":"Closed"},"Self-Governance",null,"Distribution","Implemented",{"$f":"LOOKUP(J203,Lookups!$A$3:$A$20,Lookups!$B$3:$B$20)","v":"Effective date"},"2017-01-11",null,null,"Wales & West Utilities","n/a","Text provided with mod","2016-12-15","2016-12-15","Y","n/a","No"]
["0602","A","Implementation of Non Effective Days and Variant Non-Business Days for Project Nexus Implementation, maintaining a minimum of two Supply Point Business Days (Project Nexus transitional modification) ","RWE Npower","2016-12-23",{"$f":"LOOKUP($J204,Lookups!$A$3:$A$18, Lookups!$C$3:$C$18)","v":"Closed"},"Modification",null,"Distribution","Implemented",{"$f":"LOOKUP(J204,Lookups!$A$3:$A$20,Lookups!$B$3:$B$20)","v":"Effective date"},"2017-02-20",null,null,"Cadent","n/a","Panel Requested Text 19/01/17","2017-01-19","2017-01-19","Y","n/a","No"]
["0602",null,"Implementation of Non Effective Days and Variant Non-Business Days for Project Nexus Implementation (Project Nexus transitional modification) ","Cadent","2016-11-07",{"$f":"LOOKUP($J205,Lookups!$A$3:$A$18, Lookups!$C$3:$C$18)","v":"Closed"},"Modification",null,"Distribution","Rejected",{"$f":"LOOKUP(J205,Lookups!$A$3:$A$20,Lookups!$B$3:$B$20)","v":"End of process"},"2017-02-17",null,null,"Cadent","n/a","Panel Requested Text 15/12/16","2017-01-10","2017-01-12","N","n/a","No"]
["0601","FT","Revision of National Grid Gas plc’s Individual Network Code to reflect the correct company name","National Grid NTS","2016-11-01",{"$f":"LOOKUP($J206,Lookups!$A$3:$A$18, Lookups!$C$3:$C$18)","v":"Closed"},"Fast Track",null,"Transmission","Implemented",{"$f":"LOOKUP(J206,Lookups!$A$3:$A$20,Lookups!$B$3:$B$20)","v":"Effective date"},"2016-12-09","National Grid NTS","n/a","National Grid NTS","n/a","FT - text provided with mod ","2016-11-17","2016-11-17","Y","n/a","No"]
["0600","S","Amend obligation for the acceptance of EPDQD revisions made after D+5 ","National Grid NTS","2016-10-10",{"$f":"LOOKUP($J207,Lookups!$A$3:$A$18, Lookups!$C$3:$C$18)","v":"Closed"},"Modification",null,"Transmission","Implemented",{"$f":"LOOKUP(J207,Lookups!$A$3:$A$20,Lookups!$B$3:$B$20)","v":"Effective date"},"2017-04-07","National Grid NTS","n/a","National Grid NTS","n/a","Panel Requested Text 20/10/16","2016-11-10","2016-11-10","Y","n/a","No"]
["0599",null,"Amendments to Capacity Allocations Mechanisms (Interruptible) to comply with EU Capacity Regulations ","National Grid NTS","2016-10-10",{"$f":"LOOKUP($J208,Lookups!$A$3:$A$18, Lookups!$C$3:$C$18)","v":"Closed"},"Modification",null,"European","Withdrawn",{"$f":"LOOKUP(J208,Lookups!$A$3:$A$20,Lookups!$B$3:$B$20)","v":"End of process"},"2016-11-16","National Grid NTS","n/a","National Grid NTS","n/a","Mod withdrawn"," ",null," ","n/a","No"]
["0598","S","Amendments to Capacity Allocations Mechanisms to comply with EU Capacity Regulations ","National Grid NTS","2016-10-10",{"$f":"LOOKUP($J209,Lookups!$A$3:$A$18, Lookups!$C$3:$C$18)","v":"Closed"},"Self-Governance",null,"Transmission","Implemented",{"$f":"LOOKUP(J209,Lookups!$A$3:$A$20,Lookups!$B$3:$B$20)","v":"Effective date"},"2017-04-06","National Grid NTS","n/a","National Grid NTS","n/a","Panel Requested Text 15/12/16","2017-01-10","2016-12-16","Y","n/a","No"]
["0597",null,"Rules for the release of incremental capacity at Interconnection Points","National Grid NTS","2016-10-10",{"$f":"LOOKUP($J210,Lookups!$A$3:$A$18, Lookups!$C$3:$C$18)","v":"Closed"},"Modification",null,"Transmission","Implemented",{"$f":"LOOKUP(J210,Lookups!$A$3:$A$20,Lookups!$B$3:$B$20)","v":"Effective date"},"2017-04-06","National Grid NTS","n/a","National Grid NTS","n/a","Panel Requested Text 15/12/16","2017-01-10","2016-12-23","Y","n/a","No"]
["0596",null,"Implementing CGR3 decisions on Significant Code Reviews and self-governance","Wales & West Utilities","2016-10-07",{"$f":"LOOKUP($J211,Lookups!$A$3:$A$18, Lookups!$C$3:$C$18)","v":"Closed"},"Modification",null,"Governance","Implemented",{"$f":"LOOKUP(J211,Lookups!$A$3:$A$20,Lookups!$B$3:$B$20)","v":"Effective date"},"2017-02-17","National Grid NTS","n/a","Wales & West Utilities ","n/a","Panel Requested Text 20/10/16","2016-11-10","2016-10-20","Y","n/a","No"]
["0595","S","Amendment to the Arrangements between National Grid NTS and GNI at the Moffat IP to Provide for Interruption of Virtual Reverse Flow","National Grid NTS","2016-09-02",{"$f":"LOOKUP($J212,Lookups!$A$3:$A$18, Lookups!$C$3:$C$18)","v":"Closed"},"Self-Governance",null,"Transmission","Implemented",{"$f":"LOOKUP(J212,Lookups!$A$3:$A$20,Lookups!$B$3:$B$20)","v":"Effective date"},"2016-12-09","National Grid NTS","n/a","n/a","n/a","No Text req'd - enabling Mod",null,null," ","n/a","No"]
["0594","R","Meter Reading Submission for Advanced & Smart Metering  ","Gazprom","2016-09-02",{"$f":"LOOKUP($J213,Lookups!$A$3:$A$18, Lookups!$C$3:$C$18)","v":"Closed"},"Request",null,"Distribution","Request Closed",{"$f":"LOOKUP(J213,Lookups!$A$3:$A$20,Lookups!$B$3:$B$20)","v":"End of process"},"2017-12-21","National Grid NTS","n/a","N/A - Request","n/a","No Text req'd - Request",null,null," ","n/a","No"]
["0593","V","Provision of access to Domestic Consumer data for Price Comparison Websites and Third Party Intermediaries","Northern Gas Networks","2017-07-20",{"$f":"LOOKUP($J214,Lookups!$A$3:$A$18, Lookups!$C$3:$C$18)","v":"Closed"},"Modification",null,"Distribution","Implemented",{"$f":"LOOKUP(J214,Lookups!$A$3:$A$20,Lookups!$B$3:$B$20)","v":"Effective date"},"2017-12-15","National Grid NTS","n/a","Northern Gas Networks","n/a","Panel Requested Text 15/09/2016","2016-10-06","2016-10-07","N","n/a","No"]
["0593",null,"Provision of access to Domestic Consumer data for Price Comparison Websites and Third Party Intermediaries","Northern Gas Networks","2016-08-08",{"$f":"LOOKUP($J215,Lookups!$A$3:$A$18, Lookups!$C$3:$C$18)","v":"Closed"},"Modification",null,"Distribution","Withdrawn",{"$f":"LOOKUP(J215,Lookups!$A$3:$A$20,Lookups!$B$3:$B$20)","v":"End of process"},"2017-07-20","National Grid NTS","n/a","Northern Gas Networks","n/a","Panel Requested Text 15/09/2016","2016-10-06","2016-10-07","N","n/a","No"]
["0592","S","Separation of National Grid Transmission and Distribution owned networks - Transitional invoicing arrangements","Cadent","2016-07-13",{"$f":"LOOKUP($J216,Lookups!$A$3:$A$18, Lookups!$C$3:$C$18)","v":"Closed"},"Self-Governance",null,"Distribution","Implemented",{"$f":"LOOKUP(J216,Lookups!$A$3:$A$20,Lookups!$B$3:$B$20)","v":"Effective date"},"2016-09-30","National Grid NTS","n/a","Cadent","n/a","Panel Requested Text 21/07/2016","2016-08-11","2016-08-05","Y","n/a","No"]
["0591","S","DSR - Removal of 7 day rolling profile functionality","National Grid NTS","2016-07-13",{"$f":"LOOKUP($J217,Lookups!$A$3:$A$18, Lookups!$C$3:$C$18)","v":"Closed"},"Self-Governance",null,"Demand Side Response","Implemented",{"$f":"LOOKUP(J217,Lookups!$A$3:$A$20,Lookups!$B$3:$B$20)","v":"Effective date"},"2016-09-12","National Grid NTS","n/a","National Grid NTS","n/a","Text provided with mod","2016-07-21","2016-07-21","Y","n/a","No"]
["0590","R","Review the options to remove the use of Fax machines within the UNC","E.ON UK","2016-06-27",{"$f":"LOOKUP($J218,Lookups!$A$3:$A$18, Lookups!$C$3:$C$18)","v":"Closed"},"Request",null,"Distribution","Withdrawn",{"$f":"LOOKUP(J218,Lookups!$A$3:$A$20,Lookups!$B$3:$B$20)","v":"End of process"},"2016-08-16","National Grid NTS","n/a","n/a","n/a","No Text req'd - Request",null,null," ",null,"No"]
["0589","S","Inclusion of CSEP Supply Meter Points within NDM Sampling Arrangements","E.ON UK","2016-06-27",{"$f":"LOOKUP($J219,Lookups!$A$3:$A$18, Lookups!$C$3:$C$18)","v":"Closed"},"Self-Governance",null,"Distribution","Implemented",{"$f":"LOOKUP(J219,Lookups!$A$3:$A$20,Lookups!$B$3:$B$20)","v":"Effective date"},"Nexus Imp Date","National Grid NTS","n/a","Scotia Gas Networks",5,"Panel Requested Text 21/07/2016","2016-08-11","2016-08-08","Y","n/a","No"]
["0588","R","Review UNC arrangements relating to the connection to and operation of gas fired generation on DN networks ","Wales & West Utilities","2016-06-06",{"$f":"LOOKUP($J220,Lookups!$A$3:$A$18, Lookups!$C$3:$C$18)","v":"Closed"},"Request",null,"Transmission","Withdrawn",{"$f":"LOOKUP(J220,Lookups!$A$3:$A$20,Lookups!$B$3:$B$20)","v":"End of process"},"2016-08-05","National Grid NTS","n/a","n/a","n/a","No Text req'd - Request",null,null,{"$f":"IF(ISBLANK(S220),\" \",IF(S220<=R220,\"Y\",\"N\"))","v":" "},null,"No"]
["0587",null,"Seasonal Energy Balancing Credit Cover","Opus Energy","2016-06-06",{"$f":"LOOKUP($J221,Lookups!$A$3:$A$18, Lookups!$C$3:$C$18)","v":"Closed"},"Modification",null,"Transmission","Implemented",{"$f":"LOOKUP(J221,Lookups!$A$3:$A$20,Lookups!$B$3:$B$20)","v":"Effective date"},"2017-05-01","National Grid NTS","n/a","National Grid NTS","n/a","Panel Requested Text 18/08/2016","2016-09-09","2016-09-09","Y","Yes","No"]
["0586","FT","Resolution of minor legal text drafting conflicts arising from UNC Modification 0432","Cadent","2016-06-06",{"$f":"LOOKUP($J222,Lookups!$A$3:$A$18, Lookups!$C$3:$C$18)","v":"Closed"},"Fast Track",null,"Distribution","Implemented",{"$f":"LOOKUP(J222,Lookups!$A$3:$A$20,Lookups!$B$3:$B$20)","v":"Effective date"},"Nexus Imp Date","National Grid NTS","n/a","Cadent","n/a","Text provided with mod","2016-06-16","2016-06-16","Y","n/a","No"]
["0585",null,"Separation of NTS and National Grid owned networks – Calculation of Code Credit Limit and Value at Risk","Cadent","2016-06-06",{"$f":"LOOKUP($J223,Lookups!$A$3:$A$18, Lookups!$C$3:$C$18)","v":"Closed"},"Modification",null,"Distribution","Withdrawn",{"$f":"LOOKUP(J223,Lookups!$A$3:$A$20,Lookups!$B$3:$B$20)","v":"End of process"},"2016-08-03","National Grid NTS","n/a","Cadent","n/a","Panel Requested Text 16/06/2016","2016-07-07","2016-06-30","Y","n/a","No"]
["0584","S","Energy Theft Tip-Off Service (ETTOS) – Release of Supplier identity","Northern Gas Networks","2016-06-01",{"$f":"LOOKUP($J224,Lookups!$A$3:$A$18, Lookups!$C$3:$C$18)","v":"Closed"},"Self-Governance",null,"Distribution","Implemented",{"$f":"LOOKUP(J224,Lookups!$A$3:$A$20,Lookups!$B$3:$B$20)","v":"Effective date"},"2016-08-12","National Grid NTS","n/a","Northern Gas Networks","n/a","Text provided with mod","2016-06-16","2016-06-16","Y","n/a","No"]
["0583","S","Requiring an Opening Meter Reading at same User Confirmation","Cadent","2016-05-10",{"$f":"LOOKUP($J225,Lookups!$A$3:$A$18, Lookups!$C$3:$C$18)","v":"Closed"},"Self-Governance",null,"Distribution","Implemented",{"$f":"LOOKUP(J225,Lookups!$A$3:$A$20,Lookups!$B$3:$B$20)","v":"Effective date"},"Nexus Imp Date","National Grid NTS","n/a","Cadent","n/a","Panel Requested Text 19/05/2016","2016-06-10","2016-06-10","Y","n/a","No"]
["0582","S","Amendments to reflect separation in legal ownership of NTS and National Grid owned LDZs to facilitate the sale of National Grid's Gas Distribution Business","Cadent","2016-05-09",{"$f":"LOOKUP($J226,Lookups!$A$3:$A$18, Lookups!$C$3:$C$18)","v":"Closed"},"Self-Governance",null,"Distribution","Implemented",{"$f":"LOOKUP(J226,Lookups!$A$3:$A$20,Lookups!$B$3:$B$20)","v":"Effective date"},"2016-09-12","National Grid NTS","n/a","Cadent","n/a","Panel Requested Text 19/05/2016","2016-05-19","2016-05-19","Y","n/a","No"]
["0581","S","Amending the Oxygen content limit specified in the Network Entry Agreement at Grain LNG","British Gas Trading","2016-04-08",{"$f":"LOOKUP($J227,Lookups!$A$3:$A$18, Lookups!$C$3:$C$18)","v":"Closed"},"Self-Governance",null,"Transmission","Implemented",{"$f":"LOOKUP(J227,Lookups!$A$3:$A$20,Lookups!$B$3:$B$20)","v":"Effective date"},"2016-08-12","National Grid NTS","n/a","n/a","n/a","No Text req'd - enabling Mod",null,null," ","n/a","No"]
["0580","VS","Implementation of Non Effective Days to enable Annual AQ Review (independent of Nexus transition)","Scotia Gas Networks","2016-07-21",{"$f":"LOOKUP($J228,Lookups!$A$3:$A$18, Lookups!$C$3:$C$18)","v":"Closed"},"Self-Governance",null,"Distribution","Implemented",{"$f":"LOOKUP(J228,Lookups!$A$3:$A$20,Lookups!$B$3:$B$20)","v":"Effective date"},"2016-08-12","National Grid NTS","n/a","Scotia Gas Networks","n/a","Text provided with mod","2016-05-19","2016-05-19","Y",null,"No"]
["0580","S","Implementation of Non Effective Days to enable Annual AQ Review (independent of Nexus transition)","Scotia Gas Networks","2016-04-07",{"$f":"LOOKUP($J229,Lookups!$A$3:$A$18, Lookups!$C$3:$C$18)","v":"Closed"},"Self-Governance",null,"Distribution","Withdrawn",{"$f":"LOOKUP(J229,Lookups!$A$3:$A$20,Lookups!$B$3:$B$20)","v":"End of process"},"2016-07-21","National Grid NTS","n/a","Scotia Gas Networks","n/a","Text provided with mod","2016-05-19","2016-05-19","Y",null,"No"]
["0579","FT","Updating code to reflect the correct ‘Designated Person’","British Gas","2016-04-04",{"$f":"LOOKUP($J230,Lookups!$A$3:$A$18, Lookups!$C$3:$C$18)","v":"Closed"},"Fast Track",null,"Governance","Implemented",{"$f":"LOOKUP(J230,Lookups!$A$3:$A$20,Lookups!$B$3:$B$20)","v":"Effective date"},"2016-05-16","National Grid NTS","n/a","Cadent",4,"FT - Text provided with mod","2016-04-21","2016-04-21","Y","n/a","No"]
["0578",null,"Implementation of Retrospective Invoice Adjustment arrangements (Project Nexus transitional modification)","Cadent","2016-03-09",{"$f":"LOOKUP($J231,Lookups!$A$3:$A$18, Lookups!$C$3:$C$18)","v":"Closed"},"Modification",null,"Nexus","Implemented",{"$f":"LOOKUP(J231,Lookups!$A$3:$A$20,Lookups!$B$3:$B$20)","v":"Effective date"},"2016-08-18","National Grid NTS","n/a","Cadent","n/a","Panel Requested Text 21/04/2016","2016-05-13","2016-05-13","Y",null,"No"]
["0577","S","Aligning UNC to the indirect clearing model operated by ICE Endex","National Grid NTS","2016-03-09",{"$f":"LOOKUP($J232,Lookups!$A$3:$A$18, Lookups!$C$3:$C$18)","v":"Closed"},"Self-Governance",null,"Transmission","Implemented",{"$f":"LOOKUP(J232,Lookups!$A$3:$A$20,Lookups!$B$3:$B$20)","v":"Effective date"},"2016-05-16","National Grid NTS","n/a","National Grid NTS","n/a","Text provided with mod","2016-03-17","2016-03-17","Y",null,"No"]
["0576",null,"Generation of an estimated Meter Reading at the Code Cut Off Date in the absence of an actual Meter Reading","Cadent","2016-03-09",{"$f":"LOOKUP($J233,Lookups!$A$3:$A$18, Lookups!$C$3:$C$18)","v":"Closed"},"Modification",null,"Nexus","Implemented",{"$f":"LOOKUP(J233,Lookups!$A$3:$A$20,Lookups!$B$3:$B$20)","v":"Effective date"},"Nexus Imp Date","National Grid NTS","n/a","Cadent","n/a","Panel Requested Text 21/04/2016","2016-05-13","2016-05-13",{"$f":"IF(ISBLANK(S233),\" \",IF(S233<=R233,\"Y\",\"N\"))","v":"Y"},null,"No"]
["0575","R","Consider the Performance Assurance Reporting Requirements for Transporters","Scottish Power","2016-03-03",{"$f":"LOOKUP($J234,Lookups!$A$3:$A$18, Lookups!$C$3:$C$18)","v":"Closed"},"Request",null,"Offtake","Request Closed",{"$f":"LOOKUP(J234,Lookups!$A$3:$A$20,Lookups!$B$3:$B$20)","v":"End of process"},"2016-08-18",null,null,"n/a","n/a","No Text req'd - Request",null,null," ",null,"No"]
["0574",null,"Creating the permission to release supply point data to the Theft Risk Assessment Service (TRAS)","RWE Npower","2016-02-08",{"$f":"LOOKUP($J235,Lookups!$A$3:$A$18, Lookups!$C$3:$C$18)","v":"Closed"},"Modification",null,"Distribution","Implemented",{"$f":"LOOKUP(J235,Lookups!$A$3:$A$20,Lookups!$B$3:$B$20)","v":"Effective date"},"2016-12-09","National Grid NTS","n/a","Northern Gas Networks",3,"Panel Requested Text 16/06/2016","2016-07-07","2016-07-13","N",null,"No"]
["0573",null,"Project Nexus – deferral of implementation of elements of Retrospective Adjustment arrangements","Cadent","2016-02-08",{"$f":"LOOKUP($J236,Lookups!$A$3:$A$18, Lookups!$C$3:$C$18)","v":"Closed"},"Urgent",null,"Distribution","Implemented",{"$f":"LOOKUP(J236,Lookups!$A$3:$A$20,Lookups!$B$3:$B$20)","v":"Effective date"},"Nexus Imp Date","National Grid NTS","n/a","Cadent","n/a","Urgent - text provided with mod"," ",null," ",null,"No"]
["0572",null,"Amendment to the definition of AUG Year within UNC TPD Section E ","British Gas","2016-01-08",{"$f":"LOOKUP($J237,Lookups!$A$3:$A$18, Lookups!$C$3:$C$18)","v":"Closed"},"Modification",null,"Distribution","Implemented",{"$f":"LOOKUP(J237,Lookups!$A$3:$A$20,Lookups!$B$3:$B$20)","v":"Effective date"},"Nexus Imp Date","National Grid Distribution",6,"Scotia Gas Networks",1,"Panel Requested Text 18/02/16","2016-03-10","2016-03-04","Y",null,"No"]
["0571","A","Application of Ratchet Charges to Class 1 Supply Points and Class 2 with an AQ above 73,200kWhs","E.ON UK","2016-05-05",{"$f":"LOOKUP($J238,Lookups!$A$3:$A$18, Lookups!$C$3:$C$18)","v":"Closed"},"Modification",null,"Distribution","Withdrawn",{"$f":"LOOKUP(J238,Lookups!$A$3:$A$20,Lookups!$B$3:$B$20)","v":"End of process"},"2017-05-11","National Grid Distribution",6,"Cadent","n/a","Panel Requested Text 16/06/2016","2016-07-07","2016-06-22","Y",null,"No"]
["0571",null,"Application of Ratchets Charges to Class 1 Supply Points Only","Gazprom","2015-12-24",{"$f":"LOOKUP($J239,Lookups!$A$3:$A$18, Lookups!$C$3:$C$18)","v":"Closed"},"Modification",null,"Distribution","Withdrawn",{"$f":"LOOKUP(J239,Lookups!$A$3:$A$20,Lookups!$B$3:$B$20)","v":"End of process"},"2017-05-10","National Grid Distribution",6,"Cadent",8,"Panel Requested Text 16/06/2016","2016-07-07","2016-06-22",{"$f":"IF(ISBLANK(S239),\" \",IF(S239<=R239,\"Y\",\"N\"))","v":"Y"},null,{"$f":"IF(AND(F239=\"Live\",K239=\"Ofgem decision\"),\"Yes\",\"No\")","v":"No"}]
["0570",null,"Obligation on Shippers to provide at least one valid meter reading per meter point into settlement once per annum","Scottish Power","2015-12-03",{"$f":"LOOKUP($J240,Lookups!$A$3:$A$18, Lookups!$C$3:$C$18)","v":"Closed"},"Modification",null,"Distribution","Implemented",{"$f":"LOOKUP(J240,Lookups!$A$3:$A$20,Lookups!$B$3:$B$20)","v":"Effective date"},"tbc","National Grid NTS","n/a","Cadent",6,"Panel Requested Text 15/06/2017","2017-07-06","2017-05-23","Y",null,"No"]
["0569","S","Removal of the minimum security requirement from the Energy Balancing Credit Rules","Locus Energy","2015-12-03",{"$f":"LOOKUP($J241,Lookups!$A$3:$A$18, Lookups!$C$3:$C$18)","v":"Closed"},"Self-Governance",null,"Transmission","Implemented",{"$f":"LOOKUP(J241,Lookups!$A$3:$A$20,Lookups!$B$3:$B$20)","v":"Effective date"},"2016-03-11",null,null,"National Grid NTS","n/a","Panel Requested Text 21/01/16","2016-02-11","2016-01-21","Y","n/a","No"]
["0568",null,"Security Requirements and Invoice Payment Settlement Cycle for the Trading System Clearer","ICE Endex ","2015-11-06",{"$f":"LOOKUP($J242,Lookups!$A$3:$A$18, Lookups!$C$3:$C$18)","v":"Closed"},"Modification",null,"Transmission","Implemented",{"$f":"LOOKUP(J242,Lookups!$A$3:$A$20,Lookups!$B$3:$B$20)","v":"Effective date"},"2016-08-01",null,null,"National Grid NTS","n/a","Panel Requested Text 21/01/16","2016-02-11","2016-01-29","Y",null,"No"]
["0567","S","Amendment to reference temperature conditions within the National Grid NTS – IUK Interconnection Agreement","National Grid NTS","2015-11-06",{"$f":"LOOKUP($J243,Lookups!$A$3:$A$18, Lookups!$C$3:$C$18)","v":"Closed"},"Self-Governance",null,"Transmission","Implemented",{"$f":"LOOKUP(J243,Lookups!$A$3:$A$20,Lookups!$B$3:$B$20)","v":"Effective date"},"2016-02-12",null,null,"n/a","n/a","No Text req'd - enabling Mod",null,null," ",null,"No"]
["0566","S","UNC modification stakeholder engagement and Guidelines","Scotia Gas Networks","2015-11-06",{"$f":"LOOKUP($J244,Lookups!$A$3:$A$18, Lookups!$C$3:$C$18)","v":"Closed"},"Self-Governance",null,"Governance","Implemented",{"$f":"LOOKUP(J244,Lookups!$A$3:$A$20,Lookups!$B$3:$B$20)","v":"Effective date"},"2016-02-12",null,null,"Scotia Gas Networks","n/a","Panel Requested Text 17/12/15","2016-01-12","2015-12-17","Y",null,"No"]
["0565","B","Central Data Service Provider: General framework and obligations","Scotia Gas Networks","2016-10-26",{"$f":"LOOKUP($J245,Lookups!$A$3:$A$18, Lookups!$C$3:$C$18)","v":"Closed"},"Modification",null,"Other","Rejected",{"$f":"LOOKUP(J245,Lookups!$A$3:$A$20,Lookups!$B$3:$B$20)","v":"End of process"},"2017-01-19",null,null,"National Grid Distribution","n/a","Pane Requested Text 28/10/16","2016-11-18","2016-11-02",{"$f":"IF(ISBLANK(S245),\" \",IF(S245<=R245,\"Y\",\"N\"))","v":"Y"},"n/a","No"]
["0565","A","Central Data Service Provider: General framework and obligations","E.ON UK","2016-10-10",{"$f":"LOOKUP($J246,Lookups!$A$3:$A$18, Lookups!$C$3:$C$18)","v":"Closed"},"Modification",null,"Other","Implemented",{"$f":"LOOKUP(J246,Lookups!$A$3:$A$20,Lookups!$B$3:$B$20)","v":"Effective date"},"2017-04-01",null,null,"National Grid Distribution","n/a","Panel Requested Text 20/10/16","2016-11-10","2016-11-02",{"$f":"IF(ISBLANK(S246),\" \",IF(S246<=R246,\"Y\",\"N\"))","v":"Y"},"n/a","No"]
["0565",null,"Central Data Service Provider: General framework and obligations","National Grid Distribution","2015-11-05",{"$f":"LOOKUP($J247,Lookups!$A$3:$A$18, Lookups!$C$3:$C$18)","v":"Closed"},"Modification",null,"Other","Rejected",{"$f":"LOOKUP(J247,Lookups!$A$3:$A$20,Lookups!$B$3:$B$20)","v":"End of process"},"2017-01-19",null,null,"National Grid Distribution","n/a","Panel Requested Text 20/10/16","2016-11-10","2016-11-02","Y","n/a","No"]
["0564","R","Review of Annual Read Meter Reading requirements","National Grid Distribution","2015-10-14",{"$f":"LOOKUP($J248,Lookups!$A$3:$A$18, Lookups!$C$3:$C$18)","v":"Closed"},"Request",null,"Distribution","Request Closed",{"$f":"LOOKUP(J248,Lookups!$A$3:$A$20,Lookups!$B$3:$B$20)","v":"End of process"},"2016-06-16",null,null,"n/a","n/a","No Text req'd - Request",null,null," ",null,"No"]
["0563","S","Moving the NTS Optional Commodity Charge Formula into the UNC","SSE","2015-10-12",{"$f":"LOOKUP($J249,Lookups!$A$3:$A$18, Lookups!$C$3:$C$18)","v":"Closed"},"Self-Governance",null,"NTS CMF","Implemented",{"$f":"LOOKUP(J249,Lookups!$A$3:$A$20,Lookups!$B$3:$B$20)","v":"Effective date"},"2016-02-12",null,null,"National Grid NTS","n/a","Panel Requested Text 17/12/15","2016-01-12","2015-12-17","Y",null,"No"]
["0562","FT","Amendment to the Effective Date of Modification 0519 ‘Harmonisation of Reference Conditions at Interconnection Points’","National Grid NTS","2015-10-02",{"$f":"LOOKUP($J250,Lookups!$A$3:$A$18, Lookups!$C$3:$C$18)","v":"Closed"},"Fast Track",null,"None","Implemented",{"$f":"LOOKUP(J250,Lookups!$A$3:$A$20,Lookups!$B$3:$B$20)","v":"Effective date"},"2015-11-06",null,null,"National Grid NTS","n/a","FT - text provided with mod","2015-10-15","2015-10-15","Y","n/a","No"]
["0561","S","Amendment to the oxygen limit within the BBL / NTS Interconnection Agreement","National Grid NTS","2015-10-02",{"$f":"LOOKUP($J251,Lookups!$A$3:$A$18, Lookups!$C$3:$C$18)","v":"Closed"},"Self-Governance",null,"Transmission","Implemented",{"$f":"LOOKUP(J251,Lookups!$A$3:$A$20,Lookups!$B$3:$B$20)","v":"Effective date"},"2015-12-11","National Grid NTS","n/a","n/a","n/a","No Text req'd - enabling Mod",null,null," ","n/a","No"]
["0560",null,"Addressing under-allocation of flows from BBL arising from misalignment of reference conditions","GasTerra","2015-09-30",{"$f":"LOOKUP($J252,Lookups!$A$3:$A$18, Lookups!$C$3:$C$18)","v":"Closed"},"Urgent",null,"Transmission","Implemented",{"$f":"LOOKUP(J252,Lookups!$A$3:$A$20,Lookups!$B$3:$B$20)","v":"Effective date"},"2015-12-08",null,null,"National Grid NTS","n/a","Urgent Mod","2015-11-10","2015-11-09",{"$f":"IF(ISBLANK(S252),\" \",IF(S252<=R252,\"Y\",\"N\"))","v":"Y"},"n/a","No"]
["0559","FT","Correction of a minor legal text reference related to Information Provision changes","National Grid NTS","2015-09-28",{"$f":"LOOKUP($J253,Lookups!$A$3:$A$18, Lookups!$C$3:$C$18)","v":"Closed"},"Fast Track",null,"None","Implemented",{"$f":"LOOKUP(J253,Lookups!$A$3:$A$20,Lookups!$B$3:$B$20)","v":"Effective date"},"2015-11-06",null,null,"National Grid NTS","n/a","FT - text provided with mod","2015-10-15","2015-10-15","Y","n/a","No"]
["0558",null,"Standardisation of Industry Payment Terms","RWE Npower","2015-09-04",{"$f":"LOOKUP($J254,Lookups!$A$3:$A$18, Lookups!$C$3:$C$18)","v":"Closed"},"Modification",null,"Distribution","Withdrawn",{"$f":"LOOKUP(J254,Lookups!$A$3:$A$20,Lookups!$B$3:$B$20)","v":"End of process"},"2015-11-05",null,null,"Scotia Gas Networks",5,"Mod withdrawn"," ",null," ","n/a","No"]
["0557",null,"Notice Period for Changes to Transportation Charges resulting from Uncertain costs allowed expenditure - financial adjustments","E.ON UK","2015-09-04",{"$f":"LOOKUP($J255,Lookups!$A$3:$A$18, Lookups!$C$3:$C$18)","v":"Closed"},"Modification",null,"DN CMF","Withdrawn",{"$f":"LOOKUP(J255,Lookups!$A$3:$A$20,Lookups!$B$3:$B$20)","v":"End of process"},"2015-11-13",null,null,"National Grid Distribution",4,"Mod withdrawn"," ",null," ","n/a","No"]
["0556","FT","Amendment to the Legal Text provided for “Modification 0548 Project Nexus – deferral of Implementation Date”","National Grid Distribution","2015-09-04",{"$f":"LOOKUP($J256,Lookups!$A$3:$A$18, Lookups!$C$3:$C$18)","v":"Closed"},"Fast Track",null,"None","Implemented",{"$f":"LOOKUP(J256,Lookups!$A$3:$A$20,Lookups!$B$3:$B$20)","v":"Effective date"},"2015-10-09",null,null,"National Grid Distribution","n/a","FT - text provided with mod ","2015-09-17","2015-09-17","Y","n/a","No"]
["0555","R","Review of the Market Operator (OCM) Provisions","National Grid NTS","2015-09-04",{"$f":"LOOKUP($J257,Lookups!$A$3:$A$18, Lookups!$C$3:$C$18)","v":"Closed"},"Request",null,"Market Operator","Request Closed",{"$f":"LOOKUP(J257,Lookups!$A$3:$A$20,Lookups!$B$3:$B$20)","v":"End of process"},"2016-03-17",null,null,"n/a","n/a","No Text req'd - Request"," ",null," ","n/a","No"]
["0554","FT","Gender-neutral terms within the UNC","Scotia Gas Networks","2015-08-26",{"$f":"LOOKUP($J258,Lookups!$A$3:$A$18, Lookups!$C$3:$C$18)","v":"Closed"},"Fast Track",null,"None","Implemented",{"$f":"LOOKUP(J258,Lookups!$A$3:$A$20,Lookups!$B$3:$B$20)","v":"Effective date"},"2015-10-09",null,null,"Scotia Gas Networks","n/a","FT - text provided with mod ","2015-09-17","2015-09-17","Y","n/a","No"]
["0553","S","Removal of National Grid LNG Storage UNC TPD Section Z obligations and associated cross-references","National Grid LNG Storage","2015-08-07",{"$f":"LOOKUP($J259,Lookups!$A$3:$A$18, Lookups!$C$3:$C$18)","v":"Closed"},"Self-Governance",null,"Transmission","Implemented",{"$f":"LOOKUP(J259,Lookups!$A$3:$A$20,Lookups!$B$3:$B$20)","v":"Effective date"},"2015-12-11",null,null,"National Grid NTS","n/a","Panel Requested Text 17/09/2015","2015-10-08","2015-09-30",{"$f":"IF(ISBLANK(S259),\" \",IF(S259<=R259,\"Y\",\"N\"))","v":"Y"},"n/a","No"]
["0552","S","UNC Section Y Housekeeping","National Grid NTS","2015-08-07",{"$f":"LOOKUP($J260,Lookups!$A$3:$A$18, Lookups!$C$3:$C$18)","v":"Closed"},"Self-Governance",null,"None","Implemented",{"$f":"LOOKUP(J260,Lookups!$A$3:$A$20,Lookups!$B$3:$B$20)","v":"Effective date"},"2015-10-09",null,null,"National Grid NTS","n/a","Panel Requested Text 20/08/2015","2015-09-10","2015-08-07","Y","n/a","No"]
["0551",null,"Protecting consumers who are disaggregated under Modification 0428 from Ratchet charges for Winter 2015","Gazprom","2015-08-06",{"$f":"LOOKUP($J261,Lookups!$A$3:$A$18, Lookups!$C$3:$C$18)","v":"Closed"},"Modification",null,"Distribution","Rejected",{"$f":"LOOKUP(J261,Lookups!$A$3:$A$20,Lookups!$B$3:$B$20)","v":"End of process"},"2016-03-21",null,null,"Northern Gas Networks",3,"Panel Requested Text 17/09/2015","2015-10-08","2015-10-05","Y","n/a","No"]
["0550",null,"Project Nexus: Incentivising Central Project Delivery","RWE Npower","2015-08-04",{"$f":"LOOKUP($J262,Lookups!$A$3:$A$18, Lookups!$C$3:$C$18)","v":"Closed"},"Modification",null,"Governance","Rejected",{"$f":"LOOKUP(J262,Lookups!$A$3:$A$20,Lookups!$B$3:$B$20)","v":"End of process"},"2016-05-27",null,null,"National Grid Distribution",2,"Panel Requested Text 21/01/16","2016-02-11","2016-01-29","Y","n/a","No"]
["0549",null,"Improving Arrangements for Managing Major Industry Changes","Gazprom","2015-07-14",{"$f":"LOOKUP($J263,Lookups!$A$3:$A$18, Lookups!$C$3:$C$18)","v":"Closed"},"Modification",null,"Governance","Withdrawn",{"$f":"LOOKUP(J263,Lookups!$A$3:$A$20,Lookups!$B$3:$B$20)","v":"End of process"},"22-0ct-15",null,null,"Scotia Gas Networks",1,"Mod withdrawn"," ",null," ","n/a","No"]
["0548",null,"Project Nexus – deferral of Implementation Date","National Grid Distribution","2015-07-14",{"$f":"LOOKUP($J264,Lookups!$A$3:$A$18, Lookups!$C$3:$C$18)","v":"Closed"},"Urgent",null,"Nexus","Implemented",{"$f":"LOOKUP(J264,Lookups!$A$3:$A$20,Lookups!$B$3:$B$20)","v":"Effective date"},"2015-08-14",null,null,"National Grid Distribution","n/a","Urgent - text provided with mod"," ",null," ","n/a","No"]
["0547","S","Corrections to the EID arising from implementation of Modifications 0493/0500","National Grid NTS","2015-07-03",{"$f":"LOOKUP($J265,Lookups!$A$3:$A$18, Lookups!$C$3:$C$18)","v":"Closed"},"Self-Governance",null,"Transmission","Implemented",{"$f":"LOOKUP(J265,Lookups!$A$3:$A$20,Lookups!$B$3:$B$20)","v":"Effective date"},"2015-10-09",null,null,"National Grid NTS","n/a","Panel Requested Text 16/07/2015","2015-08-06","2015-08-06",{"$f":"IF(ISBLANK(S265),\" \",IF(S265<=R265,\"Y\",\"N\"))","v":"Y"},"n/a","No","NOTE: Rotation 6 & 7 missed due to previous text allocations"]
["0546","S","Reduction of the Minimum Eligible Quantity (100,000kWh) for European IP capacity","National Grid NTS","2015-07-03",{"$f":"LOOKUP($J266,Lookups!$A$3:$A$18, Lookups!$C$3:$C$18)","v":"Closed"},"Self-Governance",null,"Transmission","Implemented",{"$f":"LOOKUP(J266,Lookups!$A$3:$A$20,Lookups!$B$3:$B$20)","v":"Effective date"},"2015-10-09",null,null,"National Grid NTS","n/a","Panel Requested Text 16/07/2015","2015-08-06","2015-08-05","Y","n/a","No"]
["0545","S","Changes to GDN MOD186 Publication dates","Northern Gas Networks","2015-07-02",{"$f":"LOOKUP($J267,Lookups!$A$3:$A$18, Lookups!$C$3:$C$18)","v":"Closed"},"Self-Governance",null,"DN CMF","Implemented",{"$f":"LOOKUP(J267,Lookups!$A$3:$A$20,Lookups!$B$3:$B$20)","v":"Effective date"},"2015-11-06",null,null,"Northern Gas Networks","n/a","Panel Requested Text 20/08/2015","2015-09-10","2015-08-18","Y","n/a","No"]
["0544",null,"Amendment to charging under Modification 0428 - Single Meter Supply Points","Gazprom","2015-06-30",{"$f":"LOOKUP($J268,Lookups!$A$3:$A$18, Lookups!$C$3:$C$18)","v":"Closed"},"Urgent",null,"Distribution","Withdrawn",{"$f":"LOOKUP(J268,Lookups!$A$3:$A$20,Lookups!$B$3:$B$20)","v":"End of process"},"2015-07-02",null,null,"National Grid Distribution",8,"Mod withdrawn"," ",null," ","n/a","No"]
["0543",null,"Ex-post removal of uncontrollable UNC charges at ASEPs which include sub-terminals operating on a 06.00 to 06.00 Gas Day","Gazprom","2015-06-23",{"$f":"LOOKUP($J269,Lookups!$A$3:$A$18, Lookups!$C$3:$C$18)","v":"Closed"},"Modification",null,"Transmission","Renumbered",{"$f":"LOOKUP(J269,Lookups!$A$3:$A$20,Lookups!$B$3:$B$20)","v":"End of process"},"2015-07-16",null,null,"National Grid NTS","n/a","Mod withdrawn"," ",null," ","n/a","No"]
["0542",null,"Ex-ante removal of uncontrollable UNC charges at ASEPs which include sub-terminals operating on a 06.00 to 06.00 Gas Day","BP","2015-06-23",{"$f":"LOOKUP($J270,Lookups!$A$3:$A$18, Lookups!$C$3:$C$18)","v":"Closed"},"Modification",null,"Transmission","Renumbered",{"$f":"LOOKUP(J270,Lookups!$A$3:$A$20,Lookups!$B$3:$B$20)","v":"End of process"},"2015-07-16",null,null,"National Grid NTS","n/a","Mod withdrawn"," ",null," ","n/a","No"]
["0541","B","Ex-post removal of uncontrollable UNC charges at ASEPs which include sub-terminals operating on a 06.00 to 06.00 Gas Day","Gazprom","2015-07-16",{"$f":"LOOKUP($J271,Lookups!$A$3:$A$18, Lookups!$C$3:$C$18)","v":"Closed"},"Modification",null,"Transmission","Rejected",{"$f":"LOOKUP(J271,Lookups!$A$3:$A$20,Lookups!$B$3:$B$20)","v":"End of process"},"2016-05-26","National Grid NTS","n/a","National Grid NTS","n/a","Panel Requested Text 21/01/16","2016-02-11","2016-02-11",{"$f":"IF(ISBLANK(S271),\" \",IF(S271<=R271,\"Y\",\"N\"))","v":"Y"},"n/a","No"]
["0541","A","Ex-ante removal of uncontrollable UNC charges at ASEPs which include sub-terminals operating on a 06.00 to 06.00 Gas Day","BP","2015-07-16",{"$f":"LOOKUP($J272,Lookups!$A$3:$A$18, Lookups!$C$3:$C$18)","v":"Closed"},"Modification",null,"Transmission","Rejected",{"$f":"LOOKUP(J272,Lookups!$A$3:$A$20,Lookups!$B$3:$B$20)","v":"End of process"},"2016-05-26","National Grid NTS","n/a","National Grid NTS","n/a","Panel Requested Text 21/01/16","2016-02-11","2016-02-11",{"$f":"IF(ISBLANK(S272),\" \",IF(S272<=R272,\"Y\",\"N\"))","v":"Y"},"n/a","No"]
["0541",null,"Removal of uncontrollable UNC charges at ASEPs which include sub-terminals operating on a 06.00 to 06.00 Gas Day via an ex-ante, quantity adjustment","EDF Trading","2015-06-23",{"$f":"LOOKUP($J273,Lookups!$A$3:$A$18, Lookups!$C$3:$C$18)","v":"Closed"},"Modification",null,"Transmission","Withdrawn",{"$f":"LOOKUP(J273,Lookups!$A$3:$A$20,Lookups!$B$3:$B$20)","v":"End of process"},"2015-12-15",null,null,"National Grid NTS","n/a","Mod withdrawn"," ",null,{"$f":"IF(ISBLANK(S273),\" \",IF(S273<=R273,\"Y\",\"N\"))","v":" "},"n/a","No"]
["0540","FT","Amendment to TPD Section G2.15","Scotia Gas Networks","2015-06-10",{"$f":"LOOKUP($J274,Lookups!$A$3:$A$18, Lookups!$C$3:$C$18)","v":"Closed"},"Fast Track",null,"Distribution","Implemented",{"$f":"LOOKUP(J274,Lookups!$A$3:$A$20,Lookups!$B$3:$B$20)","v":"Effective date"},"2015-08-07",null,null,"Scotia Gas Networks","n/a","FT - text provided with mod ","2015-07-16","2015-07-16","Y","n/a","No"]
["0539",null,"Removal of NTS Exit Commodity Charges for Distributed Gas","Barrow Shipping Ltd","2015-06-05",{"$f":"LOOKUP($J275,Lookups!$A$3:$A$18, Lookups!$C$3:$C$18)","v":"Closed"},"Modification",null,"DN CMF","Rejected",{"$f":"LOOKUP(J275,Lookups!$A$3:$A$20,Lookups!$B$3:$B$20)","v":"End of process"},"2015-11-19",null,null,"Scotia Gas Networks",5,"Deemed Text Request 17/09/15","2015-09-17","2015-09-17","Y","n/a","No"]
["0538","FT","Correcting legal text errors – gas Security of Supply Significant Code Review","National Grid NTS","2015-06-04",{"$f":"LOOKUP($J276,Lookups!$A$3:$A$18, Lookups!$C$3:$C$18)","v":"Closed"},"Fast Track",null,"Transmission","Implemented",{"$f":"LOOKUP(J276,Lookups!$A$3:$A$20,Lookups!$B$3:$B$20)","v":"Effective date"},"2015-10-01",null,null,"National Grid NTS","n/a","FT - text provided with mod ","2015-06-18","2015-06-18",{"$f":"IF(ISBLANK(S276),\" \",IF(S276<=R276,\"Y\",\"N\"))","v":"Y"},"n/a","No"]
["0537",null,"Change of Project Nexus Implementation Date to 1st April 2016 ","Total Gas and Power","2015-04-27",{"$f":"LOOKUP($J277,Lookups!$A$3:$A$18, Lookups!$C$3:$C$18)","v":"Closed"},"Modification",null,"Nexus","Withdrawn",{"$f":"LOOKUP(J277,Lookups!$A$3:$A$20,Lookups!$B$3:$B$20)","v":"End of process"},"2015-06-18",null,null,"National Grid Distribution","n/a","Mod withdrawn"," ",null,{"$f":"IF(ISBLANK(S277),\" \",IF(S277<=R277,\"Y\",\"N\"))","v":" "},"n/a","No"]
["0536",null,"Project Nexus – deferral of implementation of elements of Retrospective Adjustment arrangements","National Grid Distribution","2015-04-24",{"$f":"LOOKUP($J278,Lookups!$A$3:$A$18, Lookups!$C$3:$C$18)","v":"Closed"},"Modification",null,"Nexus","Withdrawn",{"$f":"LOOKUP(J278,Lookups!$A$3:$A$20,Lookups!$B$3:$B$20)","v":"End of process"},"2015-07-24",null,null,"National Grid Distribution","n/a","Mod withdrawn"," ",null," ","n/a","No"]
["0535",null,"Implementation of Non-Effective Days to enable Annual AQ Review (independent of Nexus transition)","Scotia Gas Networks","2015-03-06",{"$f":"LOOKUP($J279,Lookups!$A$3:$A$18, Lookups!$C$3:$C$18)","v":"Closed"},"Modification",null,"Nexus","Implemented",{"$f":"LOOKUP(J279,Lookups!$A$3:$A$20,Lookups!$B$3:$B$20)","v":"Effective date"},"2015-07-24",null,null,"Scotia Gas Networks","n/a","Panel Requested Text 16/04/2015","2015-05-07","2015-05-07","Y","TBC","No"]
["0534",null,"Maintaining the Efficacy of the NTS Optional Commodity ('shorthaul') Tariff at Bacton Entry Points","Gazprom","2015-03-06",{"$f":"LOOKUP($J280,Lookups!$A$3:$A$18, Lookups!$C$3:$C$18)","v":"Closed"},"Modification",null,"Transmission","Implemented",{"$f":"LOOKUP(J280,Lookups!$A$3:$A$20,Lookups!$B$3:$B$20)","v":"Effective date"},"2016-08-01",null,null,"National Grid NTS","n/a","Panel Requested Text 16/07/2015","2015-08-06","2015-07-23","Y","TBC","No"]
["0533","S","Corrections to Network Entry Provisions in the National Grid NTS-BBL Interconnection Agreement","National Grid NTS","2015-03-06",{"$f":"LOOKUP($J281,Lookups!$A$3:$A$18, Lookups!$C$3:$C$18)","v":"Closed"},"Self-Governance",null,"Transmission","Implemented",{"$f":"LOOKUP(J281,Lookups!$A$3:$A$20,Lookups!$B$3:$B$20)","v":"Effective date"},"2015-06-15",null,null,"National Grid NTS","n/a","No Text req'd - enabling Mod"," ",null," ","n/a","No"]
["0532",null,"Implementation of Non-Effective Days (Project Nexus transitional modification)","National Grid Distribution","2015-03-06",{"$f":"LOOKUP($J282,Lookups!$A$3:$A$18, Lookups!$C$3:$C$18)","v":"Closed"},"Modification",null,"Nexus","Rejected",{"$f":"LOOKUP(J282,Lookups!$A$3:$A$20,Lookups!$B$3:$B$20)","v":"End of process"},"2016-06-30",null,null,"National Grid Distribution","n/a","Panel Requested Text 19/11/2015","2015-12-10","2015-12-03","Y","n/a","No"]
["0531",null,"Provision of an Industry User Test System","SSE","2015-02-09",{"$f":"LOOKUP($J283,Lookups!$A$3:$A$18, Lookups!$C$3:$C$18)","v":"Closed"},"Modification",null,"Nexus","Rejected",{"$f":"LOOKUP(J283,Lookups!$A$3:$A$20,Lookups!$B$3:$B$20)","v":"End of process"},"2016-10-20",null,null,"National Grid Distribution",4,"Panel Requested Text 21/04/2016","2016-05-13","2016-05-06","Y","n/a","No"]
["0530",null,"Use of Supply Point Register data for Project Nexus 'Market Trials' Testing Phase","National Grid Distribution","2015-02-06",{"$f":"LOOKUP($J284,Lookups!$A$3:$A$18, Lookups!$C$3:$C$18)","v":"Closed"},"Modification",null,"Nexus","Withdrawn",{"$f":"LOOKUP(J284,Lookups!$A$3:$A$20,Lookups!$B$3:$B$20)","v":"End of process"},"2015-02-18",null,null,"National Grid Distribution","n/a","Mod withdrawn"," ",null," ","n/a","No"]
["0529",null,"Implementation of Retrospective Adjustment arrangements (Project Nexus transitional modification)","National Grid Distribution","2015-02-06",{"$f":"LOOKUP($J285,Lookups!$A$3:$A$18, Lookups!$C$3:$C$18)","v":"Closed"},"Modification",null,"Nexus","Rejected",{"$f":"LOOKUP(J285,Lookups!$A$3:$A$20,Lookups!$B$3:$B$20)","v":"End of process"},"2016-02-10",null,null,"National Grid Distribution","n/a","Panel Requested Text 21/05/15","2015-06-11","2015-05-21","Y","n/a","No"]
["0528","V","Implementation of Supply Point Administration, gas allocation and settlement arrangements (Project Nexus transitional modification)","National Grid Distribution","2015-08-20",{"$f":"LOOKUP($J286,Lookups!$A$3:$A$18, Lookups!$C$3:$C$18)","v":"Closed"},"Modification",null,"Nexus","Implemented",{"$f":"LOOKUP(J286,Lookups!$A$3:$A$20,Lookups!$B$3:$B$20)","v":"Effective date"},"2016-02-11",null,null,"National Grid Distribution","n/a","Panel Requested Text 16/04/2015","2015-05-07","2015-04-16",{"$f":"IF(ISBLANK(S286),\" \",IF(S286<=R286,\"Y\",\"N\"))","v":"Y"},"n/a","No"]
["0528",null,"Implementation of Supply Point Administration, gas allocation and settlement arrangements (Project Nexus transitional modification)","National Grid Distribution","2015-02-06",{"$f":"LOOKUP($J287,Lookups!$A$3:$A$18, Lookups!$C$3:$C$18)","v":"Closed"},"Modification",null,"Nexus","Withdrawn",{"$f":"LOOKUP(J287,Lookups!$A$3:$A$20,Lookups!$B$3:$B$20)","v":"End of process"},"2015-08-20",null,null,"National Grid Distribution","n/a","Panel Requested Text 16/04/2015","2015-05-07","2015-04-16","Y","n/a","No"]
["0527",null,"Implementation of Annual Quantity arrangements (Project Nexus transitional modification)","National Grid Distribution","2015-02-06",{"$f":"LOOKUP($J288,Lookups!$A$3:$A$18, Lookups!$C$3:$C$18)","v":"Closed"},"Modification",null,"Nexus","Implemented",{"$f":"LOOKUP(J288,Lookups!$A$3:$A$20,Lookups!$B$3:$B$20)","v":"Effective date"},"2016-02-11",null,null,"National Grid Distribution","n/a","Panel Requested Text 16/04/2015","2015-05-07","2015-04-16","Y","n/a","No"]
["0526","S","Identification of Supply Meter Point pressure tier","E.ON UK","2015-02-06",{"$f":"LOOKUP($J289,Lookups!$A$3:$A$18, Lookups!$C$3:$C$18)","v":"Closed"},"Self-Governance",null,"Distribution","Rejected",{"$f":"LOOKUP(J289,Lookups!$A$3:$A$20,Lookups!$B$3:$B$20)","v":"End of process"},"2016-06-16",null,null,"Northern Gas Networks",3,"Panel Requested Text 21/04/2016","2016-05-13","2016-05-13","Y","n/a","No"]
["0525",null,"Enabling EU Compliant Interconnection Agreements","National Grid NTS","2015-02-04",{"$f":"LOOKUP($J290,Lookups!$A$3:$A$18, Lookups!$C$3:$C$18)","v":"Closed"},"Modification",null,"European","Implemented",{"$f":"LOOKUP(J290,Lookups!$A$3:$A$20,Lookups!$B$3:$B$20)","v":"Effective date"},"2015-10-01",null,null,"National Grid NTS","n/a","Panel Requested Text 21/05/15"," 12/06/15","2015-06-04","Y","n/a","No"]
["0524",null,"Enabling the Use of Pre Nexus Meter Reads for the purposes of Post Nexus Rolling AQ Calculation","Gazprom","2015-01-23",{"$f":"LOOKUP($J291,Lookups!$A$3:$A$18, Lookups!$C$3:$C$18)","v":"Closed"},"Modification",null,"Nexus","Withdrawn",{"$f":"LOOKUP(J291,Lookups!$A$3:$A$20,Lookups!$B$3:$B$20)","v":"End of process"},"2015-02-11",null,null,"National Grid Distribution","n/a","Mod withdrawn",null,null," ","n/a","No"]
["0523","S","Supply Point Registration – Facilitation of ‘faster switching’ for Shared Supply Meter Points ","National Grid Distribution","2015-01-07",{"$f":"LOOKUP($J292,Lookups!$A$3:$A$18, Lookups!$C$3:$C$18)","v":"Closed"},"Self-Governance",null,"Distribution","Implemented",{"$f":"LOOKUP(J292,Lookups!$A$3:$A$20,Lookups!$B$3:$B$20)","v":"Effective date"},"Nexus Imp Date",null,null,"National Grid Distribution","n/a","Panel Requested Text 21/05/15","2015-06-12","2015-05-21","Y","n/a","No"]
["0522","S","Governance of the use of email as a valid UNC communication","E.ON UK","2014-08-08",{"$f":"LOOKUP($J293,Lookups!$A$3:$A$18, Lookups!$C$3:$C$18)","v":"Closed"},"Self-Governance",null,"Distribution","Rejected",{"$f":"LOOKUP(J293,Lookups!$A$3:$A$20,Lookups!$B$3:$B$20)","v":"End of process"},"2015-12-17",null,null,"Northern Gas Networks","n/a","Panel Requested Text 19/11/15","2015-12-10","2015-11-18","Y","n/a","No"]
["0521",null,"Revision of User Admission Criteria to include Transporter verification of its ability to transact with the Applicant User","National Grid NTS","2014-12-10",{"$f":"LOOKUP($J294,Lookups!$A$3:$A$18, Lookups!$C$3:$C$18)","v":"Closed"},"Modification",null,"NTS CMF","Rejected",{"$f":"LOOKUP(J294,Lookups!$A$3:$A$20,Lookups!$B$3:$B$20)","v":"End of process"},"2015-05-11",null,null,"National Grid NTS","n/a","Panel requested text 18/12/14","2015-01-14","2014-12-18","Y","n/a","No"]
["0520","A","Performance Assurance Reporting","E.ON UK","2015-10-02",{"$f":"LOOKUP($J295,Lookups!$A$3:$A$18, Lookups!$C$3:$C$18)","v":"Closed"},"Modification",null,"Distribution","Implemented",{"$f":"LOOKUP(J295,Lookups!$A$3:$A$20,Lookups!$B$3:$B$20)","v":"Effective date"},"2017-01-01",null,null,"Wales & West Utilities","n/a","Panel Requested Text 19/11/2015","2015-12-10","2015-12-08","Y","TBC","No"]
["0520",null,"Performance Assurance Reporting","British Gas","2014-11-25",{"$f":"LOOKUP($J296,Lookups!$A$3:$A$18, Lookups!$C$3:$C$18)","v":"Closed"},"Modification",null,"Distribution","Rejected",{"$f":"LOOKUP(J296,Lookups!$A$3:$A$20,Lookups!$B$3:$B$20)","v":"End of process"},"2016-04-25",null,null,"Wales & West Utilities","n/a","Panel requested Text 20/08/15","2015-09-10","2015-09-04","Y","TBC","No"]
["0519",null,"Harmonisation of Reference Conditions at Interconnection Points","National Grid NTS","2014-11-07",{"$f":"LOOKUP($J297,Lookups!$A$3:$A$18, Lookups!$C$3:$C$18)","v":"Closed"},"Modification",null,"European","Implemented",{"$f":"LOOKUP(J297,Lookups!$A$3:$A$20,Lookups!$B$3:$B$20)","v":"Effective date"},"2015-10-01",null,null,"National Grid NTS","n/a","Panel Requested Text 15/01/15","2015-02-05","2015-01-16","Y","n/a","No"]
["0518","S","Shipper Verification of meter and address details following system meter removals.","Scotia Gas Networks","2014-10-31",{"$f":"LOOKUP($J298,Lookups!$A$3:$A$18, Lookups!$C$3:$C$18)","v":"Closed"},"Self-Governance",null,"Distribution","Implemented",{"$f":"LOOKUP(J298,Lookups!$A$3:$A$20,Lookups!$B$3:$B$20)","v":"Effective date"},"2017-09-01",null,null,"Scotia Gas Networks","n/a","Panel Requested Text 21/05/15","2015-06-12","2015-05-21","Y","n/a","No"]
["0517","B","Review of the Supply Matching Merit Order in Setting Capacity Charges, Rolling Average to Reduce Volatility in Annual Charges","SSE","2014-12-16",{"$f":"LOOKUP($J299,Lookups!$A$3:$A$18, Lookups!$C$3:$C$18)","v":"Closed"},"Modification",null,"NTS CMF","Rejected",{"$f":"LOOKUP(J299,Lookups!$A$3:$A$20,Lookups!$B$3:$B$20)","v":"End of process"},"2015-09-25",null,null,"National Grid NTS","n/a","Deemed Text Request 18/06/15","2015-07-09","2015-06-18","Y","n/a","No"]
["0517","A","Review of the Supply Matching Merit Order in Setting Capacity Charges and Timing of Resultant Price Changes","Wales & West Utilities","2014-12-11",{"$f":"LOOKUP($J300,Lookups!$A$3:$A$18, Lookups!$C$3:$C$18)","v":"Closed"},"Modification",null,"NTS CMF","Rejected",{"$f":"LOOKUP(J300,Lookups!$A$3:$A$20,Lookups!$B$3:$B$20)","v":"End of process"},"2015-09-25",null,null,"National Grid NTS","n/a","Panel requested text 18/12/14","2015-01-14","2015-01-06","Y","n/a","No"]
["0517",null,"Review of the Supply Matching Merit Order in Setting Capacity Charges ","National Grid NTS","2014-10-03",{"$f":"LOOKUP($J301,Lookups!$A$3:$A$18, Lookups!$C$3:$C$18)","v":"Closed"},"Modification",null,"NTS CMF","Rejected",{"$f":"LOOKUP(J301,Lookups!$A$3:$A$20,Lookups!$B$3:$B$20)","v":"End of process"},"2015-09-25",null,null,"National Grid NTS","n/a","Panel requested text 18/12/14","2015-01-14","2015-01-06","Y","n/a","No"]
["0516","S","Information provision by large Customers to aid understanding of site characteristics","Wingas","2014-09-16",{"$f":"LOOKUP($J302,Lookups!$A$3:$A$18, Lookups!$C$3:$C$18)","v":"Closed"},"Self-Governance",null,"Distribution","Implemented",{"$f":"LOOKUP(J302,Lookups!$A$3:$A$20,Lookups!$B$3:$B$20)","v":"Effective date"},"Nexus Imp Date",null,null,"Scotia Gas Networks","n/a","Panel requested text 19/02/15","2015-03-12","2015-02-19","Y","n/a","No"]
["0515","S","Resolution timescales for SRVs and USRVs following Project Nexus Implementation","National Grid Distribution","2014-08-27",{"$f":"LOOKUP($J303,Lookups!$A$3:$A$18, Lookups!$C$3:$C$18)","v":"Closed"},"Self-Governance",null,"Nexus","Implemented",{"$f":"LOOKUP(J303,Lookups!$A$3:$A$20,Lookups!$B$3:$B$20)","v":"Effective date"},"2015-03-13",null,null,"National Grid Distribution","n/a","Panel Requested Text 20/11/14","2014-12-11","2014-12-04","Y","n/a",{"$f":"IF(AND(F303=\"Live\",K303=\"Ofgem decision\"),\"Yes\",\"No\")","v":"No"}]
["0514",null,"Extending the Daily Metered ‘voluntary’ service to Project Nexus Implementation Date plus six months","National Grid Distribution","2014-08-27",{"$f":"LOOKUP($J304,Lookups!$A$3:$A$18, Lookups!$C$3:$C$18)","v":"Closed"},"Modification",null,"Nexus","Implemented",{"$f":"LOOKUP(J304,Lookups!$A$3:$A$20,Lookups!$B$3:$B$20)","v":"Effective date"},"Nexus Imp Date",null,null,"National Grid Distribution","n/a","Panel Requested Text 20/11/14","2014-11-20","2014-11-20","Y","n/a","No"]
["0513",null,"UK Link Programme (Project Nexus) - independent project assurance for Users","National Grid Distribution","2014-08-20",{"$f":"LOOKUP($J305,Lookups!$A$3:$A$18, Lookups!$C$3:$C$18)","v":"Closed"},"Urgent",null,"Nexus","Implemented",{"$f":"LOOKUP(J305,Lookups!$A$3:$A$20,Lookups!$B$3:$B$20)","v":"Effective date"},"2015-10-27",null,null,"National Grid Distribution","n/a","None Required",null,null," ","Yes","No"]
["0512","S","Amendment to Section M to be consistent with Faster Switching proposals ","British Gas","2014-08-20",{"$f":"LOOKUP($J306,Lookups!$A$3:$A$18, Lookups!$C$3:$C$18)","v":"Closed"},"Self-Governance",null,"Distribution","Implemented",{"$f":"LOOKUP(J306,Lookups!$A$3:$A$20,Lookups!$B$3:$B$20)","v":"Effective date"},"2015-03-13",null,null,"National Grid Distribution",2,"Panel requested text 18/12/14","2015-01-14","2014-12-18","Y","n/a","No"]
["0511",null,"Introduction of an Enduring Solution for managing Advanced Meters in central systems post Nexus","Gazprom","2014-08-18",{"$f":"LOOKUP($J307,Lookups!$A$3:$A$18, Lookups!$C$3:$C$18)","v":"Closed"},"Modification",null,"Nexus","Withdrawn",{"$f":"LOOKUP(J307,Lookups!$A$3:$A$20,Lookups!$B$3:$B$20)","v":"End of process"},"2015-01-23",null,null,"Northern Gas Networks","n/a","Mod withdrawn",null,null," ","n/a","No"]
["0510","V","Reform of Gas Allocation Regime at GB Interconnection Points","National Grid NTS","2015-07-16",{"$f":"LOOKUP($J308,Lookups!$A$3:$A$18, Lookups!$C$3:$C$18)","v":"Closed"},"Modification",null,"European","Implemented",{"$f":"LOOKUP(J308,Lookups!$A$3:$A$20,Lookups!$B$3:$B$20)","v":"Effective date"},"2015-10-01","National Grid NTS","n/a","National Grid NTS","n/a","Panel Requested Text 16/07/15","2015-08-06","2015-07-16",{"$f":"IF(ISBLANK(S308),\" \",IF(S308<=R308,\"Y\",\"N\"))","v":"Y"},"n/a","No"]
["0510",null,"Reform of Gas Allocation Regime at GB Interconnection Points","National Grid NTS","2014-08-08",{"$f":"LOOKUP($J309,Lookups!$A$3:$A$18, Lookups!$C$3:$C$18)","v":"Closed"},"Modification",null,"European","Withdrawn",{"$f":"LOOKUP(J309,Lookups!$A$3:$A$20,Lookups!$B$3:$B$20)","v":"End of process"},"2015-07-16",null,null,"National Grid NTS","n/a","Panel Requested Text 15/01/15","2015-02-05","2015-01-19","Y","n/a","No"]
["0509",null,"Permission to release Protected Information to an Authorised Third Party for Performance Assurance settlement risk analysis","E.ON UK","2014-08-08",{"$f":"LOOKUP($J310,Lookups!$A$3:$A$18, Lookups!$C$3:$C$18)","v":"Closed"},"Modification",null,"Governance","Withdrawn",{"$f":"LOOKUP(J310,Lookups!$A$3:$A$20,Lookups!$B$3:$B$20)","v":"End of process"},"2015-06-24",null,null,"Scotia Gas Networks",1,"Mod withdrawn",null,null," ","n/a","No"]
["0508",null,"Revised Distributed Gas Charging Arrangements","National Grid Distribution","2014-07-04",{"$f":"LOOKUP($J311,Lookups!$A$3:$A$18, Lookups!$C$3:$C$18)","v":"Closed"},"Modification",null,"DN Charging Methodology Forum","Withdrawn",{"$f":"LOOKUP(J311,Lookups!$A$3:$A$20,Lookups!$B$3:$B$20)","v":"End of process"},"2014-10-24",null,null,"National Grid Distribution","n/a","Mod withdrawn",null,null," ","n/a","No"]
["0507",null,"Changing The Effective Date of 0451AV","Winchester Gas","2014-07-01",{"$f":"LOOKUP($J312,Lookups!$A$3:$A$18, Lookups!$C$3:$C$18)","v":"Closed"},"Modification",null,"Distribution","Implemented",{"$f":"LOOKUP(J312,Lookups!$A$3:$A$20,Lookups!$B$3:$B$20)","v":"Effective date"},"2014-11-01",null,null,"National Grid Distribution",8,"Panel Requested Text 21/08/13","2014-09-11","2014-08-21","Y","n/a","No"]
["0506","AV","Gas Performance Assurance Framework and Governance Arrangements","SSE","2015-11-19",{"$f":"LOOKUP($J313,Lookups!$A$3:$A$18, Lookups!$C$3:$C$18)","v":"Closed"},"Modification",null,"Performance Assurance ","Rejected",{"$f":"LOOKUP(J313,Lookups!$A$3:$A$20,Lookups!$B$3:$B$20)","v":"End of process"},"2015-12-17",null,null,"Wales & West Utilities","n/a","Panel Requested Text 19/11/15","2015-12-10","2015-11-19",{"$f":"IF(ISBLANK(S313),\" \",IF(S313<=R313,\"Y\",\"N\"))","v":"Y"},"n/a","No"]
["0506","A","Gas Performance Assurance Framework and Governance Arrangements","SSE","2015-01-02",{"$f":"LOOKUP($J314,Lookups!$A$3:$A$18, Lookups!$C$3:$C$18)","v":"Closed"},"Modification",null,"Performance Assurance ","Withdrawn",{"$f":"LOOKUP(J314,Lookups!$A$3:$A$20,Lookups!$B$3:$B$20)","v":"End of process"},"2015-11-19",null,null,"Wales & West Utilities","n/a","Panel Requested Text 18/06/15","2015-07-09","2015-06-30","Y","n/a","No"]
["0506","V","Gas Performance Assurance Framework and Governance Arrangements","Scottish Power","2015-11-19",{"$f":"LOOKUP($J315,Lookups!$A$3:$A$18, Lookups!$C$3:$C$18)","v":"Closed"},"Modification",null,"Performance Assurance ","Implemented",{"$f":"LOOKUP(J315,Lookups!$A$3:$A$20,Lookups!$B$3:$B$20)","v":"Effective date"},"2016-01-29",null,null,"Wales & West Utilities",7,"Panel Requested Text 19/11/15","2015-12-10","2015-11-19",{"$f":"IF(ISBLANK(S315),\" \",IF(S315<=R315,\"Y\",\"N\"))","v":"Y"},"n/a","No"]
["0506",null,"Gas Performance Assurance Framework and Governance Arrangements","Scottish Power","2014-06-12",{"$f":"LOOKUP($J316,Lookups!$A$3:$A$18, Lookups!$C$3:$C$18)","v":"Closed"},"Modification",null,"Performance Assurance ","Withdrawn",{"$f":"LOOKUP(J316,Lookups!$A$3:$A$20,Lookups!$B$3:$B$20)","v":"End of process"},"2015-11-19",null,null,"Wales & West Utilities",7,"Panel Requested Text 18/06/15","2015-07-09","2015-06-30","Y","n/a","No"]
["0505","S","Update to UNC TPD Section G & M to correct anomalies arising from the implementation of UNC Modification 0463S","Scotia Gas Networks","2014-06-06",{"$f":"LOOKUP($J317,Lookups!$A$3:$A$18, Lookups!$C$3:$C$18)","v":"Closed"},"Self-Governance",null,"Distribution","Withdrawn",{"$f":"LOOKUP(J317,Lookups!$A$3:$A$20,Lookups!$B$3:$B$20)","v":"End of process"},"2014-10-22",null,null,"Scotia Gas Networks","n/a","Mod withdrawn","2014-07-10","2014-06-30",null,"n/a","No"]
["0504",null,"Demand Side Response (DSR) Methodology Implementation","National Grid NTS","2014-06-04",{"$f":"LOOKUP($J318,Lookups!$A$3:$A$18, Lookups!$C$3:$C$18)","v":"Closed"},"Modification",null,"Demand Side Response","Implemented",{"$f":"LOOKUP(J318,Lookups!$A$3:$A$20,Lookups!$B$3:$B$20)","v":"Effective date"},"2016-03-01",null,null,"National Grid NTS","n/a","Panel Requested Text 19/11/15","2015-12-10","2015-11-19","Y","n/a","No"]
["0503","FT","Update of Transporter Procedure Document references within Network Code","E.ON UK","2014-06-02",{"$f":"LOOKUP($J319,Lookups!$A$3:$A$18, Lookups!$C$3:$C$18)","v":"Closed"},"Fast Track",null,"Distribution","Implemented",{"$f":"LOOKUP(J319,Lookups!$A$3:$A$20,Lookups!$B$3:$B$20)","v":"Effective date"},"2014-08-08",null,null,"(Proposed as  FT - Text included)","n/a","FT Mod - Text provided with the Mod","2014-07-18","2014-07-18","Y","n/a","No"]
["0502",null,"Amendment to Gas Quality NTS Entry Specification at the px Teesside System Entry Point","Energy24 Limited","2014-05-01",{"$f":"LOOKUP($J320,Lookups!$A$3:$A$18, Lookups!$C$3:$C$18)","v":"Closed"},"Modification",null,"Transmission","Implemented",{"$f":"LOOKUP(J320,Lookups!$A$3:$A$20,Lookups!$B$3:$B$20)","v":"Effective date"},"2015-09-28",null,null,"National Grid NTS","n/a","No Text req'd - enabling Mod",null,null," ","n/a","No"]
["0501","CV","Treatment of Existing Entry Capacity Rights at the Bacton ASEP to comply with EU Capacity Regulations,  including a capped capacity return option and an aggregate overrun regime.","Eni","2015-05-01",{"$f":"LOOKUP($J321,Lookups!$A$3:$A$18, Lookups!$C$3:$C$18)","v":"Closed"},"Modification",null,"European","Rejected",{"$f":"LOOKUP(J321,Lookups!$A$3:$A$20,Lookups!$B$3:$B$20)","v":"End of process"},"2015-07-20",null,null,"National Grid NTS","n/a","Panel requested text 18/12/14","2015-01-14","2015-01-14","Y","n/a","No"]
["0501","C","Treatment of Existing Entry Capacity Rights at the Bacton ASEP to comply with EU Capacity Regulations,  including a capped capacity return option and an aggregate overrun regime.","Eni","2014-11-07",{"$f":"LOOKUP($J322,Lookups!$A$3:$A$18, Lookups!$C$3:$C$18)","v":"Closed"},"Modification",null,"European","Withdrawn",{"$f":"LOOKUP(J322,Lookups!$A$3:$A$20,Lookups!$B$3:$B$20)","v":"End of process"},"2015-05-01",null,null,"National Grid NTS","n/a","Panel Requested Text 16/10/14","2014-11-06","2014-10-17","Y","Yes","No"]
["0501","BV","Treatment of Existing Entry Capacity Rights at the Bacton ASEP to comply with EU Capacity Regulations, including a restricted capacity return option.","Centrica Storage","2015-05-01",{"$f":"LOOKUP($J323,Lookups!$A$3:$A$18, Lookups!$C$3:$C$18)","v":"Closed"},"Modification",null,"European","Rejected",{"$f":"LOOKUP(J323,Lookups!$A$3:$A$20,Lookups!$B$3:$B$20)","v":"End of process"},"2015-07-20",null,null,"National Grid NTS","n/a","Panel Requested Text 18/09/14","2014-10-09","2014-10-02","Y","n/a","No"]
["0501","B","Treatment of Existing Entry Capacity Rights at the Bacton ASEP to comply with EU Capacity Regulations, including a restricted capacity return option.","Centrica Storage","2014-10-10",{"$f":"LOOKUP($J324,Lookups!$A$3:$A$18, Lookups!$C$3:$C$18)","v":"Closed"},"Modification",null,"European","Withdrawn",{"$f":"LOOKUP(J324,Lookups!$A$3:$A$20,Lookups!$B$3:$B$20)","v":"End of process"},"2015-05-01",null,null,"National Grid NTS","n/a","Panel Requested Text 18/09/14","2014-10-09","2014-10-02","Y","n/a","No"]
["0501","AV","Treatment of Existing Entry Capacity Rights at the Bacton ASEP to comply with EU Capacity Regulations, including capacity return option.","Centrica Energy","2015-05-01",{"$f":"LOOKUP($J325,Lookups!$A$3:$A$18, Lookups!$C$3:$C$18)","v":"Closed"},"Modification",null,"European","Rejected",{"$f":"LOOKUP(J325,Lookups!$A$3:$A$20,Lookups!$B$3:$B$20)","v":"End of process"},"2015-07-20",null,null,"National Grid NTS","n/a","Panel Requested Text 18/09/14","2014-10-09","2014-10-02","Y","n/a","No"]
["0501","A","Treatment of Existing Entry Capacity Rights at the Bacton ASEP to comply with EU Capacity Regulations, including capacity return option.","Centrica Energy","2014-07-23",{"$f":"LOOKUP($J326,Lookups!$A$3:$A$18, Lookups!$C$3:$C$18)","v":"Closed"},"Modification",null,"European","Withdrawn",{"$f":"LOOKUP(J326,Lookups!$A$3:$A$20,Lookups!$B$3:$B$20)","v":"End of process"},"2015-05-01",null,null,"National Grid NTS","n/a","Panel Requested Text 18/09/14","2014-10-09","2014-10-02","Y","n/a","No"]
["0501","V","Treatment of Existing Entry Capacity Rights at the Bacton ASEP to comply with EU Capacity Regulations","National Grid NTS","2015-05-01",{"$f":"LOOKUP($J327,Lookups!$A$3:$A$18, Lookups!$C$3:$C$18)","v":"Closed"},"Modification",null,"European","Implemented",{"$f":"LOOKUP(J327,Lookups!$A$3:$A$20,Lookups!$B$3:$B$20)","v":"Effective date"},"2015-07-21",null,null,"National Grid NTS","n/a","Panel Requested Text 18/09/14","2014-10-09","2014-10-02","Y","n/a","No"]
["0501",null,"Treatment of Existing Entry Capacity Rights at the Bacton ASEP to comply with EU Capacity Regulations","National Grid NTS","2014-05-01",{"$f":"LOOKUP($J328,Lookups!$A$3:$A$18, Lookups!$C$3:$C$18)","v":"Closed"},"Modification",null,"European","Withdrawn",{"$f":"LOOKUP(J328,Lookups!$A$3:$A$20,Lookups!$B$3:$B$20)","v":"End of process"},"2015-05-01",null,null,"National Grid NTS","n/a","Panel Requested Text 18/09/14","2014-10-09","2014-10-02","Y","n/a","No"]
["0500",null,"EU Capacity Regulations – Capacity Allocation Mechanisms with Congestion Management Procedures","National Grid NTS","2014-05-01",{"$f":"LOOKUP($J329,Lookups!$A$3:$A$18, Lookups!$C$3:$C$18)","v":"Closed"},"Modification",null,"European","Implemented",{"$f":"LOOKUP(J329,Lookups!$A$3:$A$20,Lookups!$B$3:$B$20)","v":"Effective date"},"2015-06-19",null,null,"National Grid NTS","n/a","Panel Requested Text 18/09/14","2014-10-09","2014-10-02","Y","n/a","No"]
["0499","FT","Amendment to TPD Section G1.6.13(e)(iv)","National Grid Distribution","2014-04-10",{"$f":"LOOKUP($J330,Lookups!$A$3:$A$18, Lookups!$C$3:$C$18)","v":"Closed"},"Fast Track",null,"Distribution","Implemented",{"$f":"LOOKUP(J330,Lookups!$A$3:$A$20,Lookups!$B$3:$B$20)","v":"Effective date"},"2014-10-01",null,null,"National Grid Distribution","n/a","FT - text provided with mod ","2014-09-18","2014-09-18","Y","n/a","No"]
["0498",null,"Amendment to Gas Quality NTS Entry Specification at BP Teesside System Entry Point","BP Gas Marketing","2014-04-04",{"$f":"LOOKUP($J331,Lookups!$A$3:$A$18, Lookups!$C$3:$C$18)","v":"Closed"},"Modification",null,"Transmission","Implemented",{"$f":"LOOKUP(J331,Lookups!$A$3:$A$20,Lookups!$B$3:$B$20)","v":"Effective date"},"2015-09-28",null,null,"National Grid NTS","n/a","No Text req'd - enabling Mod",null,null," ","n/a","No"]
["0497",null,"Removal of the CSEP NExA table held within Annex A part 8 ","RWE Npower","2014-04-04",{"$f":"LOOKUP($J332,Lookups!$A$3:$A$18, Lookups!$C$3:$C$18)","v":"Closed"},"Modification",null,"Distribution","Implemented",{"$f":"LOOKUP(J332,Lookups!$A$3:$A$20,Lookups!$B$3:$B$20)","v":"Effective date"},"2015-02-27",null,null,"National Grid Distribution",6,"Panel Requested Text 21/08/13","2014-09-11","2014-08-21","Y","n/a","No"]
["0496","FT","Reinstatement of Calendar Days as a measure in Section G2.5.8(b)","Scotia Gas Networks","2014-04-04",{"$f":"LOOKUP($J333,Lookups!$A$3:$A$18, Lookups!$C$3:$C$18)","v":"Closed"},"Fast Track",null,"Governance","Implemented",{"$f":"LOOKUP(J333,Lookups!$A$3:$A$20,Lookups!$B$3:$B$20)","v":"Effective date"},"2014-05-14",null,null,"Scotia Gas Networks","n/a","FT - text provided with mod ","2014-04-17","2014-04-17","Y","n/a","No"]
["0495",null,"Introduction of a Change Board for the UNC","E.ON UK","2014-04-04",{"$f":"LOOKUP($J334,Lookups!$A$3:$A$18, Lookups!$C$3:$C$18)","v":"Closed"},"Modification",null,"Governance","Withdrawn",{"$f":"LOOKUP(J334,Lookups!$A$3:$A$20,Lookups!$B$3:$B$20)","v":"End of process"},"2014-11-04",null,null,"Scotia Gas Networks",5,"Mod withdrawn",null,null," ","n/a","No"]
["0494",null,"Imbalance Charge amendments required to align the UNC with the Network Code on Gas Balancing of Transmission Networks","National Grid NTS","2014-04-04",{"$f":"LOOKUP($J335,Lookups!$A$3:$A$18, Lookups!$C$3:$C$18)","v":"Closed"},"Modification",null,"European","Implemented",{"$f":"LOOKUP(J335,Lookups!$A$3:$A$20,Lookups!$B$3:$B$20)","v":"Effective date"},"2015-10-01",null,null,"National Grid NTS","n/a","Panel requested Text 19/06/14","2014-07-10","2014-06-19","Y","n/a","No"]
["0493",null,"EU Gas Balancing Code - Daily Nominations at Interconnection Points (IP)","National Grid NTS","2014-04-04",{"$f":"LOOKUP($J336,Lookups!$A$3:$A$18, Lookups!$C$3:$C$18)","v":"Closed"},"Modification",null,"European","Implemented",{"$f":"LOOKUP(J336,Lookups!$A$3:$A$20,Lookups!$B$3:$B$20)","v":"Effective date"},"2015-06-19",null,null,"National Grid NTS","n/a","Panel Requested Text 18/09/14","2014-10-09","2014-09-19","Y","n/a","No"]
["0492","FT","Governance change - update to Mod Rules following Consumers' Representative's name change","National Grid NTS","2014-04-04",{"$f":"LOOKUP($J337,Lookups!$A$3:$A$18, Lookups!$C$3:$C$18)","v":"Closed"},"Fast Track",null,"Governance","Implemented",{"$f":"LOOKUP(J337,Lookups!$A$3:$A$20,Lookups!$B$3:$B$20)","v":"Effective date"},"2014-06-09",null,null,"National Grid NTS","n/a","FT - text provided with mod ","2014-06-09","2014-05-15","Y","n/a","No"]
["0491",null,"Change Implementation Date of Project Nexus to 1st April 2016","National Grid NTS","2014-03-10",{"$f":"LOOKUP($J338,Lookups!$A$3:$A$18, Lookups!$C$3:$C$18)","v":"Closed"},"Modification",null,"Distribution","Rejected",{"$f":"LOOKUP(J338,Lookups!$A$3:$A$20,Lookups!$B$3:$B$20)","v":"End of process"},"2014-05-16",null,null,"National Grid NTS","n/a","Sugg Text was confirmed as formal Text at Panel 11/03/14","2014-04-01","2014-03-11","Y","n/a","No"]
["0490","S","Updates to UNC TPD Section B to correct anomalies arising from the implementation of UNC Modification 0376S “Increased Choice when Applying for NTS Exit Capacity","National Grid NTS","2014-03-07",{"$f":"LOOKUP($J339,Lookups!$A$3:$A$18, Lookups!$C$3:$C$18)","v":"Closed"},"Self-Governance",null,"Transmission","Implemented",{"$f":"LOOKUP(J339,Lookups!$A$3:$A$20,Lookups!$B$3:$B$20)","v":"Effective date"},"2014-05-14",null,null,"National Grid NTS","n/a","FT - text provided with mod ","2014-05-15","2014-05-15","Y","n/a","No"]
["0489",null,"EU Gas Balancing Code - Information Provision changes required to align the UNC with the EU Code","National Grid NTS","2014-03-07",{"$f":"LOOKUP($J340,Lookups!$A$3:$A$18, Lookups!$C$3:$C$18)","v":"Closed"},"Modification",null,"European","Implemented",{"$f":"LOOKUP(J340,Lookups!$A$3:$A$20,Lookups!$B$3:$B$20)","v":"Effective date"},"2015-10-01",null,null,"National Grid NTS","n/a","Panel requested Text 19/06/14","2014-07-10","2014-06-19","Y","n/a","No"]
["0488","S"," Additional Changes to the Mod 81 Reports","Scottish Power","2014-03-07",{"$f":"LOOKUP($J341,Lookups!$A$3:$A$18, Lookups!$C$3:$C$18)","v":"Closed"},"Self-Governance",null,"Distribution","Implemented",{"$f":"LOOKUP(J341,Lookups!$A$3:$A$20,Lookups!$B$3:$B$20)","v":"Effective date"},"2014-07-01",null,null,"National Grid Distribution",4,"Panel requested text 15/05/14","2014-06-09","2014-05-15","Y","n/a","No"]
["0487","V","Introduction of an Advanced Meter Reader (AMR) Service Provider (ASP) Identifier (ASP ID) and Advanced Meter Indicator","Gazprom","2014-10-16",{"$f":"LOOKUP($J342,Lookups!$A$3:$A$18, Lookups!$C$3:$C$18)","v":"Closed"},"Self-Governance",null,"Distribution","Implemented",{"$f":"LOOKUP(J342,Lookups!$A$3:$A$20,Lookups!$B$3:$B$20)","v":"Effective date"},"2015-04-01",null,null,"Northern Gas Networks",3,"Panel requested text 17/07/14, NGN 'stop' note 12/08/14","2014-09-05","2014-09-05","Y","Yes","No"]
["0487","S","Introduction of Advanced Meter Indicator and Advanced Meter Reader (AMR) Service Provider Identifier in advance of Project Nexus Go Live","Gazprom","2014-03-05",{"$f":"LOOKUP($J343,Lookups!$A$3:$A$18, Lookups!$C$3:$C$18)","v":"Closed"},"Self-Governance",null,"Distribution","Withdrawn",{"$f":"LOOKUP(J343,Lookups!$A$3:$A$20,Lookups!$B$3:$B$20)","v":"End of process"},"2014-10-16",null,null,"Northern Gas Networks",3,"Panel requested text 17/07/14, NGN 'stop' note 12/08/14","2014-09-05","2014-09-05","Y","n/a","No"]
["0486",null," Use of the Pre-Payment Profile For IGTs","Winchester Gas","2014-02-25",{"$f":"LOOKUP($J344,Lookups!$A$3:$A$18, Lookups!$C$3:$C$18)","v":"Closed"},"Modification",null,"Distribution","Withdrawn",{"$f":"LOOKUP(J344,Lookups!$A$3:$A$20,Lookups!$B$3:$B$20)","v":"End of process"},"2014-07-04",null,null,"National Grid Distribution",2,"Withdrawn",null,null," ","n/a","No"]
["0485",null,"Introduction of the Long-term use-it-or-lose-it mechanism to facilitate compliance with the EU Congestion Management Procedures","National Grid NTS","2014-02-07",{"$f":"LOOKUP($J345,Lookups!$A$3:$A$18, Lookups!$C$3:$C$18)","v":"Closed"},"Modification",null,"European","Implemented",{"$f":"LOOKUP(J345,Lookups!$A$3:$A$20,Lookups!$B$3:$B$20)","v":"Effective date"},"2014-09-30",null,null,"National Grid NTS","n/a","Panel requested text 15/05/14","2014-06-05","2014-05-30","Y","n/a","No"]
["0484","S","Guidance for the production of legal text","Gazprom","2014-02-07",{"$f":"LOOKUP($J346,Lookups!$A$3:$A$18, Lookups!$C$3:$C$18)","v":"Closed"},"Self-Governance",null,"Governance","Implemented",{"$f":"LOOKUP(J346,Lookups!$A$3:$A$20,Lookups!$B$3:$B$20)","v":"Effective date"},"2014-07-11",null,null,"Scotia Gas Networks",1,"Panel requested text 20/02/14","2014-03-14","2014-03-14",{"$f":"IF(ISBLANK(S346),\" \",IF(S346<=R346,\"Y\",\"N\"))","v":"Y"},"n/a","No"]
["0483",null,"Performance Assurance Framework Incentive Regime","British Gas","2014-02-07",{"$f":"LOOKUP($J347,Lookups!$A$3:$A$18, Lookups!$C$3:$C$18)","v":"Closed"},"Modification",null,"Performance Assurance ","Withdrawn",{"$f":"LOOKUP(J347,Lookups!$A$3:$A$20,Lookups!$B$3:$B$20)","v":"End of process"},"2015-03-06",null,null,"National Grid Distribution transferred to WWU",8,"Mod withdrawn",null,null," ","n/a","No"]
["0482","S","Proposed Changes to Mod 81 Reports to be effective from 01/7/14","Scottish Power","2014-02-06",{"$f":"LOOKUP($J348,Lookups!$A$3:$A$18, Lookups!$C$3:$C$18)","v":"Closed"},"Self-Governance",null,"Distribution","Implemented",{"$f":"LOOKUP(J348,Lookups!$A$3:$A$20,Lookups!$B$3:$B$20)","v":"Effective date"},"2014-07-01",null,null,"Wales & West Utilities",7,"Panel requested text 20/02/14","2014-03-13","2014-04-30","N","n/a","No"]
["0481",null,"Amendment to AQ Values Present Within Annex A of the CSEP NExA AQ Table Following the 2013 AQ Review","SSE","2014-02-03",{"$f":"LOOKUP($J349,Lookups!$A$3:$A$18, Lookups!$C$3:$C$18)","v":"Closed"},"Modification",null,"Distribution","Implemented",{"$f":"LOOKUP(J349,Lookups!$A$3:$A$20,Lookups!$B$3:$B$20)","v":"Effective date"},"2014-10-01",null,null,"National Grid Distribution",null,"04/02/14 CW confirmed none required for UNC",null,null," ","n/a","No"]
["0480","FT","Minor update to UNC General Terms Section B","Northern Gas Networks","2014-01-27",{"$f":"LOOKUP($J350,Lookups!$A$3:$A$18, Lookups!$C$3:$C$18)","v":"Closed"},"Fast Track",null,"Distribution","Implemented",{"$f":"LOOKUP(J350,Lookups!$A$3:$A$20,Lookups!$B$3:$B$20)","v":"Effective date"},"2014-03-14",null,null,"Northern Gas Networks",null,"FT - text provided with mod ","2014-03-14","2014-03-14","Y","n/a","No"]
["0479","S","Inclusion of email as a valid UNC communication’","Northern Gas Networks","2014-01-27",{"$f":"LOOKUP($J351,Lookups!$A$3:$A$18, Lookups!$C$3:$C$18)","v":"Closed"},"Self-Governance",null,"Distribution","Implemented",{"$f":"LOOKUP(J351,Lookups!$A$3:$A$20,Lookups!$B$3:$B$20)","v":"Effective date"},"2015-03-13",null,null,"Northern Gas Networks",null,"Panel Requested Text 20/11/14","2014-12-11","2014-12-02","Y","n/a","No"]
["0478",null,"Filling the gap for SOQ reductions below BSSOQ until Project Nexus","Northern Gas Networks","2014-01-27",{"$f":"LOOKUP($J352,Lookups!$A$3:$A$18, Lookups!$C$3:$C$18)","v":"Closed"},"Modification",null,"Distribution","Implemented",{"$f":"LOOKUP(J352,Lookups!$A$3:$A$20,Lookups!$B$3:$B$20)","v":"Effective date"},"2014-10-01",null,null,"Northern Gas Networks",null,"Sugg Text was confirmed as formal Text at Panel 20/02/14",null,null," ","n/a","No"]
["0477",null,"Supply Point Registration - Facilitation of Faster Switching","British Gas","2014-01-03",{"$f":"LOOKUP($J353,Lookups!$A$3:$A$18, Lookups!$C$3:$C$18)","v":"Closed"},"Modification",null,"Distribution","Implemented",{"$f":"LOOKUP(J353,Lookups!$A$3:$A$20,Lookups!$B$3:$B$20)","v":"Effective date"},"2014-11-07",null,null,"Scotia Gas Networks",null,"Panel requested text 20/02/14",null,null," ","Yes","No"]
["0476","S","Alignment of DN Charging Methodology with RIIO-GD1 Arrangements","National Grid Distribution","2013-12-30",{"$f":"LOOKUP($J354,Lookups!$A$3:$A$18, Lookups!$C$3:$C$18)","v":"Closed"},"Self-Governance",null,"DN Charging Methodolgy Forum","Implemented",{"$f":"LOOKUP(J354,Lookups!$A$3:$A$20,Lookups!$B$3:$B$20)","v":"Effective date"},"2014-04-01",null,null,"National Grid Distribution",null,"Sugg Text was confirmed as formal Text at Panel 16/01/13",null,null," ","n/a","No"]
["0475","S","Update to Section G, Annex G3 (Prospective Erroneous Large AQ Calculation Proforma)","Scottish Power","2013-12-23",{"$f":"LOOKUP($J355,Lookups!$A$3:$A$18, Lookups!$C$3:$C$18)","v":"Closed"},"Self-Governance",null,"Distribution","Implemented",{"$f":"LOOKUP(J355,Lookups!$A$3:$A$20,Lookups!$B$3:$B$20)","v":"Effective date"},"2014-07-11",null,null,"National Grid Distribution",null,"Panel requested text 15/05/14","2014-06-09","2014-04-08","Y","n/a","No"]
["0474","S","Inclusion of the guidelines relating to the \"Customer Settlement Error Claims Process\" within UNC governance and introduction of the User Pays charges associated with such claims","National Grid Distribution","2013-12-10",{"$f":"LOOKUP($J356,Lookups!$A$3:$A$18, Lookups!$C$3:$C$18)","v":"Closed"},"Self-Governance",null,"Distribution","Implemented",{"$f":"LOOKUP(J356,Lookups!$A$3:$A$20,Lookups!$B$3:$B$20)","v":"Effective date"},"2014-06-09",null,null,"National Grid Distribution",null,"Panel requested text 19/12/13",null,null," ","Yes","No"]
["0473","A","Project Nexus – Allocation of Unidentified Gas","British Gas","2014-05-01",{"$f":"LOOKUP($J357,Lookups!$A$3:$A$18, Lookups!$C$3:$C$18)","v":"Closed"},"Modification",null,"Nexus","Rejected",{"$f":"LOOKUP(J357,Lookups!$A$3:$A$20,Lookups!$B$3:$B$20)","v":"End of process"},"2014-11-20",null,null,"Northern Gas Networks",null,"Panel requested text 16/10/14","2014-11-06","2014-11-12","N","Yes","No"]
["0473",null,"Project Nexus – Allocation of Unidentified Gas","Gazprom","2013-11-18",{"$f":"LOOKUP($J358,Lookups!$A$3:$A$18, Lookups!$C$3:$C$18)","v":"Closed"},"Modification",null,"Nexus","Implemented",{"$f":"LOOKUP(J358,Lookups!$A$3:$A$20,Lookups!$B$3:$B$20)","v":"Effective date"},"Nexus Imp Date",null,null,"Northern Gas Networks",null,"Panel requested text 17/04/14","2014-05-13","2014-05-14","N","Yes","No"]
["0472","S","Reporting the number of registration attempts by a Gas Shipper","RWE Npower","2013-11-11",{"$f":"LOOKUP($J359,Lookups!$A$3:$A$18, Lookups!$C$3:$C$18)","v":"Closed"},"Self-Governance",null,"Distribution","Implemented",{"$f":"LOOKUP(J359,Lookups!$A$3:$A$20,Lookups!$B$3:$B$20)","v":"Effective date"},"2014-09-15",null,null,"National Grid Distribution",null,"Panel requested text 19/06/2014","2014-07-10","2014-07-08","Y","n/a","No"]
["0471","S","Amending the start time that a Day-ahead Market Offer can be accepted","EDF Energy","2013-11-08",{"$f":"LOOKUP($J360,Lookups!$A$3:$A$18, Lookups!$C$3:$C$18)","v":"Closed"},"Self-Governance",null,"Transmission","Implemented",{"$f":"LOOKUP(J360,Lookups!$A$3:$A$20,Lookups!$B$3:$B$20)","v":"Effective date"},"2014-04-29",null,null,"National Grid NTS",null,"Panel requested text 21/11/13",null,null," ","Yes","No"]
["0470",null,"Notification of Minimal Safety operating gas needs of large customers","Wingas","2013-10-04",{"$f":"LOOKUP($J361,Lookups!$A$3:$A$18, Lookups!$C$3:$C$18)","v":"Closed"},"Modification",null,"Distribution","Withdrawn",{"$f":"LOOKUP(J361,Lookups!$A$3:$A$20,Lookups!$B$3:$B$20)","v":"End of process"},"2014-09-16",null,null,"Scotia Gas Networks",null,"Withdrawn 16/09/14",null,null," ","n/a","No"]
["0469","S","Transporter Gas Safety Visit Reporting","British Gas","2013-10-04",{"$f":"LOOKUP($J362,Lookups!$A$3:$A$18, Lookups!$C$3:$C$18)","v":"Closed"},"Self-Governance",null,"Distribution","Implemented",{"$f":"LOOKUP(J362,Lookups!$A$3:$A$20,Lookups!$B$3:$B$20)","v":"Effective date"},"2015-01-14",null,null,"National Grid Distribution",null,"Panel requested text 16/10/14","2014-11-06","2014-10-22","Y","n/a","No"]
["0468",null,"Unique Property Reference Number (UPRN) Population by Gas Transporters","E.ON UK","2013-10-01",{"$f":"LOOKUP($J363,Lookups!$A$3:$A$18, Lookups!$C$3:$C$18)","v":"Closed"},"Modification",null,"Distribution","Withdrawn",{"$f":"LOOKUP(J363,Lookups!$A$3:$A$20,Lookups!$B$3:$B$20)","v":"End of process"},"2015-12-21",null,null,"National Grid Distribution",null," Withdrawn 21/12/15",null,null," ","n/a","No"]
["0467",null,"Project Nexus - iGT Single Service Provision; data preparation","National Grid Distribution","2013-10-01",{"$f":"LOOKUP($J364,Lookups!$A$3:$A$18, Lookups!$C$3:$C$18)","v":"Closed"},"Modification",null,"Nexus","Implemented",{"$f":"LOOKUP(J364,Lookups!$A$3:$A$20,Lookups!$B$3:$B$20)","v":"Effective date"},"2015-01-16",null,null,"National Grid Distribution",null,"Panel requested text 17/10/13","2013-11-07","2014-02-04","N","n/a","No"]
["0466","AV","Daily Meter Reading Simplification with improved within day data provision","Wingas","2014-06-23",{"$f":"LOOKUP($J365,Lookups!$A$3:$A$18, Lookups!$C$3:$C$18)","v":"Closed"},"Modification",null,"Distribution","Implemented",{"$f":"LOOKUP(J365,Lookups!$A$3:$A$20,Lookups!$B$3:$B$20)","v":"Effective date"},"2016-04-01",null,null,"National Grid Distribution",null,"(Panel Requested Text for 0466A 18/09/14 - Mod withdrawn/replaced by 0466AV)","2014-10-09","2014-08-26","Y","n/a","No","Legal Text Delivery not actively tracked prior to this date"]
["0466","A","Daily Meter Reading Simplification with improved within day data provision","Wingas","2014-06-23",{"$f":"LOOKUP($J366,Lookups!$A$3:$A$18, Lookups!$C$3:$C$18)","v":"Closed"},"Modification",null,"Distribution","Withdrawn",{"$f":"LOOKUP(J366,Lookups!$A$3:$A$20,Lookups!$B$3:$B$20)","v":"End of process"},"2015-02-19",null,null,"National Grid Distribution",null,"Panel Requested Text 18/09/14","2014-10-09","2014-08-26","Y","Yes","No"]
["0466",null,"Daily Meter Reading Simplification ","National Grid Distribution","2013-10-01",{"$f":"LOOKUP($J367,Lookups!$A$3:$A$18, Lookups!$C$3:$C$18)","v":"Closed"},"Modification",null,"Distribution","Rejected",{"$f":"LOOKUP(J367,Lookups!$A$3:$A$20,Lookups!$B$3:$B$20)","v":"End of process"},"2015-03-26",null,null,"National Grid Distribution",null,"Panel requested text 15/05/14","2014-06-05","2014-05-19","Y","n/a",{"$f":"IF(AND(F367=\"Live\",K367=\"Ofgem decision\"),\"Yes\",\"No\")","v":"No"}]
["0465","V","Introduction of the Planning and Advanced Reservation of Capacity Agreement (PARCA), Weighted Average PARCA Security","SSE","2013-09-27",{"$f":"LOOKUP($J368,Lookups!$A$3:$A$18, Lookups!$C$3:$C$18)","v":"Closed"},"Modification",null,"Transmission","Implemented",{"$f":"LOOKUP(J368,Lookups!$A$3:$A$20,Lookups!$B$3:$B$20)","v":"Effective date"},"2015-02-02",null,null,"National Grid NTS",null,"Sugg Text was confirmed as formal Text at Panel 17/10/13",null,null," ","n/a","No"]
["0464",null,"Alternative LNG supply to the Scottish Independent Networks (SINs)","Scotia Gas Networks","2013-09-06",{"$f":"LOOKUP($J369,Lookups!$A$3:$A$18, Lookups!$C$3:$C$18)","v":"Closed"},"Urgent",null,"Distribution","Implemented",{"$f":"LOOKUP(J369,Lookups!$A$3:$A$20,Lookups!$B$3:$B$20)","v":"Effective date"},"2013-10-31",null,null,"Scotia Gas Networks",null,"Text was confirmed as formal Text at Panel 17/10/13",null,null," ","n/a","No"]
["0463","S","Recognition of the ‘2nd January’ Scottish Bank Holiday as a Business Day for Supply Point related transactions","SSE","2013-08-02",{"$f":"LOOKUP($J370,Lookups!$A$3:$A$18, Lookups!$C$3:$C$18)","v":"Closed"},"Self-Governance",null,"Distribution","Implemented",{"$f":"LOOKUP(J370,Lookups!$A$3:$A$20,Lookups!$B$3:$B$20)","v":"Effective date"},"2014-03-14",null,null,"Scotia Gas Networks",null,"Panel requested text 21/11/13",null,null," ","n/a","No"]
["0462",null,"Introducing Fast Track Self Governance into the Uniform Network Code","Scotia Gas Networks","2013-08-01",{"$f":"LOOKUP($J371,Lookups!$A$3:$A$18, Lookups!$C$3:$C$18)","v":"Closed"},"Modification",null,"Governance","Implemented",{"$f":"LOOKUP(J371,Lookups!$A$3:$A$20,Lookups!$B$3:$B$20)","v":"Effective date"},"2013-12-31",null,null,"Scotia Gas Networks",null,"Panel requested text 21/11/13",null,null," ","n/a","No"]
["0461",null,"Changing the UNC Gas Day to Align with the Gas Day in EU Network Codes","National Grid NTS","2013-06-07",{"$f":"LOOKUP($J372,Lookups!$A$3:$A$18, Lookups!$C$3:$C$18)","v":"Closed"},"Modification",null,"Transmission","Implemented",{"$f":"LOOKUP(J372,Lookups!$A$3:$A$20,Lookups!$B$3:$B$20)","v":"Effective date"},"2015-10-01",null,null,"National Grid NTS",null,"Panel requested text 21/11/13",null,null," ","n/a","No"]
["0460","S","Alignment of capacity and revenue treatment within the NTS Charging Methodology with RIIO-T1 arrangements","National Grid NTS","2013-06-07",{"$f":"LOOKUP($J373,Lookups!$A$3:$A$18, Lookups!$C$3:$C$18)","v":"Closed"},"Self-Governance",null,"NTS Charging Methodology Forum","Implemented",{"$f":"LOOKUP(J373,Lookups!$A$3:$A$20,Lookups!$B$3:$B$20)","v":"Effective date"},"2013-10-11",null,null,"National Grid NTS",null,"2013-06-20",null,null," ","n/a","No"]
["0459","S","Amendments to the 'K' revenue adjustment factor based on RIIO-T1","National Grid NTS","2013-06-07",{"$f":"LOOKUP($J374,Lookups!$A$3:$A$18, Lookups!$C$3:$C$18)","v":"Closed"},"Self-Governance",null,"NTS Charging Methodology Forum","Implemented",{"$f":"LOOKUP(J374,Lookups!$A$3:$A$20,Lookups!$B$3:$B$20)","v":"Effective date"},"2013-09-09",null,null,"National Grid NTS",null,"2013-06-20",null,null," ","n/a","No"]
["0458",null,"Seasonal LDZ System Capacity\nRights.","Scotia Gas Networks","2013-06-07",{"$f":"LOOKUP($J375,Lookups!$A$3:$A$18, Lookups!$C$3:$C$18)","v":"Closed"},"Modification",null,"Distribution","Implemented",{"$f":"LOOKUP(J375,Lookups!$A$3:$A$20,Lookups!$B$3:$B$20)","v":"Effective date"},"2015-02-28",null,null,"Scotia Gas Networks",null,"Panel requested text 21/11/13",null,null," ","n/a","No"]
["0457","S","Extending the use of the UK Link Network (Information Exchange (IX)) to Meter Asset Provider (MAP) organisations","National Grid Distribution","2013-06-04",{"$f":"LOOKUP($J376,Lookups!$A$3:$A$18, Lookups!$C$3:$C$18)","v":"Closed"},"Self-Governance",null,"Distribution","Implemented",{"$f":"LOOKUP(J376,Lookups!$A$3:$A$20,Lookups!$B$3:$B$20)","v":"Effective date"},"2013-12-13",null,null,"National Grid Distribution",null,"2013-09-19",null,null," ","n/a","No"]
["0456",null,"Revision to the treatment of Allocation of Unidentified Gas for the 2013/14 AUG Year","British Gas","2013-05-24",{"$f":"LOOKUP($J377,Lookups!$A$3:$A$18, Lookups!$C$3:$C$18)","v":"Closed"},"Urgent",null,"Distribution","Rejected",{"$f":"LOOKUP(J377,Lookups!$A$3:$A$20,Lookups!$B$3:$B$20)","v":"End of process"},"2013-06-28",null,null,"National Grid Distribution",null,"03/06/13 (Ofgem)",null,null," ","n/a","No"]
["0455",null,"Updating of Meter Information by the Transporter","National Grid Distribution","2013-05-21",{"$f":"LOOKUP($J378,Lookups!$A$3:$A$18, Lookups!$C$3:$C$18)","v":"Closed"},"Modification",null,"Distribution","Implemented",{"$f":"LOOKUP(J378,Lookups!$A$3:$A$20,Lookups!$B$3:$B$20)","v":"Effective date"},"2014-05-27",null,null,"National Grid Distribution",null,"Panel requested text 21/11/13",null,null," ","Yes","No"]
["0454",null,"Introduction of a Long Term Non Firm Capacity Product","National Grid NTS","2013-05-02",{"$f":"LOOKUP($J379,Lookups!$A$3:$A$18, Lookups!$C$3:$C$18)","v":"Closed"},"Modification",null,"Transmission","Rejected",{"$f":"LOOKUP(J379,Lookups!$A$3:$A$20,Lookups!$B$3:$B$20)","v":"End of process"},"2014-06-20",null,null,"National Grid NTS",null,"2013-09-19",null,null," ","Yes","No"]
["0453",null,"Project Nexus - Demand Estimation","National Grid Distribution","2013-04-23",{"$f":"LOOKUP($J380,Lookups!$A$3:$A$18, Lookups!$C$3:$C$18)","v":"Closed"},"Modification",null,"Nexus","Withdrawn",{"$f":"LOOKUP(J380,Lookups!$A$3:$A$20,Lookups!$B$3:$B$20)","v":"End of process"},"2013-10-18",null,null,"National Grid Distribution",null,"19/09/2013 (mod withdrawn 18/10/13)",null,null," ","n/a","No"]
["0452","V","Introduction of the Planning and Advanced Reservation of Capacity Agreement (PARCA) ","National Grid NTS","2013-04-05",{"$f":"LOOKUP($J381,Lookups!$A$3:$A$18, Lookups!$C$3:$C$18)","v":"Closed"},"Modification",null,"Transmission","Rejected",{"$f":"LOOKUP(J381,Lookups!$A$3:$A$20,Lookups!$B$3:$B$20)","v":"End of process"},"2014-12-05",null,null,"National Grid NTS",null,"Sugg Text was confirmed as formal Text at Panel 17/10/13",null,null," ","n/a","No"]
["0451","AV","Individual Settlements For Pre-Payment & Smart Meters","E.ON UK","2013-07-04",{"$f":"LOOKUP($J382,Lookups!$A$3:$A$18, Lookups!$C$3:$C$18)","v":"Closed"},"Modification",null,"Distribution","Implemented",{"$f":"LOOKUP(J382,Lookups!$A$3:$A$20,Lookups!$B$3:$B$20)","v":"Effective date"},"2014-02-01",null,null,"Northern Gas Networks",null,"18/07/2013 (0451A); 0451AV provided 22/12/13",null,null," ","n/a","No"]
["0451","V","Individual Settlements For Pre-Payment & Smart Meters","Winchester Gas","2013-03-27",{"$f":"LOOKUP($J383,Lookups!$A$3:$A$18, Lookups!$C$3:$C$18)","v":"Closed"},"Urgent",null,"Distribution","Rejected",{"$f":"LOOKUP(J383,Lookups!$A$3:$A$20,Lookups!$B$3:$B$20)","v":"End of process"},"2014-01-31",null,null,"Northern Gas Networks",null,"20/06/2013(0451); revised text for 0451V 10/01/14",null,null," ","Yes","No"]

{"sheet":"Lookups","index":1,"n_rows":78,"n_cols":8,"rows_kept":78,"cut":false,"hidden":false,"merged":[[0,0,0,2],[48,0,48,2],[22,0,22,2],[23,0,23,2]]}
["Automated Status Path (must be alphabetical do not edit) "]
["Current Status","Next Stage","Live/Closed",null,"Proposing Organisation List","Category List","Workgroup","Next Stage"]
["Allocated to Workgroup","Report to Panel","Live",null,"Barrow Shipping Ltd","Modification","Distribution","Consultation End"]
["Appealed","Panel Consideration","Live",null,"BG","Request","European","Effective Date"]
["Consultation Closed","Final Mod Report","Live",null,"BP","Review","Governance","End of Process"]
["Final Mod Report","Panel Consideration","Live",null,"British Gas","Self-Governance","Offtake","Ofgem Decision"]
["Final Mod Report Sent Back by Ofgem","Panel Consideration","Live",null,"British Gas Trading","Significant Code Review","Performance Assurance ","Report to Panel"]
["Implemented","Effective date","Closed",null,"BUUK","Suspended SCR","Nexus"]
["New Proposal","Panel Consideration","Live",null,"Cadent","Urgent","Transmission"]
[null,null,null,null,"Centrica","Timetable Directed","NTS CMF"]
["Panel did not recommend implementation","Ofgem decision","Live",null,"Centrica Storage Ltd","Fast Track","DN CMF"]
["Panel recommended implementation","Ofgem decision","Live",null,"ConocoPhillips",null,"Demand Side Response"]
["Rejected","End of process","Closed",null,"Contract Natural Gas Ltd",null,"Market Operator"]
["Renumbered","End of process","Closed",null,"Corona Energy",null,"None"]
["Representations invited","Consultation end","Live",null,"E.ON UK",null,"Other"]
["Request Closed","End of process","Closed",null,"EDF Energy",null,"UIG"]
["Sent to Ofgem","Ofgem decision","Live",null,"EDF Trading",null,"Distribution and Transmission"]
["Withdrawn","End of process","Closed",null,"Electricity Supply Board"]
[null,null,null,null,"ENI"]
[null,null,null,null,"Energy 24"]
[null,null,null,null,"energywatch"]
[null,null,null,null,"Exxon Mobil"]
["SUGGESTED STATUS PATH",null,null,null,"first:utility"]
[" Reference Purpsoses ONLY",null,null,null,"GasTerra"]
["Current Status","Next Stage","Live/Closed",null,"Gaz de France"]
["New Proposal","Panel Consideration","Live",null,"Gazprom Energy"]
["Allocated to Workgroup","Report to Panel","Live",null,"GTC Pipelines Ltd"]
["Legal Text being prepared?","Report to Panel","Live",null,"ICE Endex "]
["Representations invited","Consultation end","Live",null,"Locus Energy"]
["Consultation Closed","Final Mod Report","Live",null,"Macquarie Bank"]
["Final Mod Report","Panel Consideration","Live",null,"National Grid Gas Distribution"]
["Panel did not recommend implementation","Ofgem decision (date in red)","Live",null,"National Grid NTS"]
["Panel recommended implementation","Ofgem decision (date in red)","Live",null,"National Grid LNG Storage"]
["Implemented","Effective date","Closed",null,"Northern Gas Networks"]
["Final Mod Report Sent Back by Ofgem","Panel Consideration","Live",null,"Npower"]
["Renumbered","End of process","Closed",null,"Opus Energy"]
["Withdrawn","End of process","Closed",null,"RWE Npower"]
["Lapsed?","End of process","Closed",null,"RWE Trading GmbH"]
["Rejected","End of process","Closed",null,"SAGE North Sea Limited"]
["Sent to Ofgem","Ofgem decision","Live",null,"SGN"]
["Urgent Status Requested?","Ofgem decision or Panel Consideration","Live",null,"Scottish Power"]
["? Denotes no longer used",null,null,null,"Scottish&Southern Energy"]
[null,null,null,null,"Shell"]
[null,null,null,null,"South Hook Gas Company Ltd"]
[null,null,null,null,"Spark Energy"]
[null,null,null,null,"SSE"]
[null,null,null,null,"Statoil UK"]
[null,null,null,null,"Storengy UK Ltd"]
["Suggested Validation Look Ups Lists (pre automation)",null,null,null,"Total Gas and Power"]
["Current Status","Next Stage","Live/Closed",null,"Vermilion Energy Ireland Ltd"]
["New Proposal","Panel Consideration","Live",null,"Wales & West Utilities"]
["Rejected","Report to Panel","Closed",null,"Winchester Gas"]
["Allocated to Workgroup","Consultation end",null,null,"Wingas"]
["Representations invited","Final Mod Report"]
["Consultation Closed","Panel recommendation"]
["Final Mod Report","Ofgem decision"]
["Panel recommended implementation","Ofgem decision on urgency"]
["Panel did not recommend implementation","None"]
["Implemented","Effective date"]
["Final Mod Report Sent Back by Ofgem","End of process"]
["Renumbered","Renumbered"]
["Withdrawn"]
["Sent to Ofgem"]
[]
[]
["Other Codes"]
["IGT"]
["IGT UNC"]
["Multiple"]
["None"]
["BSC"]
["CUSC"]
["DCUSA"]
["Distribution Code"]
["MRA"]
["SEC"]
["SPAA"]
["STC"]

{"sheet":"Legal Text Rotation","index":2,"n_rows":23,"n_cols":10,"rows_kept":23,"cut":false,"hidden":false,"merged":[[0,9,0,10]]}
["UNC Text Allocation Register ",null,null,null,null,null,null,null,null,"For Mod details"]
[]
[null,null,null,null,null,"Rotation","Transporter"]
["This register identifies the text provider, in column G, for each modification. ",null,null,null,null,1,"Scotia Gas Networks"]
["Column F 'Rotation' shows who is next using the numerical order in the Transporter list.",null,null,null,null,2,"Cadent"]
["Transporter raised modifications are not subject to this rota and are shown 'n/a (unless they are related to a transmission",null,null,null,null,3,"Northern Gas Networks"]
["area in which case the legal text provider is NG) as are certain other modifications not requiring text (eg Fast Track ",null,null,null,null,4,"Cadent"]
["mods with shipper-supplied text  and Requests).",null,null,null,null,5,"Scotia Gas Networks"]
["Columns P-S track the delivery of the text.",null,null,null,null,6,"Cadent"]
[null,null,null,null,null,7,"Wales & West Utilities"]
[null,null,null,null,null,8,"Cadent"]
[null,null,null,null,null,null,"N/A - Enabling Modification"]
[null,null,null,null,null,null,"N/A - National Grid"]
[null,null,null,null,null,null,"N/A - Request"]
[]
[]
[]
[null,"Note: 9/9/19 Mod 0702 assigned same LT provider as Mod 0697 for continuity"]
[]
[]
[]
[]
[null,null,null,null,null,null,null,""]